Organisation Name,Organisation Code,Unique Ref No,Effective Date,Directorate  where expenditure incurred,Supplier Name,Payment Date,Net Amount,Purpose of Spend,Procurement Classification (Higher Level),Procurement Classification (Lower Level),Capital/Revenue
Walsall Council,http://opendatacommunities.org/id/metropolitan-district-council/walsall,WC93-01,30/06/2018,Childrens,247 CARS (WILLENHALL) LIMITED,01/06/2018,"3,805.00",52000-WITH DRIVER-HIRE OF VEHICLES,HOME TO SCHOOL TRANSPORT,Transport,Revenue
Walsall Council,http://opendatacommunities.org/id/metropolitan-district-council/walsall,WC93-02,30/06/2018,Resources and Transformation,2BM LIMITED,21/06/2018,"2,400.00",63820-RECHARGE FOR MAINTENANCE/APPLICATION COSTS-COMPUTER,DATA CENTRES,Supplies & Services,Revenue
Walsall Council,http://opendatacommunities.org/id/metropolitan-district-council/walsall,WC93-03,30/06/2018,Childrens,39 ESSEX STREET LLP PFA,15/06/2018,"5,250.00",73014-LEGAL FEES-PRIV CONTRACTOR FEES,GENERAL MANAGEMENT SUPPORT (INC LEGAL),Third Party Payments,Revenue
Walsall Council,http://opendatacommunities.org/id/metropolitan-district-council/walsall,WC93-04,30/06/2018,Resources and Transformation,4 SIGHT EYECARE CENTRE 002,04/06/2018,916.67,63000-PROFESSIONAL FEES AND SERVICES,HR DIRECT SERVICES,Supplies & Services,Revenue
Walsall Council,http://opendatacommunities.org/id/metropolitan-district-council/walsall,WC93-05,30/06/2018,Childrens,5 CARE SERVICES LTD,19/06/2018,280.00,63000-PROFESSIONAL FEES AND SERVICES,DIRECTLY COMMISSIONED NURSING SERVICES,Supplies & Services,Revenue
Walsall Council,http://opendatacommunities.org/id/metropolitan-district-council/walsall,WC93-06,30/06/2018,Adult Social Care,5 CARE SERVICES LTD,25/06/2018,371.25,73372-DOMICILIARY CARE,OP PACKAGE/PLACEMENT COSTS,Third Party Payments,Revenue
Walsall Council,http://opendatacommunities.org/id/metropolitan-district-council/walsall,WC93-07,30/06/2018,Adult Social Care,5 CARE SERVICES LTD,20/06/2018,446.88,73372-DOMICILIARY CARE,OP PACKAGE/PLACEMENT COSTS,Third Party Payments,Revenue
Walsall Council,http://opendatacommunities.org/id/metropolitan-district-council/walsall,WC93-08,30/06/2018,Childrens,5 CARE SERVICES LTD,08/06/2018,721.00,63000-PROFESSIONAL FEES AND SERVICES,DIRECTLY COMMISSIONED NURSING SERVICES,Supplies & Services,Revenue
Walsall Council,http://opendatacommunities.org/id/metropolitan-district-council/walsall,WC93-09,30/06/2018,Adult Social Care,5 CARE SERVICES LTD,20/06/2018,950.85,73372-DOMICILIARY CARE,OP PACKAGE/PLACEMENT COSTS,Third Party Payments,Revenue
Walsall Council,http://opendatacommunities.org/id/metropolitan-district-council/walsall,WC93-10,30/06/2018,Adult Social Care,5 CARE SERVICES LTD,06/06/2018,989.27,73372-DOMICILIARY CARE,OP PACKAGE/PLACEMENT COSTS,Third Party Payments,Revenue
Walsall Council,http://opendatacommunities.org/id/metropolitan-district-council/walsall,WC93-11,30/06/2018,Adult Social Care,5 CARE SERVICES LTD,06/06/2018,"1,258.73",73372-DOMICILIARY CARE,OP PACKAGE/PLACEMENT COSTS,Third Party Payments,Revenue
Walsall Council,http://opendatacommunities.org/id/metropolitan-district-council/walsall,WC93-12,30/06/2018,Childrens,5 CARE SERVICES LTD,19/06/2018,"1,330.00",63000-PROFESSIONAL FEES AND SERVICES,DIRECTLY COMMISSIONED NURSING SERVICES,Supplies & Services,Revenue
Walsall Council,http://opendatacommunities.org/id/metropolitan-district-council/walsall,WC93-13,30/06/2018,Adult Social Care,5 CARE SERVICES LTD,20/06/2018,"39,667.83",73372-DOMICILIARY CARE,OP PACKAGE/PLACEMENT COSTS,Third Party Payments,Revenue
Walsall Council,http://opendatacommunities.org/id/metropolitan-district-council/walsall,WC93-14,30/06/2018,Economy & Environment,A ASHTON,20/06/2018,300.00,60500-GENERAL MATERIALS,INFRASTRUCTURE MAINTENANCE,Supplies & Services,Revenue
Walsall Council,http://opendatacommunities.org/id/metropolitan-district-council/walsall,WC93-15,30/06/2018,Resources and Transformation,A D T FIRE AND SECURITY PLC,22/06/2018,248.18,73002-SECURITY-PRIV CONTRACTOR FEES,CENTRALISED MAINTENANCE,Third Party Payments,Revenue
Walsall Council,http://opendatacommunities.org/id/metropolitan-district-council/walsall,WC93-16,30/06/2018,Resources and Transformation,A D T FIRE AND SECURITY PLC,22/06/2018,444.69,73002-SECURITY-PRIV CONTRACTOR FEES,CENTRALISED MAINTENANCE,Third Party Payments,Revenue
Walsall Council,http://opendatacommunities.org/id/metropolitan-district-council/walsall,WC93-17,30/06/2018,Economy & Environment,A D T FIRE AND SECURITY PLC,15/06/2018,490.40,"40000-REPAIRS,ALTERATIONS & MAINTENANCE-PREM",ARBORETUM HLF,Premises,Revenue
Walsall Council,http://opendatacommunities.org/id/metropolitan-district-council/walsall,WC93-18,30/06/2018,Economy & Environment,A D T FIRE AND SECURITY PLC,15/06/2018,541.50,"40000-REPAIRS,ALTERATIONS & MAINTENANCE-PREM",ARBORETUM HLF,Premises,Revenue
Walsall Council,http://opendatacommunities.org/id/metropolitan-district-council/walsall,WC93-19,30/06/2018,Economy & Environment,A D T FIRE AND SECURITY PLC,15/06/2018,628.08,"40000-REPAIRS,ALTERATIONS & MAINTENANCE-PREM",ARBORETUM HLF,Premises,Revenue
Walsall Council,http://opendatacommunities.org/id/metropolitan-district-council/walsall,WC93-20,30/06/2018,Economy & Environment,A F BLAKEMORE & SON LTD,01/06/2018,234.06,61008-CONFECTIONERY/SNACKS-PROVISIONS,WALSALL GALA CENTRE,Supplies & Services,Revenue
Walsall Council,http://opendatacommunities.org/id/metropolitan-district-council/walsall,WC93-21,30/06/2018,Economy & Environment,A F BLAKEMORE & SON LTD,18/06/2018,250.56,61018-DRINKS-PROVISIONS,DARLASTON LEISURE CENTRE,Supplies & Services,Revenue
Walsall Council,http://opendatacommunities.org/id/metropolitan-district-council/walsall,WC93-22,30/06/2018,Economy & Environment,A F BLAKEMORE & SON LTD,19/06/2018,276.04,61008-CONFECTIONERY/SNACKS-PROVISIONS,OAK PARK,Supplies & Services,Revenue
Walsall Council,http://opendatacommunities.org/id/metropolitan-district-council/walsall,WC93-23,30/06/2018,Economy & Environment,A F BLAKEMORE & SON LTD,18/06/2018,277.70,61008-CONFECTIONERY/SNACKS-PROVISIONS,OAK PARK,Supplies & Services,Revenue
Walsall Council,http://opendatacommunities.org/id/metropolitan-district-council/walsall,WC93-24,30/06/2018,Economy & Environment,A F BLAKEMORE & SON LTD,04/06/2018,287.39,61018-DRINKS-PROVISIONS,OAK PARK,Supplies & Services,Revenue
Walsall Council,http://opendatacommunities.org/id/metropolitan-district-council/walsall,WC93-25,30/06/2018,Economy & Environment,A F BLAKEMORE & SON LTD,19/06/2018,302.18,61009-BEVERAGES-PROVISIONS,FOREST ARTS CENTRE,Supplies & Services,Revenue
Walsall Council,http://opendatacommunities.org/id/metropolitan-district-council/walsall,WC93-26,30/06/2018,Adult Social Care,A F BLAKEMORE & SON LTD,19/06/2018,311.57,61016-FOOD AND BEVERAGES-PROVISIONS,HOLLYBANK,Supplies & Services,Revenue
Walsall Council,http://opendatacommunities.org/id/metropolitan-district-council/walsall,WC93-27,30/06/2018,Economy & Environment,A F BLAKEMORE & SON LTD,22/06/2018,359.76,61018-DRINKS-PROVISIONS,OAK PARK,Supplies & Services,Revenue
Walsall Council,http://opendatacommunities.org/id/metropolitan-district-council/walsall,WC93-28,30/06/2018,Economy & Environment,A F BLAKEMORE & SON LTD,18/06/2018,479.51,61008-CONFECTIONERY/SNACKS-PROVISIONS,DARLASTON LEISURE CENTRE,Supplies & Services,Revenue
Walsall Council,http://opendatacommunities.org/id/metropolitan-district-council/walsall,WC93-29,30/06/2018,Adult Social Care,A F BLAKEMORE & SON LTD,18/06/2018,603.37,61016-FOOD AND BEVERAGES-PROVISIONS,GOSCOTE,Supplies & Services,Revenue
Walsall Council,http://opendatacommunities.org/id/metropolitan-district-council/walsall,WC93-30,30/06/2018,Childrens,AAA BEE JAY CARS,01/06/2018,"3,566.52",52000-WITH DRIVER-HIRE OF VEHICLES,HOME TO SCHOOL TRANSPORT,Transport,Revenue
Walsall Council,http://opendatacommunities.org/id/metropolitan-district-council/walsall,WC93-31,30/06/2018,Childrens,REDACTED,11/06/2018,472.50,76422-DIRECT PAYMENTS TO SOCIAL SERVICES CLIENTS,FAMILY SUPPORT - DIRECT PAYMENTS,Transfer Payments,Revenue
Walsall Council,http://opendatacommunities.org/id/metropolitan-district-council/walsall,WC93-32,30/06/2018,Adult Social Care,ABBEY COURT NURSING & RESIDEN,19/06/2018,"2,010.56",73373-RESIDENTIAL & NURSING CARE PLACEMENTS,OP PACKAGE/PLACEMENT COSTS,Third Party Payments,Revenue
Walsall Council,http://opendatacommunities.org/id/metropolitan-district-council/walsall,WC93-33,30/06/2018,Adult Social Care,ABBEY COURT NURSING & RESIDEN,19/06/2018,"2,010.56",73373-RESIDENTIAL & NURSING CARE PLACEMENTS,OP PACKAGE/PLACEMENT COSTS,Third Party Payments,Revenue
Walsall Council,http://opendatacommunities.org/id/metropolitan-district-council/walsall,WC93-34,30/06/2018,Adult Social Care,ABBEY COURT NURSING & RESIDEN,19/06/2018,"2,075.44",73373-RESIDENTIAL & NURSING CARE PLACEMENTS,OP PACKAGE/PLACEMENT COSTS,Third Party Payments,Revenue
Walsall Council,http://opendatacommunities.org/id/metropolitan-district-council/walsall,WC93-35,30/06/2018,Adult Social Care,ABBEY COURT NURSING & RESIDEN,05/06/2018,"2,077.58",73373-RESIDENTIAL & NURSING CARE PLACEMENTS,OP PACKAGE/PLACEMENT COSTS,Third Party Payments,Revenue
Walsall Council,http://opendatacommunities.org/id/metropolitan-district-council/walsall,WC93-36,30/06/2018,Adult Social Care,ABBEY COURT NURSING & RESIDEN,05/06/2018,"2,258.22",73373-RESIDENTIAL & NURSING CARE PLACEMENTS,OP PACKAGE/PLACEMENT COSTS,Third Party Payments,Revenue
Walsall Council,http://opendatacommunities.org/id/metropolitan-district-council/walsall,WC93-37,30/06/2018,Adult Social Care,ABBEY HEALTHCARE HOMES LTD,19/06/2018,"1,699.28",73373-RESIDENTIAL & NURSING CARE PLACEMENTS,PD PACKAGE/PLACEMENT COSTS,Third Party Payments,Revenue
Walsall Council,http://opendatacommunities.org/id/metropolitan-district-council/walsall,WC93-38,30/06/2018,Adult Social Care,ABBEY HEALTHCARE HOMES LTD,26/06/2018,"2,294.08",73373-RESIDENTIAL & NURSING CARE PLACEMENTS,PD PACKAGE/PLACEMENT COSTS,Third Party Payments,Revenue
Walsall Council,http://opendatacommunities.org/id/metropolitan-district-council/walsall,WC93-39,30/06/2018,Adult Social Care,ABBEY HEALTHCARE HOMES LTD,19/06/2018,"3,000.00",73373-RESIDENTIAL & NURSING CARE PLACEMENTS,LD PACKAGE/PLACEMENT COSTS,Third Party Payments,Revenue
Walsall Council,http://opendatacommunities.org/id/metropolitan-district-council/walsall,WC93-40,30/06/2018,Adult Social Care,ABBEY HEALTHCARE HOMES LTD,19/06/2018,"3,000.00",73373-RESIDENTIAL & NURSING CARE PLACEMENTS,OP PACKAGE/PLACEMENT COSTS,Third Party Payments,Revenue
Walsall Council,http://opendatacommunities.org/id/metropolitan-district-council/walsall,WC93-41,30/06/2018,Adult Social Care,ABBEY HEALTHCARE HOMES LTD,19/06/2018,"3,200.00",73373-RESIDENTIAL & NURSING CARE PLACEMENTS,OP PACKAGE/PLACEMENT COSTS,Third Party Payments,Revenue
Walsall Council,http://opendatacommunities.org/id/metropolitan-district-council/walsall,WC93-42,30/06/2018,Childrens,ABC DAY NURSERY (WILLENHALL) LIMITED,01/06/2018,"21,715.20",66505-OTHER-GRANTS TO OTHER ORGS,EARLY YEARS - 3 YR OLDS,Third Party Payments,Revenue
Walsall Council,http://opendatacommunities.org/id/metropolitan-district-council/walsall,WC93-43,30/06/2018,Childrens,ABC FOSTERING,18/06/2018,"2,635.20",74037-INDEPENDENT FOSTER CARE-OTH AGENCY PROVISION,EXTERNAL FOSTER CARE PROVISION,Third Party Payments,Revenue
Walsall Council,http://opendatacommunities.org/id/metropolitan-district-council/walsall,WC93-44,30/06/2018,Childrens,ABC FOSTERING,18/06/2018,"2,859.48",74037-INDEPENDENT FOSTER CARE-OTH AGENCY PROVISION,EXTERNAL FOSTER CARE PROVISION,Third Party Payments,Revenue
Walsall Council,http://opendatacommunities.org/id/metropolitan-district-council/walsall,WC93-45,30/06/2018,Childrens,ABC FOSTERING,18/06/2018,"2,932.80",74037-INDEPENDENT FOSTER CARE-OTH AGENCY PROVISION,EXTERNAL FOSTER CARE PROVISION,Third Party Payments,Revenue
Walsall Council,http://opendatacommunities.org/id/metropolitan-district-council/walsall,WC93-46,30/06/2018,Childrens,ABC FOSTERING,18/06/2018,"3,042.00",74037-INDEPENDENT FOSTER CARE-OTH AGENCY PROVISION,EXTERNAL FOSTER CARE PROVISION,Third Party Payments,Revenue
Walsall Council,http://opendatacommunities.org/id/metropolitan-district-council/walsall,WC93-47,30/06/2018,Childrens,ABC FOSTERING,18/06/2018,"3,120.00",74037-INDEPENDENT FOSTER CARE-OTH AGENCY PROVISION,EXTERNAL FOSTER CARE PROVISION,Third Party Payments,Revenue
Walsall Council,http://opendatacommunities.org/id/metropolitan-district-council/walsall,WC93-48,30/06/2018,Adult Social Care,REDACTED,11/06/2018,"2,026.45",76422-DIRECT PAYMENTS TO SOCIAL SERVICES CLIENTS,LD PACKAGE/PLACEMENT COSTS,Transfer Payments,Revenue
Walsall Council,http://opendatacommunities.org/id/metropolitan-district-council/walsall,WC93-49,30/06/2018,Economy & Environment,ABEL ALARM CO LTD,22/06/2018,688.65,40015-ALARM CALL OUTS-OP MTCE,CEMETERIES CENTRAL ADMINISTRATION,Premises,Revenue
Walsall Council,http://opendatacommunities.org/id/metropolitan-district-council/walsall,WC93-50,30/06/2018,Adult Social Care,REDACTED,11/06/2018,"2,499.00",76422-DIRECT PAYMENTS TO SOCIAL SERVICES CLIENTS,LD PACKAGE/PLACEMENT COSTS,Transfer Payments,Revenue
Walsall Council,http://opendatacommunities.org/id/metropolitan-district-council/walsall,WC93-51,30/06/2018,Childrens,ABLEWELL CARS,01/06/2018,"6,583.68",52000-WITH DRIVER-HIRE OF VEHICLES,HOME TO SCHOOL TRANSPORT,Transport,Revenue
Walsall Council,http://opendatacommunities.org/id/metropolitan-district-council/walsall,WC93-52,30/06/2018,Childrens,ABU BAKR NURSERY,01/06/2018,"11,536.20",66505-OTHER-GRANTS TO OTHER ORGS,EARLY YEARS - 3 YR OLDS,Third Party Payments,Revenue
Walsall Council,http://opendatacommunities.org/id/metropolitan-district-council/walsall,WC93-53,30/06/2018,Resources and Transformation,ACCESS CONTROL SOLUTIONS (UK) LTD,13/06/2018,250.00,"40000-REPAIRS,ALTERATIONS & MAINTENANCE-PREM",CENTRALISED MAINTENANCE,Premises,Revenue
Walsall Council,http://opendatacommunities.org/id/metropolitan-district-council/walsall,WC93-54,30/06/2018,Resources and Transformation,ACCESS CONTROL SOLUTIONS (UK) LTD,13/06/2018,270.00,"40000-REPAIRS,ALTERATIONS & MAINTENANCE-PREM",CENTRALISED MAINTENANCE,Premises,Revenue
Walsall Council,http://opendatacommunities.org/id/metropolitan-district-council/walsall,WC93-55,30/06/2018,Adult Social Care,ACCORD HOUSING ASSOCIATION LTD#135,05/06/2018,635.92,73373-RESIDENTIAL & NURSING CARE PLACEMENTS,LD PACKAGE/PLACEMENT COSTS,Third Party Payments,Revenue
Walsall Council,http://opendatacommunities.org/id/metropolitan-district-council/walsall,WC93-56,30/06/2018,Adult Social Care,ACCORD HOUSING ASSOCIATION LTD#135,19/06/2018,746.15,73372-DOMICILIARY CARE,MENTAL HEALTH PACKAGE/PLACEMENT COSTS,Third Party Payments,Revenue
Walsall Council,http://opendatacommunities.org/id/metropolitan-district-council/walsall,WC93-57,30/06/2018,Adult Social Care,ACCORD HOUSING ASSOCIATION LTD#135,19/06/2018,755.60,73372-DOMICILIARY CARE,MENTAL HEALTH PACKAGE/PLACEMENT COSTS,Third Party Payments,Revenue
Walsall Council,http://opendatacommunities.org/id/metropolitan-district-council/walsall,WC93-58,30/06/2018,Adult Social Care,ACCORD HOUSING ASSOCIATION LTD#135,19/06/2018,826.40,73372-DOMICILIARY CARE,MENTAL HEALTH PACKAGE/PLACEMENT COSTS,Third Party Payments,Revenue
Walsall Council,http://opendatacommunities.org/id/metropolitan-district-council/walsall,WC93-59,30/06/2018,Adult Social Care,ACCORD HOUSING ASSOCIATION LTD#135,19/06/2018,991.70,73372-DOMICILIARY CARE,MENTAL HEALTH PACKAGE/PLACEMENT COSTS,Third Party Payments,Revenue
Walsall Council,http://opendatacommunities.org/id/metropolitan-district-council/walsall,WC93-60,30/06/2018,Adult Social Care,ACCORD HOUSING ASSOCIATION LTD#135,19/06/2018,991.70,73372-DOMICILIARY CARE,MENTAL HEALTH PACKAGE/PLACEMENT COSTS,Third Party Payments,Revenue
Walsall Council,http://opendatacommunities.org/id/metropolitan-district-council/walsall,WC93-61,30/06/2018,Adult Social Care,ACCORD HOUSING ASSOCIATION LTD#135,19/06/2018,"1,227.85",73372-DOMICILIARY CARE,MENTAL HEALTH PACKAGE/PLACEMENT COSTS,Third Party Payments,Revenue
Walsall Council,http://opendatacommunities.org/id/metropolitan-district-council/walsall,WC93-62,30/06/2018,Adult Social Care,ACCORD HOUSING ASSOCIATION LTD#135,19/06/2018,"1,416.75",73372-DOMICILIARY CARE,MENTAL HEALTH PACKAGE/PLACEMENT COSTS,Third Party Payments,Revenue
Walsall Council,http://opendatacommunities.org/id/metropolitan-district-council/walsall,WC93-63,30/06/2018,Adult Social Care,ACCORD HOUSING ASSOCIATION LTD#135,19/06/2018,"1,652.85",73372-DOMICILIARY CARE,MENTAL HEALTH PACKAGE/PLACEMENT COSTS,Third Party Payments,Revenue
Walsall Council,http://opendatacommunities.org/id/metropolitan-district-council/walsall,WC93-64,30/06/2018,Adult Social Care,ACCORD HOUSING ASSOCIATION LTD#135,19/06/2018,"1,652.85",73372-DOMICILIARY CARE,MENTAL HEALTH PACKAGE/PLACEMENT COSTS,Third Party Payments,Revenue
Walsall Council,http://opendatacommunities.org/id/metropolitan-district-council/walsall,WC93-65,30/06/2018,Adult Social Care,ACCORD HOUSING ASSOCIATION LTD#135,19/06/2018,"1,702.29",73373-RESIDENTIAL & NURSING CARE PLACEMENTS,LD PACKAGE/PLACEMENT COSTS,Third Party Payments,Revenue
Walsall Council,http://opendatacommunities.org/id/metropolitan-district-council/walsall,WC93-66,30/06/2018,Adult Social Care,ACCORD HOUSING ASSOCIATION LTD#135,19/06/2018,"1,959.80",73372-DOMICILIARY CARE,MENTAL HEALTH PACKAGE/PLACEMENT COSTS,Third Party Payments,Revenue
Walsall Council,http://opendatacommunities.org/id/metropolitan-district-council/walsall,WC93-67,30/06/2018,Adult Social Care,ACCORD HOUSING ASSOCIATION LTD#135,26/06/2018,"4,505.39",73373-RESIDENTIAL & NURSING CARE PLACEMENTS,LD PACKAGE/PLACEMENT COSTS,Third Party Payments,Revenue
Walsall Council,http://opendatacommunities.org/id/metropolitan-district-council/walsall,WC93-68,30/06/2018,Adult Social Care,ACCORD HOUSING ASSOCIATION LTD#135,26/06/2018,"4,505.39",73373-RESIDENTIAL & NURSING CARE PLACEMENTS,LD PACKAGE/PLACEMENT COSTS,Third Party Payments,Revenue
Walsall Council,http://opendatacommunities.org/id/metropolitan-district-council/walsall,WC93-69,30/06/2018,Adult Social Care,ACCORD HOUSING ASSOCIATION LTD#135,19/06/2018,"4,505.40",73373-RESIDENTIAL & NURSING CARE PLACEMENTS,LD PACKAGE/PLACEMENT COSTS,Third Party Payments,Revenue
Walsall Council,http://opendatacommunities.org/id/metropolitan-district-council/walsall,WC93-70,30/06/2018,Adult Social Care,ACCORD HOUSING ASSOCIATION LTD#135,19/06/2018,"4,505.40",73373-RESIDENTIAL & NURSING CARE PLACEMENTS,LD PACKAGE/PLACEMENT COSTS,Third Party Payments,Revenue
Walsall Council,http://opendatacommunities.org/id/metropolitan-district-council/walsall,WC93-71,30/06/2018,Adult Social Care,ACCORD HOUSING ASSOCIATION LTD#135,19/06/2018,"4,505.40",73373-RESIDENTIAL & NURSING CARE PLACEMENTS,LD PACKAGE/PLACEMENT COSTS,Third Party Payments,Revenue
Walsall Council,http://opendatacommunities.org/id/metropolitan-district-council/walsall,WC93-72,30/06/2018,Adult Social Care,ACCORD HOUSING ASSOCIATION LTD#135,26/06/2018,"6,288.07",73373-RESIDENTIAL & NURSING CARE PLACEMENTS,LD PACKAGE/PLACEMENT COSTS,Third Party Payments,Revenue
Walsall Council,http://opendatacommunities.org/id/metropolitan-district-council/walsall,WC93-73,30/06/2018,Adult Social Care,ACCORD HOUSING ASSOCIATION LTD#135,19/06/2018,"6,288.08",73373-RESIDENTIAL & NURSING CARE PLACEMENTS,LD PACKAGE/PLACEMENT COSTS,Third Party Payments,Revenue
Walsall Council,http://opendatacommunities.org/id/metropolitan-district-council/walsall,WC93-74,30/06/2018,Adult Social Care,ACCORD HOUSING ASSOCIATION LTD#135,19/06/2018,"6,288.08",73373-RESIDENTIAL & NURSING CARE PLACEMENTS,LD PACKAGE/PLACEMENT COSTS,Third Party Payments,Revenue
Walsall Council,http://opendatacommunities.org/id/metropolitan-district-council/walsall,WC93-75,30/06/2018,Adult Social Care,ACCORD HOUSING ASSOCIATION LTD#135,19/06/2018,"6,288.08",73373-RESIDENTIAL & NURSING CARE PLACEMENTS,LD PACKAGE/PLACEMENT COSTS,Third Party Payments,Revenue
Walsall Council,http://opendatacommunities.org/id/metropolitan-district-council/walsall,WC93-76,30/06/2018,Childrens,ACCORD HOUSING ASSOCIATION LTD#135,01/06/2018,"6,655.50",63102-CONSULTANTS FEES - CORPORATE,EARLY HELP HUB,Supplies & Services,Revenue
Walsall Council,http://opendatacommunities.org/id/metropolitan-district-council/walsall,WC93-77,30/06/2018,Childrens,ACCORD HOUSING ASSOCIATION LTD#135,22/06/2018,"6,655.50",63102-CONSULTANTS FEES - CORPORATE,EARLY HELP HUB,Supplies & Services,Revenue
Walsall Council,http://opendatacommunities.org/id/metropolitan-district-council/walsall,WC93-78,30/06/2018,Resources and Transformation,ACCORD HOUSING ASSOCIATION LTD#135,22/06/2018,"10,040.83",73365-BLOCK GROSS-SUPPORTING PEOPLE,HOMELESSNESS PREVENTION STRATEGY,Third Party Payments,Revenue
Walsall Council,http://opendatacommunities.org/id/metropolitan-district-council/walsall,WC93-79,30/06/2018,Adult Social Care,ACCORD HOUSING ASSOCIATION LTD#135,20/06/2018,"37,573.84",73372-DOMICILIARY CARE,OP PACKAGE/PLACEMENT COSTS,Third Party Payments,Revenue
Walsall Council,http://opendatacommunities.org/id/metropolitan-district-council/walsall,WC93-80,30/06/2018,Economy & Environment,ACCORD HOUSING ASSOCIATION LTD#135,01/06/2018,"191,880.70",66500-GRANTS TO OTHER ORGS,CITY DEAL WELFARE PILOT,Third Party Payments,Revenue
Walsall Council,http://opendatacommunities.org/id/metropolitan-district-council/walsall,WC93-81,30/06/2018,Adult Social Care,ACE CARE AGENCY,25/06/2018,681.65,73372-DOMICILIARY CARE,OP PACKAGE/PLACEMENT COSTS,Third Party Payments,Revenue
Walsall Council,http://opendatacommunities.org/id/metropolitan-district-council/walsall,WC93-82,30/06/2018,Adult Social Care,ACE CARE AGENCY,25/06/2018,845.96,73372-DOMICILIARY CARE,OP PACKAGE/PLACEMENT COSTS,Third Party Payments,Revenue
Walsall Council,http://opendatacommunities.org/id/metropolitan-district-council/walsall,WC93-83,30/06/2018,Adult Social Care,ACE CARE AGENCY,25/06/2018,990.00,73372-DOMICILIARY CARE,OP PACKAGE/PLACEMENT COSTS,Third Party Payments,Revenue
Walsall Council,http://opendatacommunities.org/id/metropolitan-district-council/walsall,WC93-84,30/06/2018,Adult Social Care,ACEPAY LTD (COTTAGE NUR HOME),12/06/2018,-392.86,73373-RESIDENTIAL & NURSING CARE PLACEMENTS,OP PACKAGE/PLACEMENT COSTS,Third Party Payments,Revenue
Walsall Council,http://opendatacommunities.org/id/metropolitan-district-council/walsall,WC93-85,30/06/2018,Adult Social Care,ACEPAY LTD (COTTAGE NUR HOME),12/06/2018,364.23,73373-RESIDENTIAL & NURSING CARE PLACEMENTS,OP PACKAGE/PLACEMENT COSTS,Third Party Payments,Revenue
Walsall Council,http://opendatacommunities.org/id/metropolitan-district-council/walsall,WC93-86,30/06/2018,Adult Social Care,ACEPAY LTD (COTTAGE NUR HOME),12/06/2018,"1,809.47",73373-RESIDENTIAL & NURSING CARE PLACEMENTS,OP PACKAGE/PLACEMENT COSTS,Third Party Payments,Revenue
Walsall Council,http://opendatacommunities.org/id/metropolitan-district-council/walsall,WC93-87,30/06/2018,Adult Social Care,ACEPAY LTD (COTTAGE NUR HOME),12/06/2018,"2,185.37",73373-RESIDENTIAL & NURSING CARE PLACEMENTS,OP PACKAGE/PLACEMENT COSTS,Third Party Payments,Revenue
Walsall Council,http://opendatacommunities.org/id/metropolitan-district-council/walsall,WC93-88,30/06/2018,Adult Social Care,ACEPAY LTD (COTTAGE NUR HOME),12/06/2018,"2,185.37",73373-RESIDENTIAL & NURSING CARE PLACEMENTS,OP PACKAGE/PLACEMENT COSTS,Third Party Payments,Revenue
Walsall Council,http://opendatacommunities.org/id/metropolitan-district-council/walsall,WC93-89,30/06/2018,Adult Social Care,ACEPAY LTD (COTTAGE NUR HOME),12/06/2018,"2,185.37",73373-RESIDENTIAL & NURSING CARE PLACEMENTS,OP PACKAGE/PLACEMENT COSTS,Third Party Payments,Revenue
Walsall Council,http://opendatacommunities.org/id/metropolitan-district-council/walsall,WC93-90,30/06/2018,Adult Social Care,ACEPAY LTD (COTTAGE NUR HOME),19/06/2018,"2,185.37",73373-RESIDENTIAL & NURSING CARE PLACEMENTS,OP PACKAGE/PLACEMENT COSTS,Third Party Payments,Revenue
Walsall Council,http://opendatacommunities.org/id/metropolitan-district-council/walsall,WC93-91,30/06/2018,Adult Social Care,ACEPAY LTD (COTTAGE NUR HOME),12/06/2018,"2,185.38",73373-RESIDENTIAL & NURSING CARE PLACEMENTS,OP PACKAGE/PLACEMENT COSTS,Third Party Payments,Revenue
Walsall Council,http://opendatacommunities.org/id/metropolitan-district-council/walsall,WC93-92,30/06/2018,Adult Social Care,ACEPAY LTD (COTTAGE NUR HOME),12/06/2018,"2,185.38",73373-RESIDENTIAL & NURSING CARE PLACEMENTS,OP PACKAGE/PLACEMENT COSTS,Third Party Payments,Revenue
Walsall Council,http://opendatacommunities.org/id/metropolitan-district-council/walsall,WC93-93,30/06/2018,Adult Social Care,ACEPAY LTD (COTTAGE NUR HOME),19/06/2018,"3,715.13",73373-RESIDENTIAL & NURSING CARE PLACEMENTS,OP PACKAGE/PLACEMENT COSTS,Third Party Payments,Revenue
Walsall Council,http://opendatacommunities.org/id/metropolitan-district-council/walsall,WC93-94,30/06/2018,Childrens,ACORN ABA LIMITED,19/06/2018,396.00,66502-TOP UP FUNDING -GRANTS TO SCHOOLS,INDEPENDENT PROVIDERS - SPECIAL & AP,Third Party Payments,Revenue
Walsall Council,http://opendatacommunities.org/id/metropolitan-district-council/walsall,WC93-95,30/06/2018,Adult Social Care,ACORN REST HOME,26/06/2018,"2,140.00",73373-RESIDENTIAL & NURSING CARE PLACEMENTS,OP PACKAGE/PLACEMENT COSTS,Third Party Payments,Revenue
Walsall Council,http://opendatacommunities.org/id/metropolitan-district-council/walsall,WC93-96,30/06/2018,Economy & Environment,ACRYLIC DESIGN UK LIMITED,22/06/2018,209.75,73025-PROFESSIONAL SERVICES-PRIV CONTRACTOR & OTHER AGENCIES,PARKING SERVICES OFF-STREET,Third Party Payments,Revenue
Walsall Council,http://opendatacommunities.org/id/metropolitan-district-council/walsall,WC93-97,30/06/2018,Economy & Environment,ACTION DIGITAL MEDIA LTD,25/06/2018,427.00,"62521-INTERPRETATION,TRANSLATION & HUMAN AIDS TO TRANSCRIPTION",NAG - TEMPORARY EXHIBITIONS,Supplies & Services,Revenue
Walsall Council,http://opendatacommunities.org/id/metropolitan-district-council/walsall,WC93-98,30/06/2018,Economy & Environment,ACTION DIGITAL MEDIA LTD,01/06/2018,525.60,"62521-INTERPRETATION,TRANSLATION & HUMAN AIDS TO TRANSCRIPTION",NAG - TEMPORARY EXHIBITIONS,Supplies & Services,Revenue
Walsall Council,http://opendatacommunities.org/id/metropolitan-district-council/walsall,WC93-99,30/06/2018,Economy & Environment,ACTION DIGITAL MEDIA LTD,01/06/2018,"1,570.00",40024-IRONMONGERY & SIGNS-OP MTCE,NAG - EXTERNALLY FUNDED PROJECTS,Premises,Revenue
Walsall Council,http://opendatacommunities.org/id/metropolitan-district-council/walsall,WC93-100,30/06/2018,Economy & Environment,ACTION MIDLANDS LTD,01/06/2018,150.00,63000-PROFESSIONAL FEES AND SERVICES,YEI (IMPACT) PROGRAMME,Supplies & Services,Revenue
Walsall Council,http://opendatacommunities.org/id/metropolitan-district-council/walsall,WC93-101,30/06/2018,Economy & Environment,ACTION MIDLANDS LTD,01/06/2018,150.00,63000-PROFESSIONAL FEES AND SERVICES,YEI ESF FUNDING,Supplies & Services,Revenue
Walsall Council,http://opendatacommunities.org/id/metropolitan-district-council/walsall,WC93-102,30/06/2018,Economy & Environment,ACTION MIDLANDS LTD,22/06/2018,150.00,63000-PROFESSIONAL FEES AND SERVICES,YEI (IMPACT) PROGRAMME,Supplies & Services,Revenue
Walsall Council,http://opendatacommunities.org/id/metropolitan-district-council/walsall,WC93-103,30/06/2018,Economy & Environment,ACTION MIDLANDS LTD,22/06/2018,150.00,63000-PROFESSIONAL FEES AND SERVICES,YEI ESF FUNDING,Supplies & Services,Revenue
Walsall Council,http://opendatacommunities.org/id/metropolitan-district-council/walsall,WC93-104,30/06/2018,Economy & Environment,ACTION MIDLANDS LTD,22/06/2018,300.00,63000-PROFESSIONAL FEES AND SERVICES,YEI (IMPACT) PROGRAMME,Supplies & Services,Revenue
Walsall Council,http://opendatacommunities.org/id/metropolitan-district-council/walsall,WC93-105,30/06/2018,Economy & Environment,ACTION MIDLANDS LTD,22/06/2018,300.00,63000-PROFESSIONAL FEES AND SERVICES,YEI ESF FUNDING,Supplies & Services,Revenue
Walsall Council,http://opendatacommunities.org/id/metropolitan-district-council/walsall,WC93-106,30/06/2018,Adult Social Care,ACTION ON HEARING LOSS,27/06/2018,"1,008.00",73372-DOMICILIARY CARE,MENTAL HEALTH PACKAGE/PLACEMENT COSTS,Third Party Payments,Revenue
Walsall Council,http://opendatacommunities.org/id/metropolitan-district-council/walsall,WC93-107,30/06/2018,Adult Social Care,ACTON BANKS LTD,18/06/2018,"1,585.60",73025-PROFESSIONAL SERVICES-PRIV CONTRACTOR & OTHER AGENCIES,HOLLYBANK,Third Party Payments,Revenue
Walsall Council,http://opendatacommunities.org/id/metropolitan-district-council/walsall,WC93-108,30/06/2018,Adult Social Care,ACTON BANKS LTD,18/06/2018,"2,104.58",73025-PROFESSIONAL SERVICES-PRIV CONTRACTOR & OTHER AGENCIES,HOLLYBANK,Third Party Payments,Revenue
Walsall Council,http://opendatacommunities.org/id/metropolitan-district-council/walsall,WC93-109,30/06/2018,Adult Social Care,ACTON BANKS LTD,18/06/2018,"3,210.12",73025-PROFESSIONAL SERVICES-PRIV CONTRACTOR & OTHER AGENCIES,HOLLYBANK,Third Party Payments,Revenue
Walsall Council,http://opendatacommunities.org/id/metropolitan-district-council/walsall,WC93-110,30/06/2018,Adult Social Care,REDACTED,11/06/2018,553.15,76422-DIRECT PAYMENTS TO SOCIAL SERVICES CLIENTS,OP PACKAGE/PLACEMENT COSTS,Transfer Payments,Revenue
Walsall Council,http://opendatacommunities.org/id/metropolitan-district-council/walsall,WC93-111,30/06/2018,Adult Social Care,REDACTED,11/06/2018,560.75,76422-DIRECT PAYMENTS TO SOCIAL SERVICES CLIENTS,LD PACKAGE/PLACEMENT COSTS,Transfer Payments,Revenue
Walsall Council,http://opendatacommunities.org/id/metropolitan-district-council/walsall,WC93-112,30/06/2018,Resources and Transformation,ADELIE FOODS LTD,19/06/2018,614.11,61305-CATERING,TOWN HALL RESTAURANT BISTRO,Supplies & Services,Revenue
Walsall Council,http://opendatacommunities.org/id/metropolitan-district-council/walsall,WC93-113,30/06/2018,Resources and Transformation,ADELIE FOODS LTD,20/06/2018,826.83,61305-CATERING,TOWN HALL RESTAURANT BISTRO,Supplies & Services,Revenue
Walsall Council,http://opendatacommunities.org/id/metropolitan-district-council/walsall,WC93-114,30/06/2018,Resources and Transformation,ADELIE FOODS LTD,06/06/2018,831.27,61305-CATERING,TOWN HALL RESTAURANT BISTRO,Supplies & Services,Revenue
Walsall Council,http://opendatacommunities.org/id/metropolitan-district-council/walsall,WC93-115,30/06/2018,Resources and Transformation,ADELIE FOODS LTD,06/06/2018,891.71,61305-CATERING,TOWN HALL RESTAURANT BISTRO,Supplies & Services,Revenue
Walsall Council,http://opendatacommunities.org/id/metropolitan-district-council/walsall,WC93-116,30/06/2018,Resources and Transformation,ADELIE FOODS LTD,06/06/2018,998.05,61305-CATERING,TOWN HALL RESTAURANT BISTRO,Supplies & Services,Revenue
Walsall Council,http://opendatacommunities.org/id/metropolitan-district-council/walsall,WC93-117,30/06/2018,Resources and Transformation,ADELIE FOODS LTD,19/06/2018,"1,052.72",61305-CATERING,TOWN HALL RESTAURANT BISTRO,Supplies & Services,Revenue
Walsall Council,http://opendatacommunities.org/id/metropolitan-district-council/walsall,WC93-118,30/06/2018,Adult Social Care,REDACTED,11/06/2018,"1,270.00",76422-DIRECT PAYMENTS TO SOCIAL SERVICES CLIENTS,OP PACKAGE/PLACEMENT COSTS,Transfer Payments,Revenue
Walsall Council,http://opendatacommunities.org/id/metropolitan-district-council/walsall,WC93-119,30/06/2018,Adult Social Care,ADMIRAL SELF STORAGE LTD,18/06/2018,215.10,63000-PROFESSIONAL FEES AND SERVICES,MENTAL HEALTH MANAGEMENT TEAM,Supplies & Services,Revenue
Walsall Council,http://opendatacommunities.org/id/metropolitan-district-council/walsall,WC93-120,30/06/2018,Childrens,ADMIRAL SELF STORAGE LTD,13/06/2018,"1,303.57",63000-PROFESSIONAL FEES AND SERVICES,EDUCATION BUSINESS PARTNERSHIP (EBP),Supplies & Services,Revenue
Walsall Council,http://opendatacommunities.org/id/metropolitan-district-council/walsall,WC93-121,30/06/2018,Childrens,REDACTED,04/06/2018,333.12,74510-RESIDENTS ORDERS,ADOPTION ALLOWANCES,Third Party Payments,Revenue
Walsall Council,http://opendatacommunities.org/id/metropolitan-district-council/walsall,WC93-122,30/06/2018,Childrens,REDACTED,04/06/2018,361.12,74510-RESIDENTS ORDERS,ADOPTION ALLOWANCES,Third Party Payments,Revenue
Walsall Council,http://opendatacommunities.org/id/metropolitan-district-council/walsall,WC93-123,30/06/2018,Adult Social Care,ADVANCE HEALTH CARE (UK) LTD,14/06/2018,-442.58,73025-PROFESSIONAL SERVICES-PRIV CONTRACTOR & OTHER AGENCIES,COMMUNITY INTERMEDIATE CARE,Third Party Payments,Revenue
Walsall Council,http://opendatacommunities.org/id/metropolitan-district-council/walsall,WC93-124,30/06/2018,Adult Social Care,ADVANCE HEALTH CARE (UK) LTD,25/06/2018,-442.58,73025-PROFESSIONAL SERVICES-PRIV CONTRACTOR & OTHER AGENCIES,COMMUNITY INTERMEDIATE CARE,Third Party Payments,Revenue
Walsall Council,http://opendatacommunities.org/id/metropolitan-district-council/walsall,WC93-125,30/06/2018,Adult Social Care,ADVANCE HEALTH CARE (UK) LTD,08/06/2018,252.90,73025-PROFESSIONAL SERVICES-PRIV CONTRACTOR & OTHER AGENCIES,COMMUNITY INTERMEDIATE CARE,Third Party Payments,Revenue
Walsall Council,http://opendatacommunities.org/id/metropolitan-district-council/walsall,WC93-126,30/06/2018,Adult Social Care,ADVANCE HEALTH CARE (UK) LTD,18/06/2018,252.90,73025-PROFESSIONAL SERVICES-PRIV CONTRACTOR & OTHER AGENCIES,COMMUNITY INTERMEDIATE CARE,Third Party Payments,Revenue
Walsall Council,http://opendatacommunities.org/id/metropolitan-district-council/walsall,WC93-127,30/06/2018,Adult Social Care,ADVANCE HEALTH CARE (UK) LTD,21/06/2018,252.90,73025-PROFESSIONAL SERVICES-PRIV CONTRACTOR & OTHER AGENCIES,COMMUNITY INTERMEDIATE CARE,Third Party Payments,Revenue
Walsall Council,http://opendatacommunities.org/id/metropolitan-district-council/walsall,WC93-128,30/06/2018,Adult Social Care,ADVANCE HEALTH CARE (UK) LTD,21/06/2018,252.90,73025-PROFESSIONAL SERVICES-PRIV CONTRACTOR & OTHER AGENCIES,COMMUNITY INTERMEDIATE CARE,Third Party Payments,Revenue
Walsall Council,http://opendatacommunities.org/id/metropolitan-district-council/walsall,WC93-129,30/06/2018,Adult Social Care,ADVANCE HEALTH CARE (UK) LTD,14/06/2018,259.93,73025-PROFESSIONAL SERVICES-PRIV CONTRACTOR & OTHER AGENCIES,COMMUNITY INTERMEDIATE CARE,Third Party Payments,Revenue
Walsall Council,http://opendatacommunities.org/id/metropolitan-district-council/walsall,WC93-130,30/06/2018,Adult Social Care,ADVANCE HEALTH CARE (UK) LTD,18/06/2018,266.95,73025-PROFESSIONAL SERVICES-PRIV CONTRACTOR & OTHER AGENCIES,COMMUNITY INTERMEDIATE CARE,Third Party Payments,Revenue
Walsall Council,http://opendatacommunities.org/id/metropolitan-district-council/walsall,WC93-131,30/06/2018,Adult Social Care,ADVANCE HEALTH CARE (UK) LTD,21/06/2018,281.00,73025-PROFESSIONAL SERVICES-PRIV CONTRACTOR & OTHER AGENCIES,COMMUNITY INTERMEDIATE CARE,Third Party Payments,Revenue
Walsall Council,http://opendatacommunities.org/id/metropolitan-district-council/walsall,WC93-132,30/06/2018,Adult Social Care,ADVANCE HEALTH CARE (UK) LTD,20/06/2018,281.75,73025-PROFESSIONAL SERVICES-PRIV CONTRACTOR & OTHER AGENCIES,COMMUNITY INTERMEDIATE CARE,Third Party Payments,Revenue
Walsall Council,http://opendatacommunities.org/id/metropolitan-district-council/walsall,WC93-133,30/06/2018,Adult Social Care,ADVANCE HEALTH CARE (UK) LTD,21/06/2018,281.75,73025-PROFESSIONAL SERVICES-PRIV CONTRACTOR & OTHER AGENCIES,COMMUNITY INTERMEDIATE CARE,Third Party Payments,Revenue
Walsall Council,http://opendatacommunities.org/id/metropolitan-district-council/walsall,WC93-134,30/06/2018,Adult Social Care,ADVANCE HEALTH CARE (UK) LTD,21/06/2018,281.75,73025-PROFESSIONAL SERVICES-PRIV CONTRACTOR & OTHER AGENCIES,COMMUNITY INTERMEDIATE CARE,Third Party Payments,Revenue
Walsall Council,http://opendatacommunities.org/id/metropolitan-district-council/walsall,WC93-135,30/06/2018,Adult Social Care,ADVANCE HEALTH CARE (UK) LTD,27/06/2018,281.75,73025-PROFESSIONAL SERVICES-PRIV CONTRACTOR & OTHER AGENCIES,COMMUNITY INTERMEDIATE CARE,Third Party Payments,Revenue
Walsall Council,http://opendatacommunities.org/id/metropolitan-district-council/walsall,WC93-136,30/06/2018,Adult Social Care,ADVANCE HEALTH CARE (UK) LTD,14/06/2018,295.05,73025-PROFESSIONAL SERVICES-PRIV CONTRACTOR & OTHER AGENCIES,COMMUNITY INTERMEDIATE CARE,Third Party Payments,Revenue
Walsall Council,http://opendatacommunities.org/id/metropolitan-district-council/walsall,WC93-137,30/06/2018,Adult Social Care,ADVANCE HEALTH CARE (UK) LTD,21/06/2018,330.18,73025-PROFESSIONAL SERVICES-PRIV CONTRACTOR & OTHER AGENCIES,COMMUNITY INTERMEDIATE CARE,Third Party Payments,Revenue
Walsall Council,http://opendatacommunities.org/id/metropolitan-district-council/walsall,WC93-138,30/06/2018,Adult Social Care,ADVANCE HEALTH CARE (UK) LTD,13/06/2018,344.23,73025-PROFESSIONAL SERVICES-PRIV CONTRACTOR & OTHER AGENCIES,COMMUNITY INTERMEDIATE CARE,Third Party Payments,Revenue
Walsall Council,http://opendatacommunities.org/id/metropolitan-district-council/walsall,WC93-139,30/06/2018,Adult Social Care,ADVANCE HEALTH CARE (UK) LTD,13/06/2018,344.23,73025-PROFESSIONAL SERVICES-PRIV CONTRACTOR & OTHER AGENCIES,COMMUNITY INTERMEDIATE CARE,Third Party Payments,Revenue
Walsall Council,http://opendatacommunities.org/id/metropolitan-district-council/walsall,WC93-140,30/06/2018,Adult Social Care,ADVANCE HEALTH CARE (UK) LTD,13/06/2018,344.23,73025-PROFESSIONAL SERVICES-PRIV CONTRACTOR & OTHER AGENCIES,COMMUNITY INTERMEDIATE CARE,Third Party Payments,Revenue
Walsall Council,http://opendatacommunities.org/id/metropolitan-district-council/walsall,WC93-141,30/06/2018,Adult Social Care,ADVANCE HEALTH CARE (UK) LTD,21/06/2018,358.28,73025-PROFESSIONAL SERVICES-PRIV CONTRACTOR & OTHER AGENCIES,COMMUNITY INTERMEDIATE CARE,Third Party Payments,Revenue
Walsall Council,http://opendatacommunities.org/id/metropolitan-district-council/walsall,WC93-142,30/06/2018,Adult Social Care,ADVANCE HEALTH CARE (UK) LTD,21/06/2018,379.35,73025-PROFESSIONAL SERVICES-PRIV CONTRACTOR & OTHER AGENCIES,COMMUNITY INTERMEDIATE CARE,Third Party Payments,Revenue
Walsall Council,http://opendatacommunities.org/id/metropolitan-district-council/walsall,WC93-143,30/06/2018,Adult Social Care,ADVANCE HEALTH CARE (UK) LTD,27/06/2018,407.45,73025-PROFESSIONAL SERVICES-PRIV CONTRACTOR & OTHER AGENCIES,COMMUNITY INTERMEDIATE CARE,Third Party Payments,Revenue
Walsall Council,http://opendatacommunities.org/id/metropolitan-district-council/walsall,WC93-144,30/06/2018,Adult Social Care,ADVANCE HEALTH CARE (UK) LTD,08/06/2018,414.48,73025-PROFESSIONAL SERVICES-PRIV CONTRACTOR & OTHER AGENCIES,COMMUNITY INTERMEDIATE CARE,Third Party Payments,Revenue
Walsall Council,http://opendatacommunities.org/id/metropolitan-district-council/walsall,WC93-145,30/06/2018,Adult Social Care,ADVANCE HEALTH CARE (UK) LTD,21/06/2018,414.48,73025-PROFESSIONAL SERVICES-PRIV CONTRACTOR & OTHER AGENCIES,COMMUNITY INTERMEDIATE CARE,Third Party Payments,Revenue
Walsall Council,http://opendatacommunities.org/id/metropolitan-district-council/walsall,WC93-146,30/06/2018,Adult Social Care,ADVANCE HEALTH CARE (UK) LTD,08/06/2018,442.58,73025-PROFESSIONAL SERVICES-PRIV CONTRACTOR & OTHER AGENCIES,COMMUNITY INTERMEDIATE CARE,Third Party Payments,Revenue
Walsall Council,http://opendatacommunities.org/id/metropolitan-district-council/walsall,WC93-147,30/06/2018,Adult Social Care,ADVANCE HEALTH CARE (UK) LTD,08/06/2018,442.58,73025-PROFESSIONAL SERVICES-PRIV CONTRACTOR & OTHER AGENCIES,COMMUNITY INTERMEDIATE CARE,Third Party Payments,Revenue
Walsall Council,http://opendatacommunities.org/id/metropolitan-district-council/walsall,WC93-148,30/06/2018,Adult Social Care,ADVANCE HEALTH CARE (UK) LTD,08/06/2018,442.58,73025-PROFESSIONAL SERVICES-PRIV CONTRACTOR & OTHER AGENCIES,COMMUNITY INTERMEDIATE CARE,Third Party Payments,Revenue
Walsall Council,http://opendatacommunities.org/id/metropolitan-district-council/walsall,WC93-149,30/06/2018,Adult Social Care,ADVANCE HEALTH CARE (UK) LTD,08/06/2018,442.58,73025-PROFESSIONAL SERVICES-PRIV CONTRACTOR & OTHER AGENCIES,COMMUNITY INTERMEDIATE CARE,Third Party Payments,Revenue
Walsall Council,http://opendatacommunities.org/id/metropolitan-district-council/walsall,WC93-150,30/06/2018,Adult Social Care,ADVANCE HEALTH CARE (UK) LTD,08/06/2018,442.58,73025-PROFESSIONAL SERVICES-PRIV CONTRACTOR & OTHER AGENCIES,COMMUNITY INTERMEDIATE CARE,Third Party Payments,Revenue
Walsall Council,http://opendatacommunities.org/id/metropolitan-district-council/walsall,WC93-151,30/06/2018,Adult Social Care,ADVANCE HEALTH CARE (UK) LTD,08/06/2018,442.58,73025-PROFESSIONAL SERVICES-PRIV CONTRACTOR & OTHER AGENCIES,COMMUNITY INTERMEDIATE CARE,Third Party Payments,Revenue
Walsall Council,http://opendatacommunities.org/id/metropolitan-district-council/walsall,WC93-152,30/06/2018,Adult Social Care,ADVANCE HEALTH CARE (UK) LTD,08/06/2018,442.58,73025-PROFESSIONAL SERVICES-PRIV CONTRACTOR & OTHER AGENCIES,COMMUNITY INTERMEDIATE CARE,Third Party Payments,Revenue
Walsall Council,http://opendatacommunities.org/id/metropolitan-district-council/walsall,WC93-153,30/06/2018,Adult Social Care,ADVANCE HEALTH CARE (UK) LTD,08/06/2018,442.58,73025-PROFESSIONAL SERVICES-PRIV CONTRACTOR & OTHER AGENCIES,COMMUNITY INTERMEDIATE CARE,Third Party Payments,Revenue
Walsall Council,http://opendatacommunities.org/id/metropolitan-district-council/walsall,WC93-154,30/06/2018,Adult Social Care,ADVANCE HEALTH CARE (UK) LTD,08/06/2018,442.58,73025-PROFESSIONAL SERVICES-PRIV CONTRACTOR & OTHER AGENCIES,COMMUNITY INTERMEDIATE CARE,Third Party Payments,Revenue
Walsall Council,http://opendatacommunities.org/id/metropolitan-district-council/walsall,WC93-155,30/06/2018,Adult Social Care,ADVANCE HEALTH CARE (UK) LTD,08/06/2018,442.58,73025-PROFESSIONAL SERVICES-PRIV CONTRACTOR & OTHER AGENCIES,COMMUNITY INTERMEDIATE CARE,Third Party Payments,Revenue
Walsall Council,http://opendatacommunities.org/id/metropolitan-district-council/walsall,WC93-156,30/06/2018,Adult Social Care,ADVANCE HEALTH CARE (UK) LTD,08/06/2018,442.58,73025-PROFESSIONAL SERVICES-PRIV CONTRACTOR & OTHER AGENCIES,COMMUNITY INTERMEDIATE CARE,Third Party Payments,Revenue
Walsall Council,http://opendatacommunities.org/id/metropolitan-district-council/walsall,WC93-157,30/06/2018,Adult Social Care,ADVANCE HEALTH CARE (UK) LTD,13/06/2018,442.58,73025-PROFESSIONAL SERVICES-PRIV CONTRACTOR & OTHER AGENCIES,COMMUNITY INTERMEDIATE CARE,Third Party Payments,Revenue
Walsall Council,http://opendatacommunities.org/id/metropolitan-district-council/walsall,WC93-158,30/06/2018,Adult Social Care,ADVANCE HEALTH CARE (UK) LTD,13/06/2018,442.58,73025-PROFESSIONAL SERVICES-PRIV CONTRACTOR & OTHER AGENCIES,COMMUNITY INTERMEDIATE CARE,Third Party Payments,Revenue
Walsall Council,http://opendatacommunities.org/id/metropolitan-district-council/walsall,WC93-159,30/06/2018,Adult Social Care,ADVANCE HEALTH CARE (UK) LTD,13/06/2018,442.58,73025-PROFESSIONAL SERVICES-PRIV CONTRACTOR & OTHER AGENCIES,COMMUNITY INTERMEDIATE CARE,Third Party Payments,Revenue
Walsall Council,http://opendatacommunities.org/id/metropolitan-district-council/walsall,WC93-160,30/06/2018,Adult Social Care,ADVANCE HEALTH CARE (UK) LTD,13/06/2018,442.58,73025-PROFESSIONAL SERVICES-PRIV CONTRACTOR & OTHER AGENCIES,COMMUNITY INTERMEDIATE CARE,Third Party Payments,Revenue
Walsall Council,http://opendatacommunities.org/id/metropolitan-district-council/walsall,WC93-161,30/06/2018,Adult Social Care,ADVANCE HEALTH CARE (UK) LTD,13/06/2018,442.58,73025-PROFESSIONAL SERVICES-PRIV CONTRACTOR & OTHER AGENCIES,COMMUNITY INTERMEDIATE CARE,Third Party Payments,Revenue
Walsall Council,http://opendatacommunities.org/id/metropolitan-district-council/walsall,WC93-162,30/06/2018,Adult Social Care,ADVANCE HEALTH CARE (UK) LTD,13/06/2018,442.58,73025-PROFESSIONAL SERVICES-PRIV CONTRACTOR & OTHER AGENCIES,COMMUNITY INTERMEDIATE CARE,Third Party Payments,Revenue
Walsall Council,http://opendatacommunities.org/id/metropolitan-district-council/walsall,WC93-163,30/06/2018,Adult Social Care,ADVANCE HEALTH CARE (UK) LTD,14/06/2018,442.58,73025-PROFESSIONAL SERVICES-PRIV CONTRACTOR & OTHER AGENCIES,COMMUNITY INTERMEDIATE CARE,Third Party Payments,Revenue
Walsall Council,http://opendatacommunities.org/id/metropolitan-district-council/walsall,WC93-164,30/06/2018,Adult Social Care,ADVANCE HEALTH CARE (UK) LTD,14/06/2018,442.58,73025-PROFESSIONAL SERVICES-PRIV CONTRACTOR & OTHER AGENCIES,COMMUNITY INTERMEDIATE CARE,Third Party Payments,Revenue
Walsall Council,http://opendatacommunities.org/id/metropolitan-district-council/walsall,WC93-165,30/06/2018,Adult Social Care,ADVANCE HEALTH CARE (UK) LTD,14/06/2018,442.58,73025-PROFESSIONAL SERVICES-PRIV CONTRACTOR & OTHER AGENCIES,COMMUNITY INTERMEDIATE CARE,Third Party Payments,Revenue
Walsall Council,http://opendatacommunities.org/id/metropolitan-district-council/walsall,WC93-166,30/06/2018,Adult Social Care,ADVANCE HEALTH CARE (UK) LTD,14/06/2018,442.58,73025-PROFESSIONAL SERVICES-PRIV CONTRACTOR & OTHER AGENCIES,COMMUNITY INTERMEDIATE CARE,Third Party Payments,Revenue
Walsall Council,http://opendatacommunities.org/id/metropolitan-district-council/walsall,WC93-167,30/06/2018,Adult Social Care,ADVANCE HEALTH CARE (UK) LTD,14/06/2018,442.58,73025-PROFESSIONAL SERVICES-PRIV CONTRACTOR & OTHER AGENCIES,COMMUNITY INTERMEDIATE CARE,Third Party Payments,Revenue
Walsall Council,http://opendatacommunities.org/id/metropolitan-district-council/walsall,WC93-168,30/06/2018,Adult Social Care,ADVANCE HEALTH CARE (UK) LTD,14/06/2018,442.58,73025-PROFESSIONAL SERVICES-PRIV CONTRACTOR & OTHER AGENCIES,COMMUNITY INTERMEDIATE CARE,Third Party Payments,Revenue
Walsall Council,http://opendatacommunities.org/id/metropolitan-district-council/walsall,WC93-169,30/06/2018,Adult Social Care,ADVANCE HEALTH CARE (UK) LTD,15/06/2018,442.58,73025-PROFESSIONAL SERVICES-PRIV CONTRACTOR & OTHER AGENCIES,COMMUNITY INTERMEDIATE CARE,Third Party Payments,Revenue
Walsall Council,http://opendatacommunities.org/id/metropolitan-district-council/walsall,WC93-170,30/06/2018,Adult Social Care,ADVANCE HEALTH CARE (UK) LTD,18/06/2018,442.58,73025-PROFESSIONAL SERVICES-PRIV CONTRACTOR & OTHER AGENCIES,COMMUNITY INTERMEDIATE CARE,Third Party Payments,Revenue
Walsall Council,http://opendatacommunities.org/id/metropolitan-district-council/walsall,WC93-171,30/06/2018,Adult Social Care,ADVANCE HEALTH CARE (UK) LTD,18/06/2018,442.58,73025-PROFESSIONAL SERVICES-PRIV CONTRACTOR & OTHER AGENCIES,COMMUNITY INTERMEDIATE CARE,Third Party Payments,Revenue
Walsall Council,http://opendatacommunities.org/id/metropolitan-district-council/walsall,WC93-172,30/06/2018,Adult Social Care,ADVANCE HEALTH CARE (UK) LTD,18/06/2018,442.58,73025-PROFESSIONAL SERVICES-PRIV CONTRACTOR & OTHER AGENCIES,COMMUNITY INTERMEDIATE CARE,Third Party Payments,Revenue
Walsall Council,http://opendatacommunities.org/id/metropolitan-district-council/walsall,WC93-173,30/06/2018,Adult Social Care,ADVANCE HEALTH CARE (UK) LTD,18/06/2018,442.58,73025-PROFESSIONAL SERVICES-PRIV CONTRACTOR & OTHER AGENCIES,COMMUNITY INTERMEDIATE CARE,Third Party Payments,Revenue
Walsall Council,http://opendatacommunities.org/id/metropolitan-district-council/walsall,WC93-174,30/06/2018,Adult Social Care,ADVANCE HEALTH CARE (UK) LTD,18/06/2018,442.58,73025-PROFESSIONAL SERVICES-PRIV CONTRACTOR & OTHER AGENCIES,COMMUNITY INTERMEDIATE CARE,Third Party Payments,Revenue
Walsall Council,http://opendatacommunities.org/id/metropolitan-district-council/walsall,WC93-175,30/06/2018,Adult Social Care,ADVANCE HEALTH CARE (UK) LTD,18/06/2018,442.58,73025-PROFESSIONAL SERVICES-PRIV CONTRACTOR & OTHER AGENCIES,COMMUNITY INTERMEDIATE CARE,Third Party Payments,Revenue
Walsall Council,http://opendatacommunities.org/id/metropolitan-district-council/walsall,WC93-176,30/06/2018,Adult Social Care,ADVANCE HEALTH CARE (UK) LTD,18/06/2018,442.58,73025-PROFESSIONAL SERVICES-PRIV CONTRACTOR & OTHER AGENCIES,COMMUNITY INTERMEDIATE CARE,Third Party Payments,Revenue
Walsall Council,http://opendatacommunities.org/id/metropolitan-district-council/walsall,WC93-177,30/06/2018,Adult Social Care,ADVANCE HEALTH CARE (UK) LTD,18/06/2018,442.58,73025-PROFESSIONAL SERVICES-PRIV CONTRACTOR & OTHER AGENCIES,COMMUNITY INTERMEDIATE CARE,Third Party Payments,Revenue
Walsall Council,http://opendatacommunities.org/id/metropolitan-district-council/walsall,WC93-178,30/06/2018,Adult Social Care,ADVANCE HEALTH CARE (UK) LTD,18/06/2018,442.58,73025-PROFESSIONAL SERVICES-PRIV CONTRACTOR & OTHER AGENCIES,COMMUNITY INTERMEDIATE CARE,Third Party Payments,Revenue
Walsall Council,http://opendatacommunities.org/id/metropolitan-district-council/walsall,WC93-179,30/06/2018,Adult Social Care,ADVANCE HEALTH CARE (UK) LTD,18/06/2018,442.58,73025-PROFESSIONAL SERVICES-PRIV CONTRACTOR & OTHER AGENCIES,COMMUNITY INTERMEDIATE CARE,Third Party Payments,Revenue
Walsall Council,http://opendatacommunities.org/id/metropolitan-district-council/walsall,WC93-180,30/06/2018,Adult Social Care,ADVANCE HEALTH CARE (UK) LTD,18/06/2018,442.58,73025-PROFESSIONAL SERVICES-PRIV CONTRACTOR & OTHER AGENCIES,COMMUNITY INTERMEDIATE CARE,Third Party Payments,Revenue
Walsall Council,http://opendatacommunities.org/id/metropolitan-district-council/walsall,WC93-181,30/06/2018,Adult Social Care,ADVANCE HEALTH CARE (UK) LTD,18/06/2018,442.58,73025-PROFESSIONAL SERVICES-PRIV CONTRACTOR & OTHER AGENCIES,COMMUNITY INTERMEDIATE CARE,Third Party Payments,Revenue
Walsall Council,http://opendatacommunities.org/id/metropolitan-district-council/walsall,WC93-182,30/06/2018,Adult Social Care,ADVANCE HEALTH CARE (UK) LTD,18/06/2018,442.58,73025-PROFESSIONAL SERVICES-PRIV CONTRACTOR & OTHER AGENCIES,COMMUNITY INTERMEDIATE CARE,Third Party Payments,Revenue
Walsall Council,http://opendatacommunities.org/id/metropolitan-district-council/walsall,WC93-183,30/06/2018,Adult Social Care,ADVANCE HEALTH CARE (UK) LTD,18/06/2018,442.58,73025-PROFESSIONAL SERVICES-PRIV CONTRACTOR & OTHER AGENCIES,COMMUNITY INTERMEDIATE CARE,Third Party Payments,Revenue
Walsall Council,http://opendatacommunities.org/id/metropolitan-district-council/walsall,WC93-184,30/06/2018,Adult Social Care,ADVANCE HEALTH CARE (UK) LTD,18/06/2018,442.58,73025-PROFESSIONAL SERVICES-PRIV CONTRACTOR & OTHER AGENCIES,COMMUNITY INTERMEDIATE CARE,Third Party Payments,Revenue
Walsall Council,http://opendatacommunities.org/id/metropolitan-district-council/walsall,WC93-185,30/06/2018,Adult Social Care,ADVANCE HEALTH CARE (UK) LTD,18/06/2018,442.58,73025-PROFESSIONAL SERVICES-PRIV CONTRACTOR & OTHER AGENCIES,COMMUNITY INTERMEDIATE CARE,Third Party Payments,Revenue
Walsall Council,http://opendatacommunities.org/id/metropolitan-district-council/walsall,WC93-186,30/06/2018,Adult Social Care,ADVANCE HEALTH CARE (UK) LTD,18/06/2018,442.58,73025-PROFESSIONAL SERVICES-PRIV CONTRACTOR & OTHER AGENCIES,COMMUNITY INTERMEDIATE CARE,Third Party Payments,Revenue
Walsall Council,http://opendatacommunities.org/id/metropolitan-district-council/walsall,WC93-187,30/06/2018,Adult Social Care,ADVANCE HEALTH CARE (UK) LTD,18/06/2018,442.58,73025-PROFESSIONAL SERVICES-PRIV CONTRACTOR & OTHER AGENCIES,COMMUNITY INTERMEDIATE CARE,Third Party Payments,Revenue
Walsall Council,http://opendatacommunities.org/id/metropolitan-district-council/walsall,WC93-188,30/06/2018,Adult Social Care,ADVANCE HEALTH CARE (UK) LTD,18/06/2018,442.58,73025-PROFESSIONAL SERVICES-PRIV CONTRACTOR & OTHER AGENCIES,COMMUNITY INTERMEDIATE CARE,Third Party Payments,Revenue
Walsall Council,http://opendatacommunities.org/id/metropolitan-district-council/walsall,WC93-189,30/06/2018,Adult Social Care,ADVANCE HEALTH CARE (UK) LTD,18/06/2018,442.58,73025-PROFESSIONAL SERVICES-PRIV CONTRACTOR & OTHER AGENCIES,COMMUNITY INTERMEDIATE CARE,Third Party Payments,Revenue
Walsall Council,http://opendatacommunities.org/id/metropolitan-district-council/walsall,WC93-190,30/06/2018,Adult Social Care,ADVANCE HEALTH CARE (UK) LTD,18/06/2018,442.58,73025-PROFESSIONAL SERVICES-PRIV CONTRACTOR & OTHER AGENCIES,COMMUNITY INTERMEDIATE CARE,Third Party Payments,Revenue
Walsall Council,http://opendatacommunities.org/id/metropolitan-district-council/walsall,WC93-191,30/06/2018,Adult Social Care,ADVANCE HEALTH CARE (UK) LTD,20/06/2018,442.58,73025-PROFESSIONAL SERVICES-PRIV CONTRACTOR & OTHER AGENCIES,COMMUNITY INTERMEDIATE CARE,Third Party Payments,Revenue
Walsall Council,http://opendatacommunities.org/id/metropolitan-district-council/walsall,WC93-192,30/06/2018,Adult Social Care,ADVANCE HEALTH CARE (UK) LTD,20/06/2018,442.58,73025-PROFESSIONAL SERVICES-PRIV CONTRACTOR & OTHER AGENCIES,COMMUNITY INTERMEDIATE CARE,Third Party Payments,Revenue
Walsall Council,http://opendatacommunities.org/id/metropolitan-district-council/walsall,WC93-193,30/06/2018,Adult Social Care,ADVANCE HEALTH CARE (UK) LTD,20/06/2018,442.58,73025-PROFESSIONAL SERVICES-PRIV CONTRACTOR & OTHER AGENCIES,COMMUNITY INTERMEDIATE CARE,Third Party Payments,Revenue
Walsall Council,http://opendatacommunities.org/id/metropolitan-district-council/walsall,WC93-194,30/06/2018,Adult Social Care,ADVANCE HEALTH CARE (UK) LTD,20/06/2018,442.58,73025-PROFESSIONAL SERVICES-PRIV CONTRACTOR & OTHER AGENCIES,COMMUNITY INTERMEDIATE CARE,Third Party Payments,Revenue
Walsall Council,http://opendatacommunities.org/id/metropolitan-district-council/walsall,WC93-195,30/06/2018,Adult Social Care,ADVANCE HEALTH CARE (UK) LTD,20/06/2018,442.58,73025-PROFESSIONAL SERVICES-PRIV CONTRACTOR & OTHER AGENCIES,COMMUNITY INTERMEDIATE CARE,Third Party Payments,Revenue
Walsall Council,http://opendatacommunities.org/id/metropolitan-district-council/walsall,WC93-196,30/06/2018,Adult Social Care,ADVANCE HEALTH CARE (UK) LTD,21/06/2018,442.58,73025-PROFESSIONAL SERVICES-PRIV CONTRACTOR & OTHER AGENCIES,COMMUNITY INTERMEDIATE CARE,Third Party Payments,Revenue
Walsall Council,http://opendatacommunities.org/id/metropolitan-district-council/walsall,WC93-197,30/06/2018,Adult Social Care,ADVANCE HEALTH CARE (UK) LTD,21/06/2018,442.58,73025-PROFESSIONAL SERVICES-PRIV CONTRACTOR & OTHER AGENCIES,COMMUNITY INTERMEDIATE CARE,Third Party Payments,Revenue
Walsall Council,http://opendatacommunities.org/id/metropolitan-district-council/walsall,WC93-198,30/06/2018,Adult Social Care,ADVANCE HEALTH CARE (UK) LTD,21/06/2018,442.58,73025-PROFESSIONAL SERVICES-PRIV CONTRACTOR & OTHER AGENCIES,COMMUNITY INTERMEDIATE CARE,Third Party Payments,Revenue
Walsall Council,http://opendatacommunities.org/id/metropolitan-district-council/walsall,WC93-199,30/06/2018,Adult Social Care,ADVANCE HEALTH CARE (UK) LTD,21/06/2018,442.58,73025-PROFESSIONAL SERVICES-PRIV CONTRACTOR & OTHER AGENCIES,COMMUNITY INTERMEDIATE CARE,Third Party Payments,Revenue
Walsall Council,http://opendatacommunities.org/id/metropolitan-district-council/walsall,WC93-200,30/06/2018,Adult Social Care,ADVANCE HEALTH CARE (UK) LTD,21/06/2018,442.58,73025-PROFESSIONAL SERVICES-PRIV CONTRACTOR & OTHER AGENCIES,COMMUNITY INTERMEDIATE CARE,Third Party Payments,Revenue
Walsall Council,http://opendatacommunities.org/id/metropolitan-district-council/walsall,WC93-201,30/06/2018,Adult Social Care,ADVANCE HEALTH CARE (UK) LTD,21/06/2018,442.58,73025-PROFESSIONAL SERVICES-PRIV CONTRACTOR & OTHER AGENCIES,COMMUNITY INTERMEDIATE CARE,Third Party Payments,Revenue
Walsall Council,http://opendatacommunities.org/id/metropolitan-district-council/walsall,WC93-202,30/06/2018,Adult Social Care,ADVANCE HEALTH CARE (UK) LTD,21/06/2018,442.58,73025-PROFESSIONAL SERVICES-PRIV CONTRACTOR & OTHER AGENCIES,COMMUNITY INTERMEDIATE CARE,Third Party Payments,Revenue
Walsall Council,http://opendatacommunities.org/id/metropolitan-district-council/walsall,WC93-203,30/06/2018,Adult Social Care,ADVANCE HEALTH CARE (UK) LTD,21/06/2018,442.58,73025-PROFESSIONAL SERVICES-PRIV CONTRACTOR & OTHER AGENCIES,COMMUNITY INTERMEDIATE CARE,Third Party Payments,Revenue
Walsall Council,http://opendatacommunities.org/id/metropolitan-district-council/walsall,WC93-204,30/06/2018,Adult Social Care,ADVANCE HEALTH CARE (UK) LTD,21/06/2018,442.58,73025-PROFESSIONAL SERVICES-PRIV CONTRACTOR & OTHER AGENCIES,COMMUNITY INTERMEDIATE CARE,Third Party Payments,Revenue
Walsall Council,http://opendatacommunities.org/id/metropolitan-district-council/walsall,WC93-205,30/06/2018,Adult Social Care,ADVANCE HEALTH CARE (UK) LTD,21/06/2018,442.58,73025-PROFESSIONAL SERVICES-PRIV CONTRACTOR & OTHER AGENCIES,COMMUNITY INTERMEDIATE CARE,Third Party Payments,Revenue
Walsall Council,http://opendatacommunities.org/id/metropolitan-district-council/walsall,WC93-206,30/06/2018,Adult Social Care,ADVANCE HEALTH CARE (UK) LTD,21/06/2018,442.58,73025-PROFESSIONAL SERVICES-PRIV CONTRACTOR & OTHER AGENCIES,COMMUNITY INTERMEDIATE CARE,Third Party Payments,Revenue
Walsall Council,http://opendatacommunities.org/id/metropolitan-district-council/walsall,WC93-207,30/06/2018,Adult Social Care,ADVANCE HEALTH CARE (UK) LTD,21/06/2018,442.58,73025-PROFESSIONAL SERVICES-PRIV CONTRACTOR & OTHER AGENCIES,COMMUNITY INTERMEDIATE CARE,Third Party Payments,Revenue
Walsall Council,http://opendatacommunities.org/id/metropolitan-district-council/walsall,WC93-208,30/06/2018,Adult Social Care,ADVANCE HEALTH CARE (UK) LTD,21/06/2018,442.58,73025-PROFESSIONAL SERVICES-PRIV CONTRACTOR & OTHER AGENCIES,COMMUNITY INTERMEDIATE CARE,Third Party Payments,Revenue
Walsall Council,http://opendatacommunities.org/id/metropolitan-district-council/walsall,WC93-209,30/06/2018,Adult Social Care,ADVANCE HEALTH CARE (UK) LTD,21/06/2018,442.58,73025-PROFESSIONAL SERVICES-PRIV CONTRACTOR & OTHER AGENCIES,COMMUNITY INTERMEDIATE CARE,Third Party Payments,Revenue
Walsall Council,http://opendatacommunities.org/id/metropolitan-district-council/walsall,WC93-210,30/06/2018,Adult Social Care,ADVANCE HEALTH CARE (UK) LTD,21/06/2018,442.58,73025-PROFESSIONAL SERVICES-PRIV CONTRACTOR & OTHER AGENCIES,COMMUNITY INTERMEDIATE CARE,Third Party Payments,Revenue
Walsall Council,http://opendatacommunities.org/id/metropolitan-district-council/walsall,WC93-211,30/06/2018,Adult Social Care,ADVANCE HEALTH CARE (UK) LTD,21/06/2018,442.58,73025-PROFESSIONAL SERVICES-PRIV CONTRACTOR & OTHER AGENCIES,COMMUNITY INTERMEDIATE CARE,Third Party Payments,Revenue
Walsall Council,http://opendatacommunities.org/id/metropolitan-district-council/walsall,WC93-212,30/06/2018,Adult Social Care,ADVANCE HEALTH CARE (UK) LTD,21/06/2018,442.58,73025-PROFESSIONAL SERVICES-PRIV CONTRACTOR & OTHER AGENCIES,COMMUNITY INTERMEDIATE CARE,Third Party Payments,Revenue
Walsall Council,http://opendatacommunities.org/id/metropolitan-district-council/walsall,WC93-213,30/06/2018,Adult Social Care,ADVANCE HEALTH CARE (UK) LTD,21/06/2018,442.58,73025-PROFESSIONAL SERVICES-PRIV CONTRACTOR & OTHER AGENCIES,COMMUNITY INTERMEDIATE CARE,Third Party Payments,Revenue
Walsall Council,http://opendatacommunities.org/id/metropolitan-district-council/walsall,WC93-214,30/06/2018,Adult Social Care,ADVANCE HEALTH CARE (UK) LTD,21/06/2018,442.58,73025-PROFESSIONAL SERVICES-PRIV CONTRACTOR & OTHER AGENCIES,COMMUNITY INTERMEDIATE CARE,Third Party Payments,Revenue
Walsall Council,http://opendatacommunities.org/id/metropolitan-district-council/walsall,WC93-215,30/06/2018,Adult Social Care,ADVANCE HEALTH CARE (UK) LTD,21/06/2018,442.58,73025-PROFESSIONAL SERVICES-PRIV CONTRACTOR & OTHER AGENCIES,COMMUNITY INTERMEDIATE CARE,Third Party Payments,Revenue
Walsall Council,http://opendatacommunities.org/id/metropolitan-district-council/walsall,WC93-216,30/06/2018,Adult Social Care,ADVANCE HEALTH CARE (UK) LTD,21/06/2018,442.58,73025-PROFESSIONAL SERVICES-PRIV CONTRACTOR & OTHER AGENCIES,COMMUNITY INTERMEDIATE CARE,Third Party Payments,Revenue
Walsall Council,http://opendatacommunities.org/id/metropolitan-district-council/walsall,WC93-217,30/06/2018,Adult Social Care,ADVANCE HEALTH CARE (UK) LTD,21/06/2018,442.58,73025-PROFESSIONAL SERVICES-PRIV CONTRACTOR & OTHER AGENCIES,COMMUNITY INTERMEDIATE CARE,Third Party Payments,Revenue
Walsall Council,http://opendatacommunities.org/id/metropolitan-district-council/walsall,WC93-218,30/06/2018,Adult Social Care,ADVANCE HEALTH CARE (UK) LTD,21/06/2018,442.58,73025-PROFESSIONAL SERVICES-PRIV CONTRACTOR & OTHER AGENCIES,COMMUNITY INTERMEDIATE CARE,Third Party Payments,Revenue
Walsall Council,http://opendatacommunities.org/id/metropolitan-district-council/walsall,WC93-219,30/06/2018,Adult Social Care,ADVANCE HEALTH CARE (UK) LTD,21/06/2018,442.58,73025-PROFESSIONAL SERVICES-PRIV CONTRACTOR & OTHER AGENCIES,COMMUNITY INTERMEDIATE CARE,Third Party Payments,Revenue
Walsall Council,http://opendatacommunities.org/id/metropolitan-district-council/walsall,WC93-220,30/06/2018,Adult Social Care,ADVANCE HEALTH CARE (UK) LTD,21/06/2018,442.58,73025-PROFESSIONAL SERVICES-PRIV CONTRACTOR & OTHER AGENCIES,COMMUNITY INTERMEDIATE CARE,Third Party Payments,Revenue
Walsall Council,http://opendatacommunities.org/id/metropolitan-district-council/walsall,WC93-221,30/06/2018,Adult Social Care,ADVANCE HEALTH CARE (UK) LTD,21/06/2018,442.58,73025-PROFESSIONAL SERVICES-PRIV CONTRACTOR & OTHER AGENCIES,COMMUNITY INTERMEDIATE CARE,Third Party Payments,Revenue
Walsall Council,http://opendatacommunities.org/id/metropolitan-district-council/walsall,WC93-222,30/06/2018,Adult Social Care,ADVANCE HEALTH CARE (UK) LTD,21/06/2018,442.58,73025-PROFESSIONAL SERVICES-PRIV CONTRACTOR & OTHER AGENCIES,COMMUNITY INTERMEDIATE CARE,Third Party Payments,Revenue
Walsall Council,http://opendatacommunities.org/id/metropolitan-district-council/walsall,WC93-223,30/06/2018,Adult Social Care,ADVANCE HEALTH CARE (UK) LTD,21/06/2018,442.58,73025-PROFESSIONAL SERVICES-PRIV CONTRACTOR & OTHER AGENCIES,COMMUNITY INTERMEDIATE CARE,Third Party Payments,Revenue
Walsall Council,http://opendatacommunities.org/id/metropolitan-district-council/walsall,WC93-224,30/06/2018,Adult Social Care,ADVANCE HEALTH CARE (UK) LTD,21/06/2018,442.58,73025-PROFESSIONAL SERVICES-PRIV CONTRACTOR & OTHER AGENCIES,COMMUNITY INTERMEDIATE CARE,Third Party Payments,Revenue
Walsall Council,http://opendatacommunities.org/id/metropolitan-district-council/walsall,WC93-225,30/06/2018,Adult Social Care,ADVANCE HEALTH CARE (UK) LTD,27/06/2018,442.58,73025-PROFESSIONAL SERVICES-PRIV CONTRACTOR & OTHER AGENCIES,COMMUNITY INTERMEDIATE CARE,Third Party Payments,Revenue
Walsall Council,http://opendatacommunities.org/id/metropolitan-district-council/walsall,WC93-226,30/06/2018,Adult Social Care,ADVANCE HEALTH CARE (UK) LTD,27/06/2018,442.58,73025-PROFESSIONAL SERVICES-PRIV CONTRACTOR & OTHER AGENCIES,COMMUNITY INTERMEDIATE CARE,Third Party Payments,Revenue
Walsall Council,http://opendatacommunities.org/id/metropolitan-district-council/walsall,WC93-227,30/06/2018,Adult Social Care,ADVANCE HEALTH CARE (UK) LTD,27/06/2018,442.58,73025-PROFESSIONAL SERVICES-PRIV CONTRACTOR & OTHER AGENCIES,COMMUNITY INTERMEDIATE CARE,Third Party Payments,Revenue
Walsall Council,http://opendatacommunities.org/id/metropolitan-district-council/walsall,WC93-228,30/06/2018,Adult Social Care,ADVANCE HEALTH CARE (UK) LTD,27/06/2018,442.58,73025-PROFESSIONAL SERVICES-PRIV CONTRACTOR & OTHER AGENCIES,COMMUNITY INTERMEDIATE CARE,Third Party Payments,Revenue
Walsall Council,http://opendatacommunities.org/id/metropolitan-district-council/walsall,WC93-229,30/06/2018,Adult Social Care,ADVANCE HEALTH CARE (UK) LTD,27/06/2018,442.58,73025-PROFESSIONAL SERVICES-PRIV CONTRACTOR & OTHER AGENCIES,COMMUNITY INTERMEDIATE CARE,Third Party Payments,Revenue
Walsall Council,http://opendatacommunities.org/id/metropolitan-district-council/walsall,WC93-230,30/06/2018,Adult Social Care,ADVANCE HEALTH CARE (UK) LTD,27/06/2018,442.58,73025-PROFESSIONAL SERVICES-PRIV CONTRACTOR & OTHER AGENCIES,COMMUNITY INTERMEDIATE CARE,Third Party Payments,Revenue
Walsall Council,http://opendatacommunities.org/id/metropolitan-district-council/walsall,WC93-231,30/06/2018,Adult Social Care,ADVANCE HEALTH CARE (UK) LTD,27/06/2018,442.58,73025-PROFESSIONAL SERVICES-PRIV CONTRACTOR & OTHER AGENCIES,COMMUNITY INTERMEDIATE CARE,Third Party Payments,Revenue
Walsall Council,http://opendatacommunities.org/id/metropolitan-district-council/walsall,WC93-232,30/06/2018,Adult Social Care,ADVANCE HEALTH CARE (UK) LTD,27/06/2018,442.58,73025-PROFESSIONAL SERVICES-PRIV CONTRACTOR & OTHER AGENCIES,COMMUNITY INTERMEDIATE CARE,Third Party Payments,Revenue
Walsall Council,http://opendatacommunities.org/id/metropolitan-district-council/walsall,WC93-233,30/06/2018,Adult Social Care,ADVANCE HEALTH CARE (UK) LTD,27/06/2018,442.58,73025-PROFESSIONAL SERVICES-PRIV CONTRACTOR & OTHER AGENCIES,COMMUNITY INTERMEDIATE CARE,Third Party Payments,Revenue
Walsall Council,http://opendatacommunities.org/id/metropolitan-district-council/walsall,WC93-234,30/06/2018,Adult Social Care,ADVANCE HEALTH CARE (UK) LTD,27/06/2018,442.58,73025-PROFESSIONAL SERVICES-PRIV CONTRACTOR & OTHER AGENCIES,COMMUNITY INTERMEDIATE CARE,Third Party Payments,Revenue
Walsall Council,http://opendatacommunities.org/id/metropolitan-district-council/walsall,WC93-235,30/06/2018,Adult Social Care,ADVANCE HEALTH CARE (UK) LTD,27/06/2018,442.58,73025-PROFESSIONAL SERVICES-PRIV CONTRACTOR & OTHER AGENCIES,COMMUNITY INTERMEDIATE CARE,Third Party Payments,Revenue
Walsall Council,http://opendatacommunities.org/id/metropolitan-district-council/walsall,WC93-236,30/06/2018,Adult Social Care,ADVANCE HEALTH CARE (UK) LTD,27/06/2018,442.58,73025-PROFESSIONAL SERVICES-PRIV CONTRACTOR & OTHER AGENCIES,COMMUNITY INTERMEDIATE CARE,Third Party Payments,Revenue
Walsall Council,http://opendatacommunities.org/id/metropolitan-district-council/walsall,WC93-237,30/06/2018,Adult Social Care,ADVANCE HEALTH CARE (UK) LTD,27/06/2018,442.58,73025-PROFESSIONAL SERVICES-PRIV CONTRACTOR & OTHER AGENCIES,COMMUNITY INTERMEDIATE CARE,Third Party Payments,Revenue
Walsall Council,http://opendatacommunities.org/id/metropolitan-district-council/walsall,WC93-238,30/06/2018,Adult Social Care,ADVANCE HEALTH CARE (UK) LTD,27/06/2018,442.58,73025-PROFESSIONAL SERVICES-PRIV CONTRACTOR & OTHER AGENCIES,COMMUNITY INTERMEDIATE CARE,Third Party Payments,Revenue
Walsall Council,http://opendatacommunities.org/id/metropolitan-district-council/walsall,WC93-239,30/06/2018,Adult Social Care,ADVANCE HEALTH CARE (UK) LTD,21/06/2018,442.58,73025-PROFESSIONAL SERVICES-PRIV CONTRACTOR & OTHER AGENCIES,COMMUNITY INTERMEDIATE CARE,Third Party Payments,Revenue
Walsall Council,http://opendatacommunities.org/id/metropolitan-district-council/walsall,WC93-240,30/06/2018,Adult Social Care,ADVANCE HEALTH CARE (UK) LTD,14/06/2018,456.63,73025-PROFESSIONAL SERVICES-PRIV CONTRACTOR & OTHER AGENCIES,COMMUNITY INTERMEDIATE CARE,Third Party Payments,Revenue
Walsall Council,http://opendatacommunities.org/id/metropolitan-district-council/walsall,WC93-241,30/06/2018,Adult Social Care,ADVANCE HEALTH CARE (UK) LTD,27/06/2018,456.63,73025-PROFESSIONAL SERVICES-PRIV CONTRACTOR & OTHER AGENCIES,COMMUNITY INTERMEDIATE CARE,Third Party Payments,Revenue
Walsall Council,http://opendatacommunities.org/id/metropolitan-district-council/walsall,WC93-242,30/06/2018,Adult Social Care,ADVANCE HEALTH CARE (UK) LTD,27/06/2018,456.63,73025-PROFESSIONAL SERVICES-PRIV CONTRACTOR & OTHER AGENCIES,COMMUNITY INTERMEDIATE CARE,Third Party Payments,Revenue
Walsall Council,http://opendatacommunities.org/id/metropolitan-district-council/walsall,WC93-243,30/06/2018,Adult Social Care,ADVANCE HEALTH CARE (UK) LTD,21/06/2018,484.73,73025-PROFESSIONAL SERVICES-PRIV CONTRACTOR & OTHER AGENCIES,COMMUNITY INTERMEDIATE CARE,Third Party Payments,Revenue
Walsall Council,http://opendatacommunities.org/id/metropolitan-district-council/walsall,WC93-244,30/06/2018,Adult Social Care,ADVANCE HEALTH CARE (UK) LTD,13/06/2018,491.75,73025-PROFESSIONAL SERVICES-PRIV CONTRACTOR & OTHER AGENCIES,COMMUNITY INTERMEDIATE CARE,Third Party Payments,Revenue
Walsall Council,http://opendatacommunities.org/id/metropolitan-district-council/walsall,WC93-245,30/06/2018,Adult Social Care,ADVANCE HEALTH CARE (UK) LTD,20/06/2018,495.00,73372-DOMICILIARY CARE,OP PACKAGE/PLACEMENT COSTS,Third Party Payments,Revenue
Walsall Council,http://opendatacommunities.org/id/metropolitan-district-council/walsall,WC93-246,30/06/2018,Adult Social Care,ADVANCE HEALTH CARE (UK) LTD,21/06/2018,498.78,73025-PROFESSIONAL SERVICES-PRIV CONTRACTOR & OTHER AGENCIES,COMMUNITY INTERMEDIATE CARE,Third Party Payments,Revenue
Walsall Council,http://opendatacommunities.org/id/metropolitan-district-council/walsall,WC93-247,30/06/2018,Adult Social Care,ADVANCE HEALTH CARE (UK) LTD,15/06/2018,505.80,73025-PROFESSIONAL SERVICES-PRIV CONTRACTOR & OTHER AGENCIES,COMMUNITY INTERMEDIATE CARE,Third Party Payments,Revenue
Walsall Council,http://opendatacommunities.org/id/metropolitan-district-council/walsall,WC93-248,30/06/2018,Adult Social Care,ADVANCE HEALTH CARE (UK) LTD,08/06/2018,519.85,73025-PROFESSIONAL SERVICES-PRIV CONTRACTOR & OTHER AGENCIES,COMMUNITY INTERMEDIATE CARE,Third Party Payments,Revenue
Walsall Council,http://opendatacommunities.org/id/metropolitan-district-council/walsall,WC93-249,30/06/2018,Adult Social Care,ADVANCE HEALTH CARE (UK) LTD,14/06/2018,540.93,73025-PROFESSIONAL SERVICES-PRIV CONTRACTOR & OTHER AGENCIES,COMMUNITY INTERMEDIATE CARE,Third Party Payments,Revenue
Walsall Council,http://opendatacommunities.org/id/metropolitan-district-council/walsall,WC93-250,30/06/2018,Adult Social Care,ADVANCE HEALTH CARE (UK) LTD,18/06/2018,540.93,73025-PROFESSIONAL SERVICES-PRIV CONTRACTOR & OTHER AGENCIES,COMMUNITY INTERMEDIATE CARE,Third Party Payments,Revenue
Walsall Council,http://opendatacommunities.org/id/metropolitan-district-council/walsall,WC93-251,30/06/2018,Adult Social Care,ADVANCE HEALTH CARE (UK) LTD,18/06/2018,540.93,73025-PROFESSIONAL SERVICES-PRIV CONTRACTOR & OTHER AGENCIES,COMMUNITY INTERMEDIATE CARE,Third Party Payments,Revenue
Walsall Council,http://opendatacommunities.org/id/metropolitan-district-council/walsall,WC93-252,30/06/2018,Adult Social Care,ADVANCE HEALTH CARE (UK) LTD,21/06/2018,540.93,73025-PROFESSIONAL SERVICES-PRIV CONTRACTOR & OTHER AGENCIES,COMMUNITY INTERMEDIATE CARE,Third Party Payments,Revenue
Walsall Council,http://opendatacommunities.org/id/metropolitan-district-council/walsall,WC93-253,30/06/2018,Adult Social Care,ADVANCE HEALTH CARE (UK) LTD,21/06/2018,540.93,73025-PROFESSIONAL SERVICES-PRIV CONTRACTOR & OTHER AGENCIES,COMMUNITY INTERMEDIATE CARE,Third Party Payments,Revenue
Walsall Council,http://opendatacommunities.org/id/metropolitan-district-council/walsall,WC93-254,30/06/2018,Adult Social Care,ADVANCE HEALTH CARE (UK) LTD,27/06/2018,540.93,73025-PROFESSIONAL SERVICES-PRIV CONTRACTOR & OTHER AGENCIES,COMMUNITY INTERMEDIATE CARE,Third Party Payments,Revenue
Walsall Council,http://opendatacommunities.org/id/metropolitan-district-council/walsall,WC93-255,30/06/2018,Adult Social Care,ADVANCE HEALTH CARE (UK) LTD,18/06/2018,"1,250.45",73025-PROFESSIONAL SERVICES-PRIV CONTRACTOR & OTHER AGENCIES,COMMUNITY INTERMEDIATE CARE,Third Party Payments,Revenue
Walsall Council,http://opendatacommunities.org/id/metropolitan-district-council/walsall,WC93-256,30/06/2018,Adult Social Care,ADVANCE HEALTH CARE (UK) LTD,20/06/2018,"88,118.06",73372-DOMICILIARY CARE,OP PACKAGE/PLACEMENT COSTS,Third Party Payments,Revenue
Walsall Council,http://opendatacommunities.org/id/metropolitan-district-council/walsall,WC93-257,30/06/2018,Economy & Environment,ADVANCED CONTRACTS (MIDLANDS) LTD,04/06/2018,552.00,60007-REPAIR OF EQUIPMENT-EQUIPMENT,BLOXWICH LEISURE CENTRE,Supplies & Services,Revenue
Walsall Council,http://opendatacommunities.org/id/metropolitan-district-council/walsall,WC93-258,30/06/2018,Holding Accounts,ADVANTAGE RESTORATION LTD,18/06/2018,498.24,67001-MISC INSURANCES - PAYMENT OF CLAIMS,PUBLIC LIABILITY,Supplies & Services,Revenue
Walsall Council,http://opendatacommunities.org/id/metropolitan-district-council/walsall,WC93-259,30/06/2018,Childrens,ADVENTURELAND DAY NURSERY,01/06/2018,"21,319.35",66505-OTHER-GRANTS TO OTHER ORGS,EARLY YEARS - 3 YR OLDS,Third Party Payments,Revenue
Walsall Council,http://opendatacommunities.org/id/metropolitan-district-council/walsall,WC93-260,30/06/2018,Adult Social Care,ADVOCACY MATTERS LIMITED,27/06/2018,"18,030.00",70000-SOCIAL SERVICES-FEES TO VOLUNTARY BODIES,OP SLA,Third Party Payments,Revenue
Walsall Council,http://opendatacommunities.org/id/metropolitan-district-council/walsall,WC93-261,30/06/2018,Economy & Environment,AECOM LIMITED,27/06/2018,"3,713.95",01001-OTHER CONSULTANTS FEES,CFR 1219 DARLASTON MONITORING AND EVALUATION,Capital,Capital
Walsall Council,http://opendatacommunities.org/id/metropolitan-district-council/walsall,WC93-262,30/06/2018,Economy & Environment,AECOM LIMITED,22/06/2018,"11,000.00",01002-PROJECT FEES,CFR 1129 A461 CORRIDOR JUNCTION IMPROVEMENTS,Capital,Capital
Walsall Council,http://opendatacommunities.org/id/metropolitan-district-council/walsall,WC93-263,30/06/2018,Economy & Environment,AECOM LIMITED,27/06/2018,"21,246.75",01001-OTHER CONSULTANTS FEES,CFR 1219 DARLASTON MONITORING AND EVALUATION,Capital,Capital
Walsall Council,http://opendatacommunities.org/id/metropolitan-district-council/walsall,WC93-264,30/06/2018,Childrens,AFB COACHING AND CONSULTANCY LTD,18/06/2018,"15,360.00",63000-PROFESSIONAL FEES AND SERVICES,SEN ASSESSMENT,Supplies & Services,Revenue
Walsall Council,http://opendatacommunities.org/id/metropolitan-district-council/walsall,WC93-265,30/06/2018,Adult Social Care,AGINCARE UK LTD,18/06/2018,"1,573.60",73372-DOMICILIARY CARE,OP PACKAGE/PLACEMENT COSTS,Third Party Payments,Revenue
Walsall Council,http://opendatacommunities.org/id/metropolitan-district-council/walsall,WC93-266,30/06/2018,Adult Social Care,REDACTED,11/06/2018,"2,616.00",76422-DIRECT PAYMENTS TO SOCIAL SERVICES CLIENTS,LD PACKAGE/PLACEMENT COSTS,Transfer Payments,Revenue
Walsall Council,http://opendatacommunities.org/id/metropolitan-district-council/walsall,WC93-267,30/06/2018,Adult Social Care,REDACTED,11/06/2018,"1,596.25",76422-DIRECT PAYMENTS TO SOCIAL SERVICES CLIENTS,OP PACKAGE/PLACEMENT COSTS,Transfer Payments,Revenue
Walsall Council,http://opendatacommunities.org/id/metropolitan-district-council/walsall,WC93-268,30/06/2018,Economy & Environment,ALAN CRISTEA GALLERY,01/06/2018,35.00,63500-POSTAGES AND COURIER SERVICES,NAG - NEW ART GALLERY SHOP STOCK,Supplies & Services,Revenue
Walsall Council,http://opendatacommunities.org/id/metropolitan-district-council/walsall,WC93-269,30/06/2018,Economy & Environment,ALAN CRISTEA GALLERY,01/06/2018,420.00,60529-SHOP STOCK-MATERIALS,NAG - NEW ART GALLERY SHOP STOCK,Supplies & Services,Revenue
Walsall Council,http://opendatacommunities.org/id/metropolitan-district-council/walsall,WC93-270,30/06/2018,Adult Social Care,REDACTED,11/06/2018,983.50,76422-DIRECT PAYMENTS TO SOCIAL SERVICES CLIENTS,OP PACKAGE/PLACEMENT COSTS,Transfer Payments,Revenue
Walsall Council,http://opendatacommunities.org/id/metropolitan-district-council/walsall,WC93-271,30/06/2018,Economy & Environment,ALBERT JAGGER LTD,06/06/2018,453.24,60514-MATERIALS TO STORES,FLEET PARTS STOCK ACCOUNT,Supplies & Services,Revenue
Walsall Council,http://opendatacommunities.org/id/metropolitan-district-council/walsall,WC93-272,30/06/2018,Childrens,ALBRIGHTON CARE LTD,18/06/2018,"9,980.00",74036-EXTERNAL RESIDENTIAL CARE-OTH AGENCY PROVISION,INDEPENDENT RESIDENTIAL HOMES,Third Party Payments,Revenue
Walsall Council,http://opendatacommunities.org/id/metropolitan-district-council/walsall,WC93-273,30/06/2018,Childrens,ALBRIGHTON CARE LTD,18/06/2018,"36,040.00",74036-EXTERNAL RESIDENTIAL CARE-OTH AGENCY PROVISION,INDEPENDENT RESIDENTIAL HOMES,Third Party Payments,Revenue
Walsall Council,http://opendatacommunities.org/id/metropolitan-district-council/walsall,WC93-274,30/06/2018,Economy & Environment,ALDERBROOK HEALTHCARE LTD,05/06/2018,"3,897.80",63000-PROFESSIONAL FEES AND SERVICES,CORONERS SERVICE,Supplies & Services,Revenue
Walsall Council,http://opendatacommunities.org/id/metropolitan-district-council/walsall,WC93-275,30/06/2018,Economy & Environment,ALDERCROSS LIMITED,04/06/2018,326.67,64001-COURSE/CONFERENCE EXPENSES,REGENERATION MANAGEMENT,Supplies & Services,Revenue
Walsall Council,http://opendatacommunities.org/id/metropolitan-district-council/walsall,WC93-276,30/06/2018,Childrens,ALDRIDGE & BARONS LIMITED,01/06/2018,"11,798.78",52000-WITH DRIVER-HIRE OF VEHICLES,HOME TO SCHOOL TRANSPORT,Transport,Revenue
Walsall Council,http://opendatacommunities.org/id/metropolitan-district-council/walsall,WC93-277,30/06/2018,Childrens,ALDRIDGE & BARONS LIMITED,01/06/2018,"14,477.40",52000-WITH DRIVER-HIRE OF VEHICLES,HOME TO SCHOOL TRANSPORT,Transport,Revenue
Walsall Council,http://opendatacommunities.org/id/metropolitan-district-council/walsall,WC93-278,30/06/2018,Resources and Transformation,ALDRIDGE VOLUNTEER GARDENERS,18/06/2018,"1,000.00",62001-STATIONERY & GENERAL SUPPLIES-OFFICE EXP,AREA PARTNERSHIPS,Supplies & Services,Revenue
Walsall Council,http://opendatacommunities.org/id/metropolitan-district-council/walsall,WC93-279,30/06/2018,Adult Social Care,ALEXANDRA HOUSE CARE SERVICES LTD T/A STONEBRIDGE NURSING HOME,12/06/2018,"7,117.44",73373-RESIDENTIAL & NURSING CARE PLACEMENTS,LD PACKAGE/PLACEMENT COSTS,Third Party Payments,Revenue
Walsall Council,http://opendatacommunities.org/id/metropolitan-district-council/walsall,WC93-280,30/06/2018,Adult Social Care,REDACTED,11/06/2018,"2,214.10",76422-DIRECT PAYMENTS TO SOCIAL SERVICES CLIENTS,OP PACKAGE/PLACEMENT COSTS,Transfer Payments,Revenue
Walsall Council,http://opendatacommunities.org/id/metropolitan-district-council/walsall,WC93-281,30/06/2018,Childrens,REDACTED,11/06/2018,360.00,76422-DIRECT PAYMENTS TO SOCIAL SERVICES CLIENTS,FAMILY SUPPORT - DIRECT PAYMENTS,Transfer Payments,Revenue
Walsall Council,http://opendatacommunities.org/id/metropolitan-district-council/walsall,WC93-282,30/06/2018,Resources and Transformation,ALIGNED ASSETS LTD,18/06/2018,"7,167.53",63820-RECHARGE FOR MAINTENANCE/APPLICATION COSTS-COMPUTER,APPLICATIONS,Supplies & Services,Revenue
Walsall Council,http://opendatacommunities.org/id/metropolitan-district-council/walsall,WC93-283,30/06/2018,Adult Social Care,REDACTED,22/06/2018,"1,301.64",73372-DOMICILIARY CARE,LD PACKAGE/PLACEMENT COSTS,Third Party Payments,Revenue
Walsall Council,http://opendatacommunities.org/id/metropolitan-district-council/walsall,WC93-284,30/06/2018,Adult Social Care,ALLSORTS OFFICE SUPPLIES LTD,28/06/2018,319.80,63800-COMPUTER EQUIPMENT AND SUPPLIES,EAST LOCALITY TEAM,Supplies & Services,Revenue
Walsall Council,http://opendatacommunities.org/id/metropolitan-district-council/walsall,WC93-285,30/06/2018,Adult Social Care,ALLSORTS OFFICE SUPPLIES LTD,28/06/2018,486.00,60000-FURNITURE & EQUIPMENT,COMMUNITY ALARMS SERVICE,Supplies & Services,Revenue
Walsall Council,http://opendatacommunities.org/id/metropolitan-district-council/walsall,WC93-286,30/06/2018,Resources and Transformation,ALLSORTS OFFICE SUPPLIES LTD,20/06/2018,"2,090.00",63800-COMPUTER EQUIPMENT AND SUPPLIES,RECHARGEABLE EQUIPMENT,Supplies & Services,Revenue
Walsall Council,http://opendatacommunities.org/id/metropolitan-district-council/walsall,WC93-287,30/06/2018,Resources and Transformation,ALLSORTS OFFICE SUPPLIES LTD,28/06/2018,"2,132.00",60006-NEW-FURNITURE & EQUIPMENT,APPLICATIONS,Supplies & Services,Revenue
Walsall Council,http://opendatacommunities.org/id/metropolitan-district-council/walsall,WC93-288,30/06/2018,Adult Social Care,ALMA COURT,01/06/2018,"2,790.00",73372-DOMICILIARY CARE,OP PACKAGE/PLACEMENT COSTS,Third Party Payments,Revenue
Walsall Council,http://opendatacommunities.org/id/metropolitan-district-council/walsall,WC93-289,30/06/2018,Childrens,ALMOZENE NURSERY & CHILDRENS CENTRE,01/06/2018,"2,205.45",66505-OTHER-GRANTS TO OTHER ORGS,EARLY YEARS - 3 YR OLDS,Third Party Payments,Revenue
Walsall Council,http://opendatacommunities.org/id/metropolitan-district-council/walsall,WC93-290,30/06/2018,Adult Social Care,ALPHA HEALTH CARE LTD,05/06/2018,642.86,73373-RESIDENTIAL & NURSING CARE PLACEMENTS,OP PACKAGE/PLACEMENT COSTS,Third Party Payments,Revenue
Walsall Council,http://opendatacommunities.org/id/metropolitan-district-council/walsall,WC93-291,30/06/2018,Adult Social Care,ALPHA HEALTH CARE LTD,05/06/2018,"1,285.71",73373-RESIDENTIAL & NURSING CARE PLACEMENTS,OP PACKAGE/PLACEMENT COSTS,Third Party Payments,Revenue
Walsall Council,http://opendatacommunities.org/id/metropolitan-district-council/walsall,WC93-292,30/06/2018,Adult Social Care,ALPHA HEALTH CARE LTD,05/06/2018,"1,383.68",73373-RESIDENTIAL & NURSING CARE PLACEMENTS,OP PACKAGE/PLACEMENT COSTS,Third Party Payments,Revenue
Walsall Council,http://opendatacommunities.org/id/metropolitan-district-council/walsall,WC93-293,30/06/2018,Adult Social Care,ALPHA HEALTH CARE LTD,12/06/2018,"1,688.84",73373-RESIDENTIAL & NURSING CARE PLACEMENTS,OP PACKAGE/PLACEMENT COSTS,Third Party Payments,Revenue
Walsall Council,http://opendatacommunities.org/id/metropolitan-district-council/walsall,WC93-294,30/06/2018,Adult Social Care,ALPHA HEALTH CARE LTD,19/06/2018,"1,688.84",73373-RESIDENTIAL & NURSING CARE PLACEMENTS,OP PACKAGE/PLACEMENT COSTS,Third Party Payments,Revenue
Walsall Council,http://opendatacommunities.org/id/metropolitan-district-council/walsall,WC93-295,30/06/2018,Adult Social Care,ALPHA HEALTH CARE LTD,19/06/2018,"1,876.52",73373-RESIDENTIAL & NURSING CARE PLACEMENTS,OP PACKAGE/PLACEMENT COSTS,Third Party Payments,Revenue
Walsall Council,http://opendatacommunities.org/id/metropolitan-district-council/walsall,WC93-296,30/06/2018,Adult Social Care,ALPHA HEALTH CARE LTD,19/06/2018,"2,039.68",73373-RESIDENTIAL & NURSING CARE PLACEMENTS,OP PACKAGE/PLACEMENT COSTS,Third Party Payments,Revenue
Walsall Council,http://opendatacommunities.org/id/metropolitan-district-council/walsall,WC93-297,30/06/2018,Adult Social Care,ALPHA HEALTH CARE LTD,19/06/2018,"2,160.00",73373-RESIDENTIAL & NURSING CARE PLACEMENTS,OP PACKAGE/PLACEMENT COSTS,Third Party Payments,Revenue
Walsall Council,http://opendatacommunities.org/id/metropolitan-district-council/walsall,WC93-298,30/06/2018,Adult Social Care,ALPHA HEALTH CARE LTD,12/06/2018,"2,243.64",73373-RESIDENTIAL & NURSING CARE PLACEMENTS,OP PACKAGE/PLACEMENT COSTS,Third Party Payments,Revenue
Walsall Council,http://opendatacommunities.org/id/metropolitan-district-council/walsall,WC93-299,30/06/2018,Adult Social Care,ALPHA HEALTH CARE LTD,12/06/2018,"2,243.64",73373-RESIDENTIAL & NURSING CARE PLACEMENTS,OP PACKAGE/PLACEMENT COSTS,Third Party Payments,Revenue
Walsall Council,http://opendatacommunities.org/id/metropolitan-district-council/walsall,WC93-300,30/06/2018,Adult Social Care,ALPHA HEALTH CARE LTD,12/06/2018,"2,243.64",73373-RESIDENTIAL & NURSING CARE PLACEMENTS,OP PACKAGE/PLACEMENT COSTS,Third Party Payments,Revenue
Walsall Council,http://opendatacommunities.org/id/metropolitan-district-council/walsall,WC93-301,30/06/2018,Adult Social Care,ALPHA HEALTH CARE LTD,12/06/2018,"2,243.64",73373-RESIDENTIAL & NURSING CARE PLACEMENTS,MENTAL HEALTH PACKAGE/PLACEMENT COSTS,Third Party Payments,Revenue
Walsall Council,http://opendatacommunities.org/id/metropolitan-district-council/walsall,WC93-302,30/06/2018,Adult Social Care,ALPHA HEALTH CARE LTD,12/06/2018,"2,326.00",73373-RESIDENTIAL & NURSING CARE PLACEMENTS,MENTAL HEALTH PACKAGE/PLACEMENT COSTS,Third Party Payments,Revenue
Walsall Council,http://opendatacommunities.org/id/metropolitan-district-council/walsall,WC93-303,30/06/2018,Adult Social Care,ALPHA HEALTH CARE LTD,12/06/2018,"2,379.80",73373-RESIDENTIAL & NURSING CARE PLACEMENTS,OP PACKAGE/PLACEMENT COSTS,Third Party Payments,Revenue
Walsall Council,http://opendatacommunities.org/id/metropolitan-district-council/walsall,WC93-304,30/06/2018,Adult Social Care,ALPHA HEALTH CARE LTD,19/06/2018,"2,484.88",73373-RESIDENTIAL & NURSING CARE PLACEMENTS,OP PACKAGE/PLACEMENT COSTS,Third Party Payments,Revenue
Walsall Council,http://opendatacommunities.org/id/metropolitan-district-council/walsall,WC93-305,30/06/2018,Adult Social Care,ALPHA HEALTH CARE LTD,12/06/2018,"2,688.84",73373-RESIDENTIAL & NURSING CARE PLACEMENTS,OP PACKAGE/PLACEMENT COSTS,Third Party Payments,Revenue
Walsall Council,http://opendatacommunities.org/id/metropolitan-district-council/walsall,WC93-306,30/06/2018,Adult Social Care,ALPHA HEALTH CARE LTD,05/06/2018,"2,767.36",73373-RESIDENTIAL & NURSING CARE PLACEMENTS,OP PACKAGE/PLACEMENT COSTS,Third Party Payments,Revenue
Walsall Council,http://opendatacommunities.org/id/metropolitan-district-council/walsall,WC93-307,30/06/2018,Adult Social Care,ALPHA HEALTH CARE LTD,12/06/2018,"2,767.36",73373-RESIDENTIAL & NURSING CARE PLACEMENTS,OP PACKAGE/PLACEMENT COSTS,Third Party Payments,Revenue
Walsall Council,http://opendatacommunities.org/id/metropolitan-district-council/walsall,WC93-308,30/06/2018,Adult Social Care,ALPHA HEALTH CARE LTD,05/06/2018,"2,779.80",73373-RESIDENTIAL & NURSING CARE PLACEMENTS,OP PACKAGE/PLACEMENT COSTS,Third Party Payments,Revenue
Walsall Council,http://opendatacommunities.org/id/metropolitan-district-council/walsall,WC93-309,30/06/2018,Adult Social Care,ALPHA HEALTH CARE LTD,12/06/2018,"2,779.80",73373-RESIDENTIAL & NURSING CARE PLACEMENTS,OP PACKAGE/PLACEMENT COSTS,Third Party Payments,Revenue
Walsall Council,http://opendatacommunities.org/id/metropolitan-district-council/walsall,WC93-310,30/06/2018,Adult Social Care,ALPHA HEALTH CARE LTD,12/06/2018,"2,823.44",73373-RESIDENTIAL & NURSING CARE PLACEMENTS,OP PACKAGE/PLACEMENT COSTS,Third Party Payments,Revenue
Walsall Council,http://opendatacommunities.org/id/metropolitan-district-council/walsall,WC93-311,30/06/2018,Adult Social Care,ALPHA HEALTH CARE LTD,12/06/2018,"5,440.28",73373-RESIDENTIAL & NURSING CARE PLACEMENTS,MENTAL HEALTH PACKAGE/PLACEMENT COSTS,Third Party Payments,Revenue
Walsall Council,http://opendatacommunities.org/id/metropolitan-district-council/walsall,WC93-312,30/06/2018,Childrens,ALPHABIOLABS,22/06/2018,253.50,73014-LEGAL FEES-PRIV CONTRACTOR FEES,GENERAL MANAGEMENT SUPPORT (INC LEGAL),Third Party Payments,Revenue
Walsall Council,http://opendatacommunities.org/id/metropolitan-district-council/walsall,WC93-313,30/06/2018,Childrens,ALPHABIOLABS,18/06/2018,649.00,63000-PROFESSIONAL FEES AND SERVICES,SAFEGUARDING & FAMILY SUPPORT,Supplies & Services,Revenue
Walsall Council,http://opendatacommunities.org/id/metropolitan-district-council/walsall,WC93-314,30/06/2018,Childrens,ALPHABIOLABS,19/06/2018,"1,210.00",73014-LEGAL FEES-PRIV CONTRACTOR FEES,GENERAL MANAGEMENT SUPPORT (INC LEGAL),Third Party Payments,Revenue
Walsall Council,http://opendatacommunities.org/id/metropolitan-district-council/walsall,WC93-315,30/06/2018,Childrens,ALTUM RESIDENTIAL CARE LTD,18/06/2018,"18,642.85",74036-EXTERNAL RESIDENTIAL CARE-OTH AGENCY PROVISION,INDEPENDENT RESIDENTIAL HOMES,Third Party Payments,Revenue
Walsall Council,http://opendatacommunities.org/id/metropolitan-district-council/walsall,WC93-316,30/06/2018,Childrens,AMAH NURSERIES LIMITED T/A BANANA MOON WALSALL,01/06/2018,"7,125.30",66505-OTHER-GRANTS TO OTHER ORGS,EARLY YEARS - 3 YR OLDS,Third Party Payments,Revenue
Walsall Council,http://opendatacommunities.org/id/metropolitan-district-council/walsall,WC93-317,30/06/2018,Childrens,AMAH NURSERIES LIMITED T/A BANANA MOON WALSALL,01/06/2018,"7,152.60",66505-OTHER-GRANTS TO OTHER ORGS,EARLY YEARS - 2 YR OLDS,Third Party Payments,Revenue
Walsall Council,http://opendatacommunities.org/id/metropolitan-district-council/walsall,WC93-318,30/06/2018,Childrens,REDACTED,04/06/2018,318.08,74510-RESIDENTS ORDERS,ADOPTION ALLOWANCES,Third Party Payments,Revenue
Walsall Council,http://opendatacommunities.org/id/metropolitan-district-council/walsall,WC93-319,30/06/2018,Childrens,REDACTED,04/06/2018,318.08,74510-RESIDENTS ORDERS,ADOPTION ALLOWANCES,Third Party Payments,Revenue
Walsall Council,http://opendatacommunities.org/id/metropolitan-district-council/walsall,WC93-320,30/06/2018,Childrens,REDACTED,04/06/2018,808.04,74009-ADOPTION ALLOWANCE,ADOPTION ALLOWANCES,Transfer Payments,Revenue
Walsall Council,http://opendatacommunities.org/id/metropolitan-district-council/walsall,WC93-321,30/06/2018,Childrens,REDACTED,18/06/2018,-685.71,74508-INTERNAL FOSTER CARERS-CARER FEES,INTERNAL FOSTER CARE PROVISION,Transfer Payments,Revenue
Walsall Council,http://opendatacommunities.org/id/metropolitan-district-council/walsall,WC93-322,30/06/2018,Childrens,REDACTED,18/06/2018,407.13,74501-MAINTENANCE ALLOWANCE-FOSTER CARERS,INTERNAL FOSTER CARE PROVISION,Transfer Payments,Revenue
Walsall Council,http://opendatacommunities.org/id/metropolitan-district-council/walsall,WC93-323,30/06/2018,Childrens,REDACTED,18/06/2018,428.57,74508-INTERNAL FOSTER CARERS-CARER FEES,INTERNAL FOSTER CARE PROVISION,Transfer Payments,Revenue
Walsall Council,http://opendatacommunities.org/id/metropolitan-district-council/walsall,WC93-324,30/06/2018,Childrens,AMANS TRAVEL LTD,12/06/2018,"15,322.00",52000-WITH DRIVER-HIRE OF VEHICLES,HOME TO SCHOOL TRANSPORT,Transport,Revenue
Walsall Council,http://opendatacommunities.org/id/metropolitan-district-council/walsall,WC93-325,30/06/2018,Adult Social Care,REDACTED,11/06/2018,"1,122.00",76422-DIRECT PAYMENTS TO SOCIAL SERVICES CLIENTS,LD PACKAGE/PLACEMENT COSTS,Transfer Payments,Revenue
Walsall Council,http://opendatacommunities.org/id/metropolitan-district-council/walsall,WC93-326,30/06/2018,Economy & Environment,AMEY LG LIMITED,18/06/2018,"1,359.43",01002-PROJECT FEES,CFR 1128 A461 NATIONAL PRODUCTIVITY INVESTMENT FUND (NPIF),Capital,Capital
Walsall Council,http://opendatacommunities.org/id/metropolitan-district-council/walsall,WC93-327,30/06/2018,Economy & Environment,AMEY LG LIMITED,13/06/2018,"1,398.76",01006-SITE WORKS MAIN CONTRACTORS,CFR 1281 HIGHWAY EFFICIENCY PROGRAMME,Capital,Capital
Walsall Council,http://opendatacommunities.org/id/metropolitan-district-council/walsall,WC93-328,30/06/2018,Economy & Environment,AMEY LG LIMITED,20/06/2018,"13,173.81",73025-PROFESSIONAL SERVICES-PRIV CONTRACTOR & OTHER AGENCIES,TRAFFIC MANAGEMENT,Third Party Payments,Revenue
Walsall Council,http://opendatacommunities.org/id/metropolitan-district-council/walsall,WC93-329,30/06/2018,Economy & Environment,AMEY LG LIMITED,01/06/2018,"16,981.59",01006-SITE WORKS MAIN CONTRACTORS,CFR 1198 HIGHWAY EFFICIENCY MEASURES,Capital,Capital
Walsall Council,http://opendatacommunities.org/id/metropolitan-district-council/walsall,WC93-330,30/06/2018,Childrens,AMG NURSING CARE SERVICES,22/06/2018,"2,260.24",63000-PROFESSIONAL FEES AND SERVICES,DIRECTLY COMMISSIONED NURSING SERVICES,Supplies & Services,Revenue
Walsall Council,http://opendatacommunities.org/id/metropolitan-district-council/walsall,WC93-331,30/06/2018,Childrens,AMG NURSING CARE SERVICES,08/06/2018,"2,274.48",63000-PROFESSIONAL FEES AND SERVICES,DIRECTLY COMMISSIONED NURSING SERVICES,Supplies & Services,Revenue
Walsall Council,http://opendatacommunities.org/id/metropolitan-district-council/walsall,WC93-332,30/06/2018,Childrens,AMG NURSING CARE SERVICES,08/06/2018,"2,315.68",63000-PROFESSIONAL FEES AND SERVICES,DIRECTLY COMMISSIONED NURSING SERVICES,Supplies & Services,Revenue
Walsall Council,http://opendatacommunities.org/id/metropolitan-district-council/walsall,WC93-333,30/06/2018,Adult Social Care,AMG NURSING CARE SERVICES,22/06/2018,"3,640.00",73372-DOMICILIARY CARE,PD PACKAGE/PLACEMENT COSTS,Third Party Payments,Revenue
Walsall Council,http://opendatacommunities.org/id/metropolitan-district-council/walsall,WC93-334,30/06/2018,Adult Social Care,AMG NURSING CARE SERVICES,19/06/2018,"10,711.68",73372-DOMICILIARY CARE,OP PACKAGE/PLACEMENT COSTS,Third Party Payments,Revenue
Walsall Council,http://opendatacommunities.org/id/metropolitan-district-council/walsall,WC93-335,30/06/2018,Childrens,REDACTED,04/06/2018,340.00,74508-INTERNAL FOSTER CARERS-CARER FEES,FAMILY & FRIENDS FOSTER CARE PROVISION,Transfer Payments,Revenue
Walsall Council,http://opendatacommunities.org/id/metropolitan-district-council/walsall,WC93-336,30/06/2018,Childrens,REDACTED,04/06/2018,600.00,74501-MAINTENANCE ALLOWANCE-FOSTER CARERS,FAMILY & FRIENDS FOSTER CARE PROVISION,Transfer Payments,Revenue
Walsall Council,http://opendatacommunities.org/id/metropolitan-district-council/walsall,WC93-337,30/06/2018,Childrens,REDACTED,04/06/2018,425.08,74510-RESIDENTS ORDERS,ADOPTION ALLOWANCES,Third Party Payments,Revenue
Walsall Council,http://opendatacommunities.org/id/metropolitan-district-council/walsall,WC93-338,30/06/2018,Adult Social Care,ANCHOR,05/06/2018,"-2,335.71",73373-RESIDENTIAL & NURSING CARE PLACEMENTS,OP PACKAGE/PLACEMENT COSTS,Third Party Payments,Revenue
Walsall Council,http://opendatacommunities.org/id/metropolitan-district-council/walsall,WC93-339,30/06/2018,Adult Social Care,ANCHOR,26/06/2018,288.00,73373-RESIDENTIAL & NURSING CARE PLACEMENTS,OP PACKAGE/PLACEMENT COSTS,Third Party Payments,Revenue
Walsall Council,http://opendatacommunities.org/id/metropolitan-district-council/walsall,WC93-340,30/06/2018,Adult Social Care,ANCHOR,19/06/2018,552.86,73373-RESIDENTIAL & NURSING CARE PLACEMENTS,OP PACKAGE/PLACEMENT COSTS,Third Party Payments,Revenue
Walsall Council,http://opendatacommunities.org/id/metropolitan-district-council/walsall,WC93-341,30/06/2018,Adult Social Care,ANCHOR,26/06/2018,648.00,73373-RESIDENTIAL & NURSING CARE PLACEMENTS,OP PACKAGE/PLACEMENT COSTS,Third Party Payments,Revenue
Walsall Council,http://opendatacommunities.org/id/metropolitan-district-council/walsall,WC93-342,30/06/2018,Adult Social Care,ANCHOR,05/06/2018,854.29,73373-RESIDENTIAL & NURSING CARE PLACEMENTS,OP PACKAGE/PLACEMENT COSTS,Third Party Payments,Revenue
Walsall Council,http://opendatacommunities.org/id/metropolitan-district-council/walsall,WC93-343,30/06/2018,Adult Social Care,ANCHOR,19/06/2018,900.00,73373-RESIDENTIAL & NURSING CARE PLACEMENTS,OP PACKAGE/PLACEMENT COSTS,Third Party Payments,Revenue
Walsall Council,http://opendatacommunities.org/id/metropolitan-district-council/walsall,WC93-344,30/06/2018,Adult Social Care,ANCHOR,05/06/2018,985.71,73373-RESIDENTIAL & NURSING CARE PLACEMENTS,OP PACKAGE/PLACEMENT COSTS,Third Party Payments,Revenue
Walsall Council,http://opendatacommunities.org/id/metropolitan-district-council/walsall,WC93-345,30/06/2018,Adult Social Care,ANCHOR,26/06/2018,"1,080.00",73373-RESIDENTIAL & NURSING CARE PLACEMENTS,OP PACKAGE/PLACEMENT COSTS,Third Party Payments,Revenue
Walsall Council,http://opendatacommunities.org/id/metropolitan-district-council/walsall,WC93-346,30/06/2018,Adult Social Care,ANCHOR,05/06/2018,"1,182.86",73373-RESIDENTIAL & NURSING CARE PLACEMENTS,OP PACKAGE/PLACEMENT COSTS,Third Party Payments,Revenue
Walsall Council,http://opendatacommunities.org/id/metropolitan-district-council/walsall,WC93-347,30/06/2018,Adult Social Care,ANCHOR,05/06/2018,"1,656.00",73373-RESIDENTIAL & NURSING CARE PLACEMENTS,OP PACKAGE/PLACEMENT COSTS,Third Party Payments,Revenue
Walsall Council,http://opendatacommunities.org/id/metropolitan-district-council/walsall,WC93-348,30/06/2018,Adult Social Care,ANCHOR,05/06/2018,"1,656.00",73373-RESIDENTIAL & NURSING CARE PLACEMENTS,OP PACKAGE/PLACEMENT COSTS,Third Party Payments,Revenue
Walsall Council,http://opendatacommunities.org/id/metropolitan-district-council/walsall,WC93-349,30/06/2018,Adult Social Care,ANCHOR,26/06/2018,"1,688.84",73373-RESIDENTIAL & NURSING CARE PLACEMENTS,OP PACKAGE/PLACEMENT COSTS,Third Party Payments,Revenue
Walsall Council,http://opendatacommunities.org/id/metropolitan-district-council/walsall,WC93-350,30/06/2018,Adult Social Care,ANCHOR,19/06/2018,"1,816.00",73373-RESIDENTIAL & NURSING CARE PLACEMENTS,OP PACKAGE/PLACEMENT COSTS,Third Party Payments,Revenue
Walsall Council,http://opendatacommunities.org/id/metropolitan-district-council/walsall,WC93-351,30/06/2018,Adult Social Care,ANCHOR,05/06/2018,"1,840.00",73373-RESIDENTIAL & NURSING CARE PLACEMENTS,OP PACKAGE/PLACEMENT COSTS,Third Party Payments,Revenue
Walsall Council,http://opendatacommunities.org/id/metropolitan-district-council/walsall,WC93-352,30/06/2018,Adult Social Care,ANCHOR,05/06/2018,"1,840.00",73373-RESIDENTIAL & NURSING CARE PLACEMENTS,OP PACKAGE/PLACEMENT COSTS,Third Party Payments,Revenue
Walsall Council,http://opendatacommunities.org/id/metropolitan-district-council/walsall,WC93-353,30/06/2018,Adult Social Care,ANCHOR,05/06/2018,"1,840.00",73373-RESIDENTIAL & NURSING CARE PLACEMENTS,OP PACKAGE/PLACEMENT COSTS,Third Party Payments,Revenue
Walsall Council,http://opendatacommunities.org/id/metropolitan-district-council/walsall,WC93-354,30/06/2018,Adult Social Care,ANCHOR,05/06/2018,"1,840.00",73373-RESIDENTIAL & NURSING CARE PLACEMENTS,OP PACKAGE/PLACEMENT COSTS,Third Party Payments,Revenue
Walsall Council,http://opendatacommunities.org/id/metropolitan-district-council/walsall,WC93-355,30/06/2018,Adult Social Care,ANCHOR,05/06/2018,"1,840.00",73373-RESIDENTIAL & NURSING CARE PLACEMENTS,OP PACKAGE/PLACEMENT COSTS,Third Party Payments,Revenue
Walsall Council,http://opendatacommunities.org/id/metropolitan-district-council/walsall,WC93-356,30/06/2018,Adult Social Care,ANCHOR,05/06/2018,"1,840.00",73373-RESIDENTIAL & NURSING CARE PLACEMENTS,OP PACKAGE/PLACEMENT COSTS,Third Party Payments,Revenue
Walsall Council,http://opendatacommunities.org/id/metropolitan-district-council/walsall,WC93-357,30/06/2018,Adult Social Care,ANCHOR,05/06/2018,"1,840.00",73373-RESIDENTIAL & NURSING CARE PLACEMENTS,OP PACKAGE/PLACEMENT COSTS,Third Party Payments,Revenue
Walsall Council,http://opendatacommunities.org/id/metropolitan-district-council/walsall,WC93-358,30/06/2018,Adult Social Care,ANCHOR,05/06/2018,"1,840.00",73373-RESIDENTIAL & NURSING CARE PLACEMENTS,OP PACKAGE/PLACEMENT COSTS,Third Party Payments,Revenue
Walsall Council,http://opendatacommunities.org/id/metropolitan-district-council/walsall,WC93-359,30/06/2018,Adult Social Care,ANCHOR,05/06/2018,"1,840.00",73373-RESIDENTIAL & NURSING CARE PLACEMENTS,OP PACKAGE/PLACEMENT COSTS,Third Party Payments,Revenue
Walsall Council,http://opendatacommunities.org/id/metropolitan-district-council/walsall,WC93-360,30/06/2018,Adult Social Care,ANCHOR,19/06/2018,"1,840.00",73373-RESIDENTIAL & NURSING CARE PLACEMENTS,OP PACKAGE/PLACEMENT COSTS,Third Party Payments,Revenue
Walsall Council,http://opendatacommunities.org/id/metropolitan-district-council/walsall,WC93-361,30/06/2018,Adult Social Care,ANCHOR,19/06/2018,"1,840.00",73373-RESIDENTIAL & NURSING CARE PLACEMENTS,OP PACKAGE/PLACEMENT COSTS,Third Party Payments,Revenue
Walsall Council,http://opendatacommunities.org/id/metropolitan-district-council/walsall,WC93-362,30/06/2018,Adult Social Care,ANCHOR,19/06/2018,"1,840.00",73373-RESIDENTIAL & NURSING CARE PLACEMENTS,OP PACKAGE/PLACEMENT COSTS,Third Party Payments,Revenue
Walsall Council,http://opendatacommunities.org/id/metropolitan-district-council/walsall,WC93-363,30/06/2018,Adult Social Care,ANCHOR,19/06/2018,"1,840.00",73373-RESIDENTIAL & NURSING CARE PLACEMENTS,OP PACKAGE/PLACEMENT COSTS,Third Party Payments,Revenue
Walsall Council,http://opendatacommunities.org/id/metropolitan-district-council/walsall,WC93-364,30/06/2018,Adult Social Care,ANCHOR,19/06/2018,"1,840.00",73373-RESIDENTIAL & NURSING CARE PLACEMENTS,OP PACKAGE/PLACEMENT COSTS,Third Party Payments,Revenue
Walsall Council,http://opendatacommunities.org/id/metropolitan-district-council/walsall,WC93-365,30/06/2018,Adult Social Care,ANCHOR,19/06/2018,"1,840.00",73373-RESIDENTIAL & NURSING CARE PLACEMENTS,MENTAL HEALTH PACKAGE/PLACEMENT COSTS,Third Party Payments,Revenue
Walsall Council,http://opendatacommunities.org/id/metropolitan-district-council/walsall,WC93-366,30/06/2018,Adult Social Care,ANCHOR,26/06/2018,"1,840.00",73373-RESIDENTIAL & NURSING CARE PLACEMENTS,OP PACKAGE/PLACEMENT COSTS,Third Party Payments,Revenue
Walsall Council,http://opendatacommunities.org/id/metropolitan-district-council/walsall,WC93-367,30/06/2018,Adult Social Care,ANCHOR,19/06/2018,"1,996.00",73373-RESIDENTIAL & NURSING CARE PLACEMENTS,OP PACKAGE/PLACEMENT COSTS,Third Party Payments,Revenue
Walsall Council,http://opendatacommunities.org/id/metropolitan-district-council/walsall,WC93-368,30/06/2018,Adult Social Care,ANCHOR,26/06/2018,"2,016.00",73373-RESIDENTIAL & NURSING CARE PLACEMENTS,OP PACKAGE/PLACEMENT COSTS,Third Party Payments,Revenue
Walsall Council,http://opendatacommunities.org/id/metropolitan-district-council/walsall,WC93-369,30/06/2018,Adult Social Care,ANCHOR,26/06/2018,"2,016.00",73373-RESIDENTIAL & NURSING CARE PLACEMENTS,OP PACKAGE/PLACEMENT COSTS,Third Party Payments,Revenue
Walsall Council,http://opendatacommunities.org/id/metropolitan-district-council/walsall,WC93-370,30/06/2018,Adult Social Care,ANCHOR,26/06/2018,"2,016.00",73373-RESIDENTIAL & NURSING CARE PLACEMENTS,OP PACKAGE/PLACEMENT COSTS,Third Party Payments,Revenue
Walsall Council,http://opendatacommunities.org/id/metropolitan-district-council/walsall,WC93-371,30/06/2018,Adult Social Care,ANCHOR,26/06/2018,"2,020.00",73373-RESIDENTIAL & NURSING CARE PLACEMENTS,OP PACKAGE/PLACEMENT COSTS,Third Party Payments,Revenue
Walsall Council,http://opendatacommunities.org/id/metropolitan-district-council/walsall,WC93-372,30/06/2018,Adult Social Care,ANCHOR,19/06/2018,"2,080.00",73373-RESIDENTIAL & NURSING CARE PLACEMENTS,MENTAL HEALTH PACKAGE/PLACEMENT COSTS,Third Party Payments,Revenue
Walsall Council,http://opendatacommunities.org/id/metropolitan-district-council/walsall,WC93-373,30/06/2018,Adult Social Care,ANCHOR,05/06/2018,"2,180.00",73373-RESIDENTIAL & NURSING CARE PLACEMENTS,OP PACKAGE/PLACEMENT COSTS,Third Party Payments,Revenue
Walsall Council,http://opendatacommunities.org/id/metropolitan-district-council/walsall,WC93-374,30/06/2018,Adult Social Care,ANCHOR,19/06/2018,"2,180.00",73373-RESIDENTIAL & NURSING CARE PLACEMENTS,OP PACKAGE/PLACEMENT COSTS,Third Party Payments,Revenue
Walsall Council,http://opendatacommunities.org/id/metropolitan-district-council/walsall,WC93-375,30/06/2018,Adult Social Care,ANCHOR,19/06/2018,"2,180.00",73373-RESIDENTIAL & NURSING CARE PLACEMENTS,OP PACKAGE/PLACEMENT COSTS,Third Party Payments,Revenue
Walsall Council,http://opendatacommunities.org/id/metropolitan-district-council/walsall,WC93-376,30/06/2018,Adult Social Care,ANCHOR,19/06/2018,"2,200.00",73373-RESIDENTIAL & NURSING CARE PLACEMENTS,OP PACKAGE/PLACEMENT COSTS,Third Party Payments,Revenue
Walsall Council,http://opendatacommunities.org/id/metropolitan-district-council/walsall,WC93-377,30/06/2018,Adult Social Care,ANCHOR,26/06/2018,"3,618.94",73373-RESIDENTIAL & NURSING CARE PLACEMENTS,OP PACKAGE/PLACEMENT COSTS,Third Party Payments,Revenue
Walsall Council,http://opendatacommunities.org/id/metropolitan-district-council/walsall,WC93-378,30/06/2018,Childrens,REDACTED,04/06/2018,314.44,74509-SPECIAL GUARDIANSHIP ORDERS,ADOPTION ALLOWANCES,Transfer Payments,Revenue
Walsall Council,http://opendatacommunities.org/id/metropolitan-district-council/walsall,WC93-379,30/06/2018,Childrens,REDACTED,18/06/2018,398.52,74506-TRAVEL-FOSTER CARERS,INTERNAL FOSTER CARE PROVISION,Transfer Payments,Revenue
Walsall Council,http://opendatacommunities.org/id/metropolitan-district-council/walsall,WC93-380,30/06/2018,Childrens,REDACTED,18/06/2018,720.00,74501-MAINTENANCE ALLOWANCE-FOSTER CARERS,INTERNAL FOSTER CARE PROVISION,Transfer Payments,Revenue
Walsall Council,http://opendatacommunities.org/id/metropolitan-district-council/walsall,WC93-381,30/06/2018,Childrens,REDACTED,18/06/2018,"1,000.00",74508-INTERNAL FOSTER CARERS-CARER FEES,INTERNAL FOSTER CARE PROVISION,Transfer Payments,Revenue
Walsall Council,http://opendatacommunities.org/id/metropolitan-district-council/walsall,WC93-382,30/06/2018,Adult Social Care,REDACTED,11/06/2018,"2,214.10",76422-DIRECT PAYMENTS TO SOCIAL SERVICES CLIENTS,OP PACKAGE/PLACEMENT COSTS,Transfer Payments,Revenue
Walsall Council,http://opendatacommunities.org/id/metropolitan-district-council/walsall,WC93-383,30/06/2018,Adult Social Care,ANGEL COURT RESIDENTIAL CARE HOME,12/06/2018,"1,869.79",73373-RESIDENTIAL & NURSING CARE PLACEMENTS,OP PACKAGE/PLACEMENT COSTS,Third Party Payments,Revenue
Walsall Council,http://opendatacommunities.org/id/metropolitan-district-council/walsall,WC93-384,30/06/2018,Adult Social Care,ANGEL COURT RESIDENTIAL CARE HOME,12/06/2018,"2,077.58",73373-RESIDENTIAL & NURSING CARE PLACEMENTS,OP PACKAGE/PLACEMENT COSTS,Third Party Payments,Revenue
Walsall Council,http://opendatacommunities.org/id/metropolitan-district-council/walsall,WC93-385,30/06/2018,Adult Social Care,ANGEL COURT RESIDENTIAL CARE HOME,12/06/2018,"2,158.57",73373-RESIDENTIAL & NURSING CARE PLACEMENTS,OP PACKAGE/PLACEMENT COSTS,Third Party Payments,Revenue
Walsall Council,http://opendatacommunities.org/id/metropolitan-district-council/walsall,WC93-386,30/06/2018,Adult Social Care,ANGEL COURT RESIDENTIAL CARE HOME,12/06/2018,"2,190.50",73373-RESIDENTIAL & NURSING CARE PLACEMENTS,OP PACKAGE/PLACEMENT COSTS,Third Party Payments,Revenue
Walsall Council,http://opendatacommunities.org/id/metropolitan-district-council/walsall,WC93-387,30/06/2018,Childrens,REDACTED,04/06/2018,368.76,74509-SPECIAL GUARDIANSHIP ORDERS,ADOPTION ALLOWANCES,Transfer Payments,Revenue
Walsall Council,http://opendatacommunities.org/id/metropolitan-district-council/walsall,WC93-388,30/06/2018,Childrens,REDACTED,04/06/2018,368.76,74509-SPECIAL GUARDIANSHIP ORDERS,ADOPTION ALLOWANCES,Transfer Payments,Revenue
Walsall Council,http://opendatacommunities.org/id/metropolitan-district-council/walsall,WC93-389,30/06/2018,Childrens,REDACTED,04/06/2018,500.16,74509-SPECIAL GUARDIANSHIP ORDERS,ADOPTION ALLOWANCES,Transfer Payments,Revenue
Walsall Council,http://opendatacommunities.org/id/metropolitan-district-council/walsall,WC93-390,30/06/2018,Childrens,REDACTED,04/06/2018,312.04,74509-SPECIAL GUARDIANSHIP ORDERS,ADOPTION ALLOWANCES,Transfer Payments,Revenue
Walsall Council,http://opendatacommunities.org/id/metropolitan-district-council/walsall,WC93-391,30/06/2018,Adult Social Care,REDACTED,11/06/2018,409.20,76422-DIRECT PAYMENTS TO SOCIAL SERVICES CLIENTS,LD PACKAGE/PLACEMENT COSTS,Transfer Payments,Revenue
Walsall Council,http://opendatacommunities.org/id/metropolitan-district-council/walsall,WC93-392,30/06/2018,Adult Social Care,REDACTED,18/06/2018,308.80,73372-DOMICILIARY CARE,LD PACKAGE/PLACEMENT COSTS,Third Party Payments,Revenue
Walsall Council,http://opendatacommunities.org/id/metropolitan-district-council/walsall,WC93-393,30/06/2018,Adult Social Care,REDACTED,18/06/2018,309.20,73372-DOMICILIARY CARE,LD PACKAGE/PLACEMENT COSTS,Third Party Payments,Revenue
Walsall Council,http://opendatacommunities.org/id/metropolitan-district-council/walsall,WC93-394,30/06/2018,Adult Social Care,REDACTED,18/06/2018,313.20,73372-DOMICILIARY CARE,LD PACKAGE/PLACEMENT COSTS,Third Party Payments,Revenue
Walsall Council,http://opendatacommunities.org/id/metropolitan-district-council/walsall,WC93-395,30/06/2018,Adult Social Care,REDACTED,11/06/2018,"1,440.15",76422-DIRECT PAYMENTS TO SOCIAL SERVICES CLIENTS,OP PACKAGE/PLACEMENT COSTS,Transfer Payments,Revenue
Walsall Council,http://opendatacommunities.org/id/metropolitan-district-council/walsall,WC93-396,30/06/2018,Adult Social Care,ANSON COURT RESIDENTIAL HOME,12/06/2018,"1,876.52",73373-RESIDENTIAL & NURSING CARE PLACEMENTS,OP PACKAGE/PLACEMENT COSTS,Third Party Payments,Revenue
Walsall Council,http://opendatacommunities.org/id/metropolitan-district-council/walsall,WC93-397,30/06/2018,Adult Social Care,ANSON COURT RESIDENTIAL HOME,12/06/2018,"1,876.52",73373-RESIDENTIAL & NURSING CARE PLACEMENTS,OP PACKAGE/PLACEMENT COSTS,Third Party Payments,Revenue
Walsall Council,http://opendatacommunities.org/id/metropolitan-district-council/walsall,WC93-398,30/06/2018,Adult Social Care,ANSON COURT RESIDENTIAL HOME,12/06/2018,"1,876.52",73373-RESIDENTIAL & NURSING CARE PLACEMENTS,OP PACKAGE/PLACEMENT COSTS,Third Party Payments,Revenue
Walsall Council,http://opendatacommunities.org/id/metropolitan-district-council/walsall,WC93-399,30/06/2018,Adult Social Care,ANSON COURT RESIDENTIAL HOME,12/06/2018,"1,876.52",73373-RESIDENTIAL & NURSING CARE PLACEMENTS,OP PACKAGE/PLACEMENT COSTS,Third Party Payments,Revenue
Walsall Council,http://opendatacommunities.org/id/metropolitan-district-council/walsall,WC93-400,30/06/2018,Adult Social Care,ANSON COURT RESIDENTIAL HOME,12/06/2018,"1,876.52",73373-RESIDENTIAL & NURSING CARE PLACEMENTS,OP PACKAGE/PLACEMENT COSTS,Third Party Payments,Revenue
Walsall Council,http://opendatacommunities.org/id/metropolitan-district-council/walsall,WC93-401,30/06/2018,Adult Social Care,ANSON COURT RESIDENTIAL HOME,12/06/2018,"1,876.52",73373-RESIDENTIAL & NURSING CARE PLACEMENTS,OP PACKAGE/PLACEMENT COSTS,Third Party Payments,Revenue
Walsall Council,http://opendatacommunities.org/id/metropolitan-district-council/walsall,WC93-402,30/06/2018,Adult Social Care,ANSON COURT RESIDENTIAL HOME,12/06/2018,"1,876.52",73373-RESIDENTIAL & NURSING CARE PLACEMENTS,OP PACKAGE/PLACEMENT COSTS,Third Party Payments,Revenue
Walsall Council,http://opendatacommunities.org/id/metropolitan-district-council/walsall,WC93-403,30/06/2018,Adult Social Care,ANSON COURT RESIDENTIAL HOME,12/06/2018,"1,876.52",73373-RESIDENTIAL & NURSING CARE PLACEMENTS,MENTAL HEALTH PACKAGE/PLACEMENT COSTS,Third Party Payments,Revenue
Walsall Council,http://opendatacommunities.org/id/metropolitan-district-council/walsall,WC93-404,30/06/2018,Adult Social Care,ANSON COURT RESIDENTIAL HOME,12/06/2018,"1,876.52",73373-RESIDENTIAL & NURSING CARE PLACEMENTS,OP PACKAGE/PLACEMENT COSTS,Third Party Payments,Revenue
Walsall Council,http://opendatacommunities.org/id/metropolitan-district-council/walsall,WC93-405,30/06/2018,Adult Social Care,ANSON COURT RESIDENTIAL HOME,12/06/2018,"1,876.52",73373-RESIDENTIAL & NURSING CARE PLACEMENTS,OP PACKAGE/PLACEMENT COSTS,Third Party Payments,Revenue
Walsall Council,http://opendatacommunities.org/id/metropolitan-district-council/walsall,WC93-406,30/06/2018,Adult Social Care,ANSON COURT RESIDENTIAL HOME,12/06/2018,"1,876.52",73373-RESIDENTIAL & NURSING CARE PLACEMENTS,OP PACKAGE/PLACEMENT COSTS,Third Party Payments,Revenue
Walsall Council,http://opendatacommunities.org/id/metropolitan-district-council/walsall,WC93-407,30/06/2018,Adult Social Care,ANSON COURT RESIDENTIAL HOME,12/06/2018,"1,876.52",73373-RESIDENTIAL & NURSING CARE PLACEMENTS,OP PACKAGE/PLACEMENT COSTS,Third Party Payments,Revenue
Walsall Council,http://opendatacommunities.org/id/metropolitan-district-council/walsall,WC93-408,30/06/2018,Adult Social Care,ANSON COURT RESIDENTIAL HOME,12/06/2018,"1,876.52",73373-RESIDENTIAL & NURSING CARE PLACEMENTS,OP PACKAGE/PLACEMENT COSTS,Third Party Payments,Revenue
Walsall Council,http://opendatacommunities.org/id/metropolitan-district-council/walsall,WC93-409,30/06/2018,Adult Social Care,ANSON COURT RESIDENTIAL HOME,12/06/2018,"1,876.52",73373-RESIDENTIAL & NURSING CARE PLACEMENTS,OP PACKAGE/PLACEMENT COSTS,Third Party Payments,Revenue
Walsall Council,http://opendatacommunities.org/id/metropolitan-district-council/walsall,WC93-410,30/06/2018,Adult Social Care,ANSON COURT RESIDENTIAL HOME,12/06/2018,"1,876.52",73373-RESIDENTIAL & NURSING CARE PLACEMENTS,OP PACKAGE/PLACEMENT COSTS,Third Party Payments,Revenue
Walsall Council,http://opendatacommunities.org/id/metropolitan-district-council/walsall,WC93-411,30/06/2018,Adult Social Care,ANSON COURT RESIDENTIAL HOME,12/06/2018,"1,876.52",73373-RESIDENTIAL & NURSING CARE PLACEMENTS,OP PACKAGE/PLACEMENT COSTS,Third Party Payments,Revenue
Walsall Council,http://opendatacommunities.org/id/metropolitan-district-council/walsall,WC93-412,30/06/2018,Adult Social Care,ANSON COURT RESIDENTIAL HOME,12/06/2018,"1,876.52",73373-RESIDENTIAL & NURSING CARE PLACEMENTS,OP PACKAGE/PLACEMENT COSTS,Third Party Payments,Revenue
Walsall Council,http://opendatacommunities.org/id/metropolitan-district-council/walsall,WC93-413,30/06/2018,Adult Social Care,ANSON COURT RESIDENTIAL HOME,12/06/2018,"1,956.52",73373-RESIDENTIAL & NURSING CARE PLACEMENTS,OP PACKAGE/PLACEMENT COSTS,Third Party Payments,Revenue
Walsall Council,http://opendatacommunities.org/id/metropolitan-district-council/walsall,WC93-414,30/06/2018,Adult Social Care,ANSON COURT RESIDENTIAL HOME,12/06/2018,"1,956.52",73373-RESIDENTIAL & NURSING CARE PLACEMENTS,OP PACKAGE/PLACEMENT COSTS,Third Party Payments,Revenue
Walsall Council,http://opendatacommunities.org/id/metropolitan-district-council/walsall,WC93-415,30/06/2018,Adult Social Care,ANSON COURT RESIDENTIAL HOME,12/06/2018,"1,956.52",73373-RESIDENTIAL & NURSING CARE PLACEMENTS,MENTAL HEALTH PACKAGE/PLACEMENT COSTS,Third Party Payments,Revenue
Walsall Council,http://opendatacommunities.org/id/metropolitan-district-council/walsall,WC93-416,30/06/2018,Adult Social Care,ANSON COURT RESIDENTIAL HOME,12/06/2018,"1,956.52",73373-RESIDENTIAL & NURSING CARE PLACEMENTS,OP PACKAGE/PLACEMENT COSTS,Third Party Payments,Revenue
Walsall Council,http://opendatacommunities.org/id/metropolitan-district-council/walsall,WC93-417,30/06/2018,Adult Social Care,ANSON COURT RESIDENTIAL HOME,12/06/2018,"1,956.52",73373-RESIDENTIAL & NURSING CARE PLACEMENTS,OP PACKAGE/PLACEMENT COSTS,Third Party Payments,Revenue
Walsall Council,http://opendatacommunities.org/id/metropolitan-district-council/walsall,WC93-418,30/06/2018,Adult Social Care,ANSON COURT RESIDENTIAL HOME,19/06/2018,"1,996.52",73373-RESIDENTIAL & NURSING CARE PLACEMENTS,OP PACKAGE/PLACEMENT COSTS,Third Party Payments,Revenue
Walsall Council,http://opendatacommunities.org/id/metropolitan-district-council/walsall,WC93-419,30/06/2018,Adult Social Care,ANSON COURT RESIDENTIAL HOME,12/06/2018,"4,956.52",73373-RESIDENTIAL & NURSING CARE PLACEMENTS,MENTAL HEALTH PACKAGE/PLACEMENT COSTS,Third Party Payments,Revenue
Walsall Council,http://opendatacommunities.org/id/metropolitan-district-council/walsall,WC93-420,30/06/2018,Adult Social Care,ANSON COURT RESIDENTIAL HOME,05/06/2018,"5,989.56",73373-RESIDENTIAL & NURSING CARE PLACEMENTS,OP PACKAGE/PLACEMENT COSTS,Third Party Payments,Revenue
Walsall Council,http://opendatacommunities.org/id/metropolitan-district-council/walsall,WC93-421,30/06/2018,Childrens,REDACTED,04/06/2018,604.00,74510-RESIDENTS ORDERS,ADOPTION ALLOWANCES,Third Party Payments,Revenue
Walsall Council,http://opendatacommunities.org/id/metropolitan-district-council/walsall,WC93-422,30/06/2018,Childrens,REDACTED,04/06/2018,483.12,74509-SPECIAL GUARDIANSHIP ORDERS,ADOPTION ALLOWANCES,Transfer Payments,Revenue
Walsall Council,http://opendatacommunities.org/id/metropolitan-district-council/walsall,WC93-423,30/06/2018,Economy & Environment,APCOA PARKING SERVICES (UK) LTD,22/06/2018,"44,555.95",73025-PROFESSIONAL SERVICES-PRIV CONTRACTOR & OTHER AGENCIES,PARKING SERVICES OFF-STREET,Third Party Payments,Revenue
Walsall Council,http://opendatacommunities.org/id/metropolitan-district-council/walsall,WC93-424,30/06/2018,Resources and Transformation,APP CARZ,22/06/2018,282.00,52000-WITH DRIVER-HIRE OF VEHICLES,ADVICE & GUIDANCE SERVICE,Transport,Revenue
Walsall Council,http://opendatacommunities.org/id/metropolitan-district-council/walsall,WC93-425,30/06/2018,Childrens,APP CARZ,06/06/2018,"1,315.00",52000-WITH DRIVER-HIRE OF VEHICLES,HOME TO SCHOOL TRANSPORT,Transport,Revenue
Walsall Council,http://opendatacommunities.org/id/metropolitan-district-council/walsall,WC93-426,30/06/2018,Childrens,APP CARZ,06/06/2018,"2,244.00",52000-WITH DRIVER-HIRE OF VEHICLES,HOME TO SCHOOL TRANSPORT,Transport,Revenue
Walsall Council,http://opendatacommunities.org/id/metropolitan-district-council/walsall,WC93-427,30/06/2018,Economy & Environment,AQUA FORCE SPECIAL WASTE LTD,04/06/2018,500.00,73029-HAZARDOUS WASTE REMOVAL/DISPOSAL-PRIV CONTRACTOR FEES,WASTE DISPOSAL - RESIDUAL,Third Party Payments,Revenue
Walsall Council,http://opendatacommunities.org/id/metropolitan-district-council/walsall,WC93-428,30/06/2018,Economy & Environment,AQUALYMPIC,18/06/2018,300.00,63124-FEES & LICENCES-SERVICES,DARLASTON LEISURE CENTRE,Supplies & Services,Revenue
Walsall Council,http://opendatacommunities.org/id/metropolitan-district-council/walsall,WC93-429,30/06/2018,Economy & Environment,AQUALYMPIC,21/06/2018,350.00,34305-AGENCY STAFF-EMPLOYEES,BLOXWICH LEISURE CENTRE,Employees,Revenue
Walsall Council,http://opendatacommunities.org/id/metropolitan-district-council/walsall,WC93-430,30/06/2018,Economy & Environment,AQUALYMPIC,18/06/2018,500.00,34305-AGENCY STAFF-EMPLOYEES,BLOXWICH LEISURE CENTRE,Employees,Revenue
Walsall Council,http://opendatacommunities.org/id/metropolitan-district-council/walsall,WC93-431,30/06/2018,Economy & Environment,AQUAMO LTD,27/06/2018,"1,829.95",60007-REPAIR OF EQUIPMENT-EQUIPMENT,WALSALL GALA CENTRE,Supplies & Services,Revenue
Walsall Council,http://opendatacommunities.org/id/metropolitan-district-council/walsall,WC93-432,30/06/2018,Adult Social Care,ARBORETUM NURSING HOME.,11/06/2018,745.00,73019-PSE'S-PRIV CONTRACTOR FEES,INTEGRATED DISCHARGE TEAM,Third Party Payments,Revenue
Walsall Council,http://opendatacommunities.org/id/metropolitan-district-council/walsall,WC93-433,30/06/2018,Adult Social Care,ARBORETUM NURSING HOME.,05/06/2018,"1,146.26",73373-RESIDENTIAL & NURSING CARE PLACEMENTS,OP PACKAGE/PLACEMENT COSTS,Third Party Payments,Revenue
Walsall Council,http://opendatacommunities.org/id/metropolitan-district-council/walsall,WC93-434,30/06/2018,Adult Social Care,ARBORETUM NURSING HOME.,12/06/2018,"2,000.00",73373-RESIDENTIAL & NURSING CARE PLACEMENTS,OP PACKAGE/PLACEMENT COSTS,Third Party Payments,Revenue
Walsall Council,http://opendatacommunities.org/id/metropolitan-district-council/walsall,WC93-435,30/06/2018,Adult Social Care,ARBORETUM NURSING HOME.,12/06/2018,"2,100.00",73373-RESIDENTIAL & NURSING CARE PLACEMENTS,OP PACKAGE/PLACEMENT COSTS,Third Party Payments,Revenue
Walsall Council,http://opendatacommunities.org/id/metropolitan-district-council/walsall,WC93-436,30/06/2018,Adult Social Care,ARBORETUM NURSING HOME.,05/06/2018,"2,139.68",73373-RESIDENTIAL & NURSING CARE PLACEMENTS,OP PACKAGE/PLACEMENT COSTS,Third Party Payments,Revenue
Walsall Council,http://opendatacommunities.org/id/metropolitan-district-council/walsall,WC93-437,30/06/2018,Adult Social Care,ARBORETUM NURSING HOME.,12/06/2018,"2,500.00",73373-RESIDENTIAL & NURSING CARE PLACEMENTS,PD PACKAGE/PLACEMENT COSTS,Third Party Payments,Revenue
Walsall Council,http://opendatacommunities.org/id/metropolitan-district-council/walsall,WC93-438,30/06/2018,Adult Social Care,ARBORETUM NURSING HOME.,12/06/2018,"2,500.00",73373-RESIDENTIAL & NURSING CARE PLACEMENTS,OP PACKAGE/PLACEMENT COSTS,Third Party Payments,Revenue
Walsall Council,http://opendatacommunities.org/id/metropolitan-district-council/walsall,WC93-439,30/06/2018,Adult Social Care,ARBORETUM NURSING HOME.,12/06/2018,"2,600.00",73373-RESIDENTIAL & NURSING CARE PLACEMENTS,OP PACKAGE/PLACEMENT COSTS,Third Party Payments,Revenue
Walsall Council,http://opendatacommunities.org/id/metropolitan-district-council/walsall,WC93-440,30/06/2018,Adult Social Care,ARBORETUM NURSING HOME.,26/06/2018,"2,980.00",73025-PROFESSIONAL SERVICES-PRIV CONTRACTOR & OTHER AGENCIES,TRANSITIONAL CARE SUPPORT TEAM,Third Party Payments,Revenue
Walsall Council,http://opendatacommunities.org/id/metropolitan-district-council/walsall,WC93-441,30/06/2018,Adult Social Care,ARBORETUM NURSING HOME.,19/06/2018,"14,900.00",73019-PSE'S-PRIV CONTRACTOR FEES,INTEGRATED DISCHARGE TEAM,Third Party Payments,Revenue
Walsall Council,http://opendatacommunities.org/id/metropolitan-district-council/walsall,WC93-442,30/06/2018,Adult Social Care,ARBORETUM NURSING HOME.,19/06/2018,"14,900.00",73019-PSE'S-PRIV CONTRACTOR FEES,INTEGRATED DISCHARGE TEAM,Third Party Payments,Revenue
Walsall Council,http://opendatacommunities.org/id/metropolitan-district-council/walsall,WC93-443,30/06/2018,Economy & Environment,ARCADIS,18/06/2018,"6,092.12",01001-OTHER CONSULTANTS FEES,CFR 1072 CHALLENGE BLOCK-LGF,Capital,Capital
Walsall Council,http://opendatacommunities.org/id/metropolitan-district-council/walsall,WC93-444,30/06/2018,Economy & Environment,ARCADIS,20/06/2018,"8,000.00",63000-PROFESSIONAL FEES AND SERVICES,SMARTER WORKPLACES WORKPLACE SOLUTIONS,Supplies & Services,Revenue
Walsall Council,http://opendatacommunities.org/id/metropolitan-district-council/walsall,WC93-445,30/06/2018,Economy & Environment,ARCANE DIRECT MARKETING,18/06/2018,505.95,62511-DISTRIBUTION,NAG - ART GALLERY MARKETING,Supplies & Services,Revenue
Walsall Council,http://opendatacommunities.org/id/metropolitan-district-council/walsall,WC93-446,30/06/2018,Economy & Environment,ARCANE DIRECT MARKETING,18/06/2018,"1,348.20",62511-DISTRIBUTION,NAG - ART GALLERY MARKETING,Supplies & Services,Revenue
Walsall Council,http://opendatacommunities.org/id/metropolitan-district-council/walsall,WC93-447,30/06/2018,Childrens,ARCHWAY ACADEMY,25/06/2018,"20,636.00",66502-TOP UP FUNDING -GRANTS TO SCHOOLS,INDEPENDENT PROVIDERS - SPECIAL & AP,Third Party Payments,Revenue
Walsall Council,http://opendatacommunities.org/id/metropolitan-district-council/walsall,WC93-448,30/06/2018,Economy & Environment,ARCHWAY TCS LTD,18/06/2018,353.02,73025-PROFESSIONAL SERVICES-PRIV CONTRACTOR & OTHER AGENCIES,DEPOT,Third Party Payments,Revenue
Walsall Council,http://opendatacommunities.org/id/metropolitan-district-council/walsall,WC93-449,30/06/2018,Adult Social Care,ARK HOME HEALTHCARE LIMITED,20/06/2018,"26,726.83",73372-DOMICILIARY CARE,OP PACKAGE/PLACEMENT COSTS,Third Party Payments,Revenue
Walsall Council,http://opendatacommunities.org/id/metropolitan-district-council/walsall,WC93-450,30/06/2018,Resources and Transformation,ARMSTRONG YORK ASBESTOS ENVIRONMENTAL LIMITED,27/06/2018,240.00,01006-SITE WORKS MAIN CONTRACTORS,CFR 801 ASBESTOS REMOVAL EAST,Capital,Capital
Walsall Council,http://opendatacommunities.org/id/metropolitan-district-council/walsall,WC93-451,30/06/2018,Childrens,ARNFIELD CARE LIMITED,18/06/2018,"15,616.00",74036-EXTERNAL RESIDENTIAL CARE-OTH AGENCY PROVISION,INDEPENDENT RESIDENTIAL HOMES,Third Party Payments,Revenue
Walsall Council,http://opendatacommunities.org/id/metropolitan-district-council/walsall,WC93-452,30/06/2018,Childrens,ARTHUR M GRIFFITHS & SON LTD,18/06/2018,"256,987.79",01006-SITE WORKS MAIN CONTRACTORS,CFR 929 FIBBERSLEY PRIMARY SIGNIFICANT ENLARGEMENT,Capital,Capital
Walsall Council,http://opendatacommunities.org/id/metropolitan-district-council/walsall,WC93-453,30/06/2018,Adult Social Care,ASH GRANGE CARE HOME,05/06/2018,655.61,73373-RESIDENTIAL & NURSING CARE PLACEMENTS,OP PACKAGE/PLACEMENT COSTS,Third Party Payments,Revenue
Walsall Council,http://opendatacommunities.org/id/metropolitan-district-council/walsall,WC93-454,30/06/2018,Adult Social Care,ASH GRANGE CARE HOME,05/06/2018,"1,384.07",73373-RESIDENTIAL & NURSING CARE PLACEMENTS,OP PACKAGE/PLACEMENT COSTS,Third Party Payments,Revenue
Walsall Council,http://opendatacommunities.org/id/metropolitan-district-council/walsall,WC93-455,30/06/2018,Adult Social Care,ASH GRANGE CARE HOME,05/06/2018,"1,688.84",73373-RESIDENTIAL & NURSING CARE PLACEMENTS,OP PACKAGE/PLACEMENT COSTS,Third Party Payments,Revenue
Walsall Council,http://opendatacommunities.org/id/metropolitan-district-council/walsall,WC93-456,30/06/2018,Adult Social Care,ASH GRANGE CARE HOME,12/06/2018,"1,688.84",73373-RESIDENTIAL & NURSING CARE PLACEMENTS,OP PACKAGE/PLACEMENT COSTS,Third Party Payments,Revenue
Walsall Council,http://opendatacommunities.org/id/metropolitan-district-council/walsall,WC93-457,30/06/2018,Adult Social Care,ASH GRANGE CARE HOME,12/06/2018,"1,688.84",73373-RESIDENTIAL & NURSING CARE PLACEMENTS,OP PACKAGE/PLACEMENT COSTS,Third Party Payments,Revenue
Walsall Council,http://opendatacommunities.org/id/metropolitan-district-council/walsall,WC93-458,30/06/2018,Adult Social Care,ASH GRANGE CARE HOME,05/06/2018,"2,039.68",73373-RESIDENTIAL & NURSING CARE PLACEMENTS,OP PACKAGE/PLACEMENT COSTS,Third Party Payments,Revenue
Walsall Council,http://opendatacommunities.org/id/metropolitan-district-council/walsall,WC93-459,30/06/2018,Adult Social Care,ASH GRANGE CARE HOME,05/06/2018,"2,039.68",73373-RESIDENTIAL & NURSING CARE PLACEMENTS,OP PACKAGE/PLACEMENT COSTS,Third Party Payments,Revenue
Walsall Council,http://opendatacommunities.org/id/metropolitan-district-council/walsall,WC93-460,30/06/2018,Adult Social Care,ASH GRANGE CARE HOME,12/06/2018,"2,039.68",73373-RESIDENTIAL & NURSING CARE PLACEMENTS,OP PACKAGE/PLACEMENT COSTS,Third Party Payments,Revenue
Walsall Council,http://opendatacommunities.org/id/metropolitan-district-council/walsall,WC93-461,30/06/2018,Adult Social Care,ASH GRANGE CARE HOME,12/06/2018,"2,039.68",73373-RESIDENTIAL & NURSING CARE PLACEMENTS,OP PACKAGE/PLACEMENT COSTS,Third Party Payments,Revenue
Walsall Council,http://opendatacommunities.org/id/metropolitan-district-council/walsall,WC93-462,30/06/2018,Adult Social Care,ASH GRANGE CARE HOME,12/06/2018,"2,039.68",73373-RESIDENTIAL & NURSING CARE PLACEMENTS,MENTAL HEALTH PACKAGE/PLACEMENT COSTS,Third Party Payments,Revenue
Walsall Council,http://opendatacommunities.org/id/metropolitan-district-council/walsall,WC93-463,30/06/2018,Adult Social Care,ASH GRANGE CARE HOME,12/06/2018,"2,039.68",73373-RESIDENTIAL & NURSING CARE PLACEMENTS,OP PACKAGE/PLACEMENT COSTS,Third Party Payments,Revenue
Walsall Council,http://opendatacommunities.org/id/metropolitan-district-council/walsall,WC93-464,30/06/2018,Adult Social Care,ASH GRANGE CARE HOME,12/06/2018,"2,039.68",73373-RESIDENTIAL & NURSING CARE PLACEMENTS,OP PACKAGE/PLACEMENT COSTS,Third Party Payments,Revenue
Walsall Council,http://opendatacommunities.org/id/metropolitan-district-council/walsall,WC93-465,30/06/2018,Adult Social Care,ASH GRANGE CARE HOME,12/06/2018,"2,039.68",73373-RESIDENTIAL & NURSING CARE PLACEMENTS,OP PACKAGE/PLACEMENT COSTS,Third Party Payments,Revenue
Walsall Council,http://opendatacommunities.org/id/metropolitan-district-council/walsall,WC93-466,30/06/2018,Adult Social Care,ASH GRANGE CARE HOME,12/06/2018,"2,039.68",73373-RESIDENTIAL & NURSING CARE PLACEMENTS,OP PACKAGE/PLACEMENT COSTS,Third Party Payments,Revenue
Walsall Council,http://opendatacommunities.org/id/metropolitan-district-council/walsall,WC93-467,30/06/2018,Adult Social Care,ASH GRANGE CARE HOME,12/06/2018,"2,039.68",73373-RESIDENTIAL & NURSING CARE PLACEMENTS,OP PACKAGE/PLACEMENT COSTS,Third Party Payments,Revenue
Walsall Council,http://opendatacommunities.org/id/metropolitan-district-council/walsall,WC93-468,30/06/2018,Adult Social Care,ASH GRANGE CARE HOME,12/06/2018,"2,039.68",73373-RESIDENTIAL & NURSING CARE PLACEMENTS,OP PACKAGE/PLACEMENT COSTS,Third Party Payments,Revenue
Walsall Council,http://opendatacommunities.org/id/metropolitan-district-council/walsall,WC93-469,30/06/2018,Adult Social Care,ASH GRANGE CARE HOME,12/06/2018,"2,039.68",73373-RESIDENTIAL & NURSING CARE PLACEMENTS,OP PACKAGE/PLACEMENT COSTS,Third Party Payments,Revenue
Walsall Council,http://opendatacommunities.org/id/metropolitan-district-council/walsall,WC93-470,30/06/2018,Adult Social Care,ASH GRANGE CARE HOME,19/06/2018,"2,039.68",73373-RESIDENTIAL & NURSING CARE PLACEMENTS,OP PACKAGE/PLACEMENT COSTS,Third Party Payments,Revenue
Walsall Council,http://opendatacommunities.org/id/metropolitan-district-council/walsall,WC93-471,30/06/2018,Adult Social Care,ASH GRANGE CARE HOME,19/06/2018,"2,039.68",73373-RESIDENTIAL & NURSING CARE PLACEMENTS,OP PACKAGE/PLACEMENT COSTS,Third Party Payments,Revenue
Walsall Council,http://opendatacommunities.org/id/metropolitan-district-council/walsall,WC93-472,30/06/2018,Adult Social Care,ASH GRANGE CARE HOME,05/06/2018,"2,243.64",73373-RESIDENTIAL & NURSING CARE PLACEMENTS,OP PACKAGE/PLACEMENT COSTS,Third Party Payments,Revenue
Walsall Council,http://opendatacommunities.org/id/metropolitan-district-council/walsall,WC93-473,30/06/2018,Adult Social Care,ASH GRANGE CARE HOME,05/06/2018,"2,243.64",73373-RESIDENTIAL & NURSING CARE PLACEMENTS,OP PACKAGE/PLACEMENT COSTS,Third Party Payments,Revenue
Walsall Council,http://opendatacommunities.org/id/metropolitan-district-council/walsall,WC93-474,30/06/2018,Adult Social Care,ASH GRANGE CARE HOME,19/06/2018,"2,243.64",73373-RESIDENTIAL & NURSING CARE PLACEMENTS,OP PACKAGE/PLACEMENT COSTS,Third Party Payments,Revenue
Walsall Council,http://opendatacommunities.org/id/metropolitan-district-council/walsall,WC93-475,30/06/2018,Adult Social Care,ASH GRANGE CARE HOME,19/06/2018,"2,243.64",73373-RESIDENTIAL & NURSING CARE PLACEMENTS,OP PACKAGE/PLACEMENT COSTS,Third Party Payments,Revenue
Walsall Council,http://opendatacommunities.org/id/metropolitan-district-council/walsall,WC93-476,30/06/2018,Adult Social Care,ASH GRANGE CARE HOME,12/06/2018,"2,319.68",73373-RESIDENTIAL & NURSING CARE PLACEMENTS,OP PACKAGE/PLACEMENT COSTS,Third Party Payments,Revenue
Walsall Council,http://opendatacommunities.org/id/metropolitan-district-council/walsall,WC93-477,30/06/2018,Adult Social Care,ASH GRANGE CARE HOME,19/06/2018,"2,495.72",73373-RESIDENTIAL & NURSING CARE PLACEMENTS,PD PACKAGE/PLACEMENT COSTS,Third Party Payments,Revenue
Walsall Council,http://opendatacommunities.org/id/metropolitan-district-council/walsall,WC93-478,30/06/2018,Adult Social Care,ASHBOURNE LODGE,05/06/2018,"2,173.99",73373-RESIDENTIAL & NURSING CARE PLACEMENTS,OP PACKAGE/PLACEMENT COSTS,Third Party Payments,Revenue
Walsall Council,http://opendatacommunities.org/id/metropolitan-district-council/walsall,WC93-479,30/06/2018,Adult Social Care,REDACTED,11/06/2018,527.50,76422-DIRECT PAYMENTS TO SOCIAL SERVICES CLIENTS,LD PACKAGE/PLACEMENT COSTS,Transfer Payments,Revenue
Walsall Council,http://opendatacommunities.org/id/metropolitan-district-council/walsall,WC93-480,30/06/2018,Economy & Environment,ASIA CONTINENTAL STORE,20/06/2018,499.20,60501-LIBRARY BOOKS,LIBRARY STOCK AND PERFORMANCE,Supplies & Services,Revenue
Walsall Council,http://opendatacommunities.org/id/metropolitan-district-council/walsall,WC93-481,30/06/2018,Adult Social Care,REDACTED,11/06/2018,"1,071.00",76422-DIRECT PAYMENTS TO SOCIAL SERVICES CLIENTS,OP PACKAGE/PLACEMENT COSTS,Transfer Payments,Revenue
Walsall Council,http://opendatacommunities.org/id/metropolitan-district-council/walsall,WC93-482,30/06/2018,Adult Social Care,ASSURED HEALTHCARE SOLUTIONS (PARK FARM LODGE),12/06/2018,"2,157.77",73373-RESIDENTIAL & NURSING CARE PLACEMENTS,OP PACKAGE/PLACEMENT COSTS,Third Party Payments,Revenue
Walsall Council,http://opendatacommunities.org/id/metropolitan-district-council/walsall,WC93-483,30/06/2018,Resources and Transformation,ASTECH CONSULTANTS LTD,18/06/2018,"6,926.91",64500-PUBLICATIONS/ORGANISATIONS-SUBSCRIPTIONS,COMMITTEE ADMINISTRATION,Supplies & Services,Revenue
Walsall Council,http://opendatacommunities.org/id/metropolitan-district-council/walsall,WC93-484,30/06/2018,Resources and Transformation,ASTUN TECHNOLOGY LIMITED,04/06/2018,"4,250.00",63800-COMPUTER EQUIPMENT AND SUPPLIES,RECHARGEABLE EQUIPMENT,Supplies & Services,Revenue
Walsall Council,http://opendatacommunities.org/id/metropolitan-district-council/walsall,WC93-485,30/06/2018,Economy & Environment,ATHWAL NEWS LTD,11/06/2018,338.67,60501-LIBRARY BOOKS,LIBRARY STOCK AND PERFORMANCE,Supplies & Services,Revenue
Walsall Council,http://opendatacommunities.org/id/metropolitan-district-council/walsall,WC93-486,30/06/2018,Economy & Environment,ATHWAL NEWS LTD,11/06/2018,349.01,60501-LIBRARY BOOKS,LIBRARY STOCK AND PERFORMANCE,Supplies & Services,Revenue
Walsall Council,http://opendatacommunities.org/id/metropolitan-district-council/walsall,WC93-487,30/06/2018,Childrens,ATTACHMENT WORKS LTD,22/06/2018,"4,962.50",63102-CONSULTANTS FEES - CORPORATE,ADOPTION TEAM,Supplies & Services,Revenue
Walsall Council,http://opendatacommunities.org/id/metropolitan-district-council/walsall,WC93-488,30/06/2018,Childrens,ATTACHMENT WORKS LTD,22/06/2018,"4,981.25",63102-CONSULTANTS FEES - CORPORATE,ADOPTION TEAM,Supplies & Services,Revenue
Walsall Council,http://opendatacommunities.org/id/metropolitan-district-council/walsall,WC93-489,30/06/2018,Adult Social Care,AUTISM WEST MIDLANDS,19/06/2018,"7,608.73",73373-RESIDENTIAL & NURSING CARE PLACEMENTS,LD PACKAGE/PLACEMENT COSTS,Third Party Payments,Revenue
Walsall Council,http://opendatacommunities.org/id/metropolitan-district-council/walsall,WC93-490,30/06/2018,Adult Social Care,AUTISM WEST MIDLANDS,19/06/2018,"7,862.35",73373-RESIDENTIAL & NURSING CARE PLACEMENTS,LD PACKAGE/PLACEMENT COSTS,Third Party Payments,Revenue
Walsall Council,http://opendatacommunities.org/id/metropolitan-district-council/walsall,WC93-491,30/06/2018,Adult Social Care,AUTISM WEST MIDLANDS 001,19/06/2018,"5,086.03",73373-RESIDENTIAL & NURSING CARE PLACEMENTS,LD PACKAGE/PLACEMENT COSTS,Third Party Payments,Revenue
Walsall Council,http://opendatacommunities.org/id/metropolitan-district-council/walsall,WC93-492,30/06/2018,Adult Social Care,AUTISM WEST MIDLANDS 001,19/06/2018,"5,255.57",73373-RESIDENTIAL & NURSING CARE PLACEMENTS,LD PACKAGE/PLACEMENT COSTS,Third Party Payments,Revenue
Walsall Council,http://opendatacommunities.org/id/metropolitan-district-council/walsall,WC93-493,30/06/2018,Adult Social Care,REDACTED,11/06/2018,"1,236.30",76422-DIRECT PAYMENTS TO SOCIAL SERVICES CLIENTS,OP PACKAGE/PLACEMENT COSTS,Transfer Payments,Revenue
Walsall Council,http://opendatacommunities.org/id/metropolitan-district-council/walsall,WC93-494,30/06/2018,Childrens,REDACTED,11/06/2018,"1,605.00",76422-DIRECT PAYMENTS TO SOCIAL SERVICES CLIENTS,FAMILY SUPPORT - DIRECT PAYMENTS,Transfer Payments,Revenue
Walsall Council,http://opendatacommunities.org/id/metropolitan-district-council/walsall,WC93-495,30/06/2018,Adult Social Care,REDACTED,11/06/2018,"3,978.00",76422-DIRECT PAYMENTS TO SOCIAL SERVICES CLIENTS,LD PACKAGE/PLACEMENT COSTS,Transfer Payments,Revenue
Walsall Council,http://opendatacommunities.org/id/metropolitan-district-council/walsall,WC93-496,30/06/2018,Childrens,REDACTED,05/06/2018,464.00,76000-TRANSFER PAYMENTS - SOCIAL SERVICES CLIENTS,TRANSITION AND LEAVING CARE PLACEMENTS,Transfer Payments,Revenue
Walsall Council,http://opendatacommunities.org/id/metropolitan-district-council/walsall,WC93-497,30/06/2018,Childrens,REDACTED,05/06/2018,464.00,76000-TRANSFER PAYMENTS - SOCIAL SERVICES CLIENTS,TRANSITION AND LEAVING CARE PLACEMENTS,Transfer Payments,Revenue
Walsall Council,http://opendatacommunities.org/id/metropolitan-district-council/walsall,WC93-498,30/06/2018,Childrens,REDACTED,19/06/2018,464.00,76000-TRANSFER PAYMENTS - SOCIAL SERVICES CLIENTS,TRANSITION AND LEAVING CARE PLACEMENTS,Transfer Payments,Revenue
Walsall Council,http://opendatacommunities.org/id/metropolitan-district-council/walsall,WC93-499,30/06/2018,Childrens,REDACTED,19/06/2018,464.00,76000-TRANSFER PAYMENTS - SOCIAL SERVICES CLIENTS,TRANSITION AND LEAVING CARE PLACEMENTS,Transfer Payments,Revenue
Walsall Council,http://opendatacommunities.org/id/metropolitan-district-council/walsall,WC93-500,30/06/2018,Economy & Environment,BAART HARRIES NEWALL,13/06/2018,"1,600.00",01002-PROJECT FEES,CFR 632 WALSALL ARBORETUM RESTORATION PROGRAMME,Capital,Capital
Walsall Council,http://opendatacommunities.org/id/metropolitan-district-council/walsall,WC93-501,30/06/2018,Economy & Environment,BAART HARRIES NEWALL,13/06/2018,"1,678.30",01002-PROJECT FEES,CFR 632 WALSALL ARBORETUM RESTORATION PROGRAMME,Capital,Capital
Walsall Council,http://opendatacommunities.org/id/metropolitan-district-council/walsall,WC93-502,30/06/2018,Childrens,BACK CARE SOLUTIONS LTD,20/06/2018,"1,182.00",60006-NEW-FURNITURE & EQUIPMENT,SAFEGUARDING & FAMILY SUPPORT,Supplies & Services,Revenue
Walsall Council,http://opendatacommunities.org/id/metropolitan-district-council/walsall,WC93-503,30/06/2018,Economy & Environment,BAKER HALL PARTNERSHIP,19/06/2018,424.00,63000-PROFESSIONAL FEES AND SERVICES,BUILDING CONTROL REVENUE FUNDED,Supplies & Services,Revenue
Walsall Council,http://opendatacommunities.org/id/metropolitan-district-council/walsall,WC93-504,30/06/2018,Adult Social Care,REDACTED,11/06/2018,600.00,76422-DIRECT PAYMENTS TO SOCIAL SERVICES CLIENTS,MENTAL HEALTH PACKAGE/PLACEMENT COSTS,Transfer Payments,Revenue
Walsall Council,http://opendatacommunities.org/id/metropolitan-district-council/walsall,WC93-505,30/06/2018,Adult Social Care,REDACTED,11/06/2018,"4,161.00",76422-DIRECT PAYMENTS TO SOCIAL SERVICES CLIENTS,LD PACKAGE/PLACEMENT COSTS,Transfer Payments,Revenue
Walsall Council,http://opendatacommunities.org/id/metropolitan-district-council/walsall,WC93-506,30/06/2018,Adult Social Care,REDACTED,11/06/2018,"1,978.58",76422-DIRECT PAYMENTS TO SOCIAL SERVICES CLIENTS,OP PACKAGE/PLACEMENT COSTS,Transfer Payments,Revenue
Walsall Council,http://opendatacommunities.org/id/metropolitan-district-council/walsall,WC93-507,30/06/2018,Childrens,REDACTED,04/06/2018,100.00,74503-BIRTHDAY ALLOWANCE-FOSTER CARERS,FAMILY & FRIENDS FOSTER CARE PROVISION,Transfer Payments,Revenue
Walsall Council,http://opendatacommunities.org/id/metropolitan-district-council/walsall,WC93-508,30/06/2018,Childrens,REDACTED,04/06/2018,340.00,74508-INTERNAL FOSTER CARERS-CARER FEES,FAMILY & FRIENDS FOSTER CARE PROVISION,Transfer Payments,Revenue
Walsall Council,http://opendatacommunities.org/id/metropolitan-district-council/walsall,WC93-509,30/06/2018,Childrens,REDACTED,04/06/2018,"1,240.00",74501-MAINTENANCE ALLOWANCE-FOSTER CARERS,FAMILY & FRIENDS FOSTER CARE PROVISION,Transfer Payments,Revenue
Walsall Council,http://opendatacommunities.org/id/metropolitan-district-council/walsall,WC93-510,30/06/2018,Adult Social Care,REDACTED,11/06/2018,"1,018.65",76422-DIRECT PAYMENTS TO SOCIAL SERVICES CLIENTS,OP PACKAGE/PLACEMENT COSTS,Transfer Payments,Revenue
Walsall Council,http://opendatacommunities.org/id/metropolitan-district-council/walsall,WC93-511,30/06/2018,Childrens,BARNARDOS SERVICES LTD,27/06/2018,800.00,69400-REFERENCE BOOKS,PARENTING TEAM,Supplies & Services,Revenue
Walsall Council,http://opendatacommunities.org/id/metropolitan-district-council/walsall,WC93-512,30/06/2018,Childrens,BARNARDOS SERVICES LTD,27/06/2018,"3,000.00",69400-REFERENCE BOOKS,PARENTING TEAM,Supplies & Services,Revenue
Walsall Council,http://opendatacommunities.org/id/metropolitan-district-council/walsall,WC93-513,30/06/2018,Childrens,BARNARDOS SERVICES LTD,18/06/2018,"3,116.40",74037-INDEPENDENT FOSTER CARE-OTH AGENCY PROVISION,EXTERNAL FOSTER CARE PROVISION,Third Party Payments,Revenue
Walsall Council,http://opendatacommunities.org/id/metropolitan-district-council/walsall,WC93-514,30/06/2018,Childrens,BARNARDOS SERVICES LTD,04/06/2018,"9,000.00",63000-PROFESSIONAL FEES AND SERVICES,ADOPTION SUPPORT FUND,Supplies & Services,Revenue
Walsall Council,http://opendatacommunities.org/id/metropolitan-district-council/walsall,WC93-515,30/06/2018,Childrens,BARNARDOS SERVICES LTD,04/06/2018,"9,000.00",63000-PROFESSIONAL FEES AND SERVICES,ADOPTION TEAM,Supplies & Services,Revenue
Walsall Council,http://opendatacommunities.org/id/metropolitan-district-council/walsall,WC93-516,30/06/2018,Childrens,BARR BEACON SCHOOL TRUST,26/06/2018,"1,325.00",77300-ISB-FORMULA ALLOCATION,BARR BEACON SCHOOL TRUST (ACADEMY),Transfer Payments,Revenue
Walsall Council,http://opendatacommunities.org/id/metropolitan-district-council/walsall,WC93-517,30/06/2018,Adult Social Care,BARTHOLAMEW LODGE CARE HOME,26/06/2018,"2,823.44",73373-RESIDENTIAL & NURSING CARE PLACEMENTS,OP PACKAGE/PLACEMENT COSTS,Third Party Payments,Revenue
Walsall Council,http://opendatacommunities.org/id/metropolitan-district-council/walsall,WC93-518,30/06/2018,Adult Social Care,BARTHOLAMEW LODGE CARE HOME,26/06/2018,"2,823.44",73373-RESIDENTIAL & NURSING CARE PLACEMENTS,OP PACKAGE/PLACEMENT COSTS,Third Party Payments,Revenue
Walsall Council,http://opendatacommunities.org/id/metropolitan-district-council/walsall,WC93-519,30/06/2018,Economy & Environment,BAT FABRICATIONS LTD,27/06/2018,625.00,73025-PROFESSIONAL SERVICES-PRIV CONTRACTOR & OTHER AGENCIES,DEPOT,Third Party Payments,Revenue
Walsall Council,http://opendatacommunities.org/id/metropolitan-district-council/walsall,WC93-520,30/06/2018,Economy & Environment,BAT FABRICATIONS LTD,27/06/2018,750.00,60006-NEW-FURNITURE & EQUIPMENT,INFRASTRUCTURE MAINTENANCE,Supplies & Services,Revenue
Walsall Council,http://opendatacommunities.org/id/metropolitan-district-council/walsall,WC93-521,30/06/2018,Economy & Environment,BAT FABRICATIONS LTD,27/06/2018,750.00,73025-PROFESSIONAL SERVICES-PRIV CONTRACTOR & OTHER AGENCIES,DEPOT,Third Party Payments,Revenue
Walsall Council,http://opendatacommunities.org/id/metropolitan-district-council/walsall,WC93-522,30/06/2018,Economy & Environment,BAT FABRICATIONS LTD,27/06/2018,"1,980.00",73025-PROFESSIONAL SERVICES-PRIV CONTRACTOR & OTHER AGENCIES,DEPOT,Third Party Payments,Revenue
Walsall Council,http://opendatacommunities.org/id/metropolitan-district-council/walsall,WC93-523,30/06/2018,Economy & Environment,BAT FABRICATIONS LTD,27/06/2018,"2,850.00",60500-GENERAL MATERIALS,GREEN SPACE MANAGEMENT,Supplies & Services,Revenue
Walsall Council,http://opendatacommunities.org/id/metropolitan-district-council/walsall,WC93-524,30/06/2018,Economy & Environment,BAT FABRICATIONS LTD,27/06/2018,"2,950.00",60500-GENERAL MATERIALS,GREEN SPACE MANAGEMENT,Supplies & Services,Revenue
Walsall Council,http://opendatacommunities.org/id/metropolitan-district-council/walsall,WC93-525,30/06/2018,Economy & Environment,BAUER CORPORATE SERVICES - BAUER RADIO LTD,22/06/2018,352.00,63253-PAYMENT TO CONTRACTOR,HEALTH CHECKS - PHARMACIES,Third Party Payments,Revenue
Walsall Council,http://opendatacommunities.org/id/metropolitan-district-council/walsall,WC93-526,30/06/2018,Economy & Environment,BAUER CORPORATE SERVICES - BAUER RADIO LTD,19/06/2018,"1,185.14",63253-PAYMENT TO CONTRACTOR,HEALTH CHECKS - PHARMACIES,Third Party Payments,Revenue
Walsall Council,http://opendatacommunities.org/id/metropolitan-district-council/walsall,WC93-527,30/06/2018,Holding Accounts,BEACON LAW,26/06/2018,"3,940.00",67001-MISC INSURANCES - PAYMENT OF CLAIMS,PUBLIC LIABILITY,Supplies & Services,Revenue
Walsall Council,http://opendatacommunities.org/id/metropolitan-district-council/walsall,WC93-528,30/06/2018,Economy & Environment,BEADEN POWERLEC LIMITED,06/06/2018,80.00,60007-REPAIR OF EQUIPMENT-EQUIPMENT,BLOXWICH LEISURE CENTRE,Supplies & Services,Revenue
Walsall Council,http://opendatacommunities.org/id/metropolitan-district-council/walsall,WC93-529,30/06/2018,Economy & Environment,BEADEN POWERLEC LIMITED,06/06/2018,428.00,60006-NEW-FURNITURE & EQUIPMENT,DARLASTON LEISURE CENTRE,Supplies & Services,Revenue
Walsall Council,http://opendatacommunities.org/id/metropolitan-district-council/walsall,WC93-530,30/06/2018,Economy & Environment,BEADEN POWERLEC LIMITED,06/06/2018,595.00,60006-NEW-FURNITURE & EQUIPMENT,BLOXWICH LEISURE CENTRE,Supplies & Services,Revenue
Walsall Council,http://opendatacommunities.org/id/metropolitan-district-council/walsall,WC93-531,30/06/2018,Childrens,REDACTED,18/06/2018,800.00,74508-INTERNAL FOSTER CARERS-CARER FEES,INTERNAL FOSTER CARE PROVISION,Transfer Payments,Revenue
Walsall Council,http://opendatacommunities.org/id/metropolitan-district-council/walsall,WC93-532,30/06/2018,Adult Social Care,REDACTED,11/06/2018,948.38,76422-DIRECT PAYMENTS TO SOCIAL SERVICES CLIENTS,OP PACKAGE/PLACEMENT COSTS,Transfer Payments,Revenue
Walsall Council,http://opendatacommunities.org/id/metropolitan-district-council/walsall,WC93-533,30/06/2018,Childrens,REDACTED,01/06/2018,339.30,66505-OTHER-GRANTS TO OTHER ORGS,EARLY YEARS - 3 YR OLDS,Third Party Payments,Revenue
Walsall Council,http://opendatacommunities.org/id/metropolitan-district-council/walsall,WC93-534,30/06/2018,Childrens,REDACTED,01/06/2018,"1,526.85",66505-OTHER-GRANTS TO OTHER ORGS,EARLY YEARS - 3 YR OLDS,Third Party Payments,Revenue
Walsall Council,http://opendatacommunities.org/id/metropolitan-district-council/walsall,WC93-535,30/06/2018,Adult Social Care,BELVIDERE COURT,12/06/2018,"-3,642.85",73373-RESIDENTIAL & NURSING CARE PLACEMENTS,MENTAL HEALTH PACKAGE/PLACEMENT COSTS,Third Party Payments,Revenue
Walsall Council,http://opendatacommunities.org/id/metropolitan-district-council/walsall,WC93-536,30/06/2018,Adult Social Care,BELVIDERE COURT,12/06/2018,"2,142.86",73373-RESIDENTIAL & NURSING CARE PLACEMENTS,MENTAL HEALTH PACKAGE/PLACEMENT COSTS,Third Party Payments,Revenue
Walsall Council,http://opendatacommunities.org/id/metropolitan-district-council/walsall,WC93-537,30/06/2018,Adult Social Care,BELVIDERE COURT,12/06/2018,"2,161.89",73373-RESIDENTIAL & NURSING CARE PLACEMENTS,MENTAL HEALTH PACKAGE/PLACEMENT COSTS,Third Party Payments,Revenue
Walsall Council,http://opendatacommunities.org/id/metropolitan-district-council/walsall,WC93-538,30/06/2018,Adult Social Care,BELVIDERE COURT,12/06/2018,"2,357.14",73373-RESIDENTIAL & NURSING CARE PLACEMENTS,OP PACKAGE/PLACEMENT COSTS,Third Party Payments,Revenue
Walsall Council,http://opendatacommunities.org/id/metropolitan-district-council/walsall,WC93-539,30/06/2018,Adult Social Care,BELVIDERE COURT,12/06/2018,"2,357.15",73373-RESIDENTIAL & NURSING CARE PLACEMENTS,OP PACKAGE/PLACEMENT COSTS,Third Party Payments,Revenue
Walsall Council,http://opendatacommunities.org/id/metropolitan-district-council/walsall,WC93-540,30/06/2018,Adult Social Care,REDACTED,11/06/2018,"3,212.05",76422-DIRECT PAYMENTS TO SOCIAL SERVICES CLIENTS,LD PACKAGE/PLACEMENT COSTS,Transfer Payments,Revenue
Walsall Council,http://opendatacommunities.org/id/metropolitan-district-council/walsall,WC93-541,30/06/2018,Adult Social Care,BENTLEY COURT PRIORY,19/06/2018,881.43,73373-RESIDENTIAL & NURSING CARE PLACEMENTS,OP PACKAGE/PLACEMENT COSTS,Third Party Payments,Revenue
Walsall Council,http://opendatacommunities.org/id/metropolitan-district-council/walsall,WC93-542,30/06/2018,Adult Social Care,BENTLEY COURT PRIORY,19/06/2018,"1,522.47",73373-RESIDENTIAL & NURSING CARE PLACEMENTS,OP PACKAGE/PLACEMENT COSTS,Third Party Payments,Revenue
Walsall Council,http://opendatacommunities.org/id/metropolitan-district-council/walsall,WC93-543,30/06/2018,Adult Social Care,BENTLEY COURT PRIORY,14/06/2018,"2,042.86",73019-PSE'S-PRIV CONTRACTOR FEES,INTEGRATED DISCHARGE TEAM,Third Party Payments,Revenue
Walsall Council,http://opendatacommunities.org/id/metropolitan-district-council/walsall,WC93-544,30/06/2018,Adult Social Care,BENTLEY COURT PRIORY,14/06/2018,"2,042.86",73019-PSE'S-PRIV CONTRACTOR FEES,INTEGRATED DISCHARGE TEAM,Third Party Payments,Revenue
Walsall Council,http://opendatacommunities.org/id/metropolitan-district-council/walsall,WC93-545,30/06/2018,Adult Social Care,BENTLEY COURT PRIORY,05/06/2018,"2,109.24",73373-RESIDENTIAL & NURSING CARE PLACEMENTS,OP PACKAGE/PLACEMENT COSTS,Third Party Payments,Revenue
Walsall Council,http://opendatacommunities.org/id/metropolitan-district-council/walsall,WC93-546,30/06/2018,Adult Social Care,BENTLEY COURT PRIORY,05/06/2018,"2,484.03",73373-RESIDENTIAL & NURSING CARE PLACEMENTS,OP PACKAGE/PLACEMENT COSTS,Third Party Payments,Revenue
Walsall Council,http://opendatacommunities.org/id/metropolitan-district-council/walsall,WC93-547,30/06/2018,Adult Social Care,BENTLEY COURT PRIORY,05/06/2018,"2,484.03",73373-RESIDENTIAL & NURSING CARE PLACEMENTS,MENTAL HEALTH PACKAGE/PLACEMENT COSTS,Third Party Payments,Revenue
Walsall Council,http://opendatacommunities.org/id/metropolitan-district-council/walsall,WC93-548,30/06/2018,Adult Social Care,BENTLEY COURT PRIORY,19/06/2018,"2,484.03",73373-RESIDENTIAL & NURSING CARE PLACEMENTS,OP PACKAGE/PLACEMENT COSTS,Third Party Payments,Revenue
Walsall Council,http://opendatacommunities.org/id/metropolitan-district-council/walsall,WC93-549,30/06/2018,Adult Social Care,BENTLEY COURT PRIORY,19/06/2018,"2,484.03",73373-RESIDENTIAL & NURSING CARE PLACEMENTS,OP PACKAGE/PLACEMENT COSTS,Third Party Payments,Revenue
Walsall Council,http://opendatacommunities.org/id/metropolitan-district-council/walsall,WC93-550,30/06/2018,Adult Social Care,BENTLEY COURT PRIORY,19/06/2018,"2,600.00",73373-RESIDENTIAL & NURSING CARE PLACEMENTS,OP PACKAGE/PLACEMENT COSTS,Third Party Payments,Revenue
Walsall Council,http://opendatacommunities.org/id/metropolitan-district-council/walsall,WC93-551,30/06/2018,Adult Social Care,BENTLEY COURT PRIORY,19/06/2018,"3,000.00",73373-RESIDENTIAL & NURSING CARE PLACEMENTS,OP PACKAGE/PLACEMENT COSTS,Third Party Payments,Revenue
Walsall Council,http://opendatacommunities.org/id/metropolitan-district-council/walsall,WC93-552,30/06/2018,Adult Social Care,BENTLEY COURT PRIORY,19/06/2018,"3,100.00",73373-RESIDENTIAL & NURSING CARE PLACEMENTS,OP PACKAGE/PLACEMENT COSTS,Third Party Payments,Revenue
Walsall Council,http://opendatacommunities.org/id/metropolitan-district-council/walsall,WC93-553,30/06/2018,Adult Social Care,BENTLEY COURT PRIORY,19/06/2018,"3,100.00",73373-RESIDENTIAL & NURSING CARE PLACEMENTS,OP PACKAGE/PLACEMENT COSTS,Third Party Payments,Revenue
Walsall Council,http://opendatacommunities.org/id/metropolitan-district-council/walsall,WC93-554,30/06/2018,Holding Accounts,BERRYMANS LACE MAWER LLP,22/06/2018,"4,396.46",67001-MISC INSURANCES - PAYMENT OF CLAIMS,PUBLIC LIABILITY,Supplies & Services,Revenue
Walsall Council,http://opendatacommunities.org/id/metropolitan-district-council/walsall,WC93-555,30/06/2018,Adult Social Care,REDACTED,11/06/2018,"1,353.10",76422-DIRECT PAYMENTS TO SOCIAL SERVICES CLIENTS,OP PACKAGE/PLACEMENT COSTS,Transfer Payments,Revenue
Walsall Council,http://opendatacommunities.org/id/metropolitan-district-council/walsall,WC93-556,30/06/2018,Adult Social Care,REDACTED,11/06/2018,"2,179.00",76422-DIRECT PAYMENTS TO SOCIAL SERVICES CLIENTS,OP PACKAGE/PLACEMENT COSTS,Transfer Payments,Revenue
Walsall Council,http://opendatacommunities.org/id/metropolitan-district-council/walsall,WC93-557,30/06/2018,Childrens,REDACTED,18/06/2018,"1,035.73",74508-INTERNAL FOSTER CARERS-CARER FEES,INTERNAL FOSTER CARE PROVISION,Transfer Payments,Revenue
Walsall Council,http://opendatacommunities.org/id/metropolitan-district-council/walsall,WC93-558,30/06/2018,Adult Social Care,REDACTED,11/06/2018,"1,074.20",76422-DIRECT PAYMENTS TO SOCIAL SERVICES CLIENTS,OP PACKAGE/PLACEMENT COSTS,Transfer Payments,Revenue
Walsall Council,http://opendatacommunities.org/id/metropolitan-district-council/walsall,WC93-559,30/06/2018,Adult Social Care,BESCOT LODGE RESIDENTIAL CARE HOME,26/06/2018,822.86,73373-RESIDENTIAL & NURSING CARE PLACEMENTS,OP PACKAGE/PLACEMENT COSTS,Third Party Payments,Revenue
Walsall Council,http://opendatacommunities.org/id/metropolitan-district-council/walsall,WC93-560,30/06/2018,Adult Social Care,BESCOT LODGE RESIDENTIAL CARE HOME,05/06/2018,983.57,73373-RESIDENTIAL & NURSING CARE PLACEMENTS,OP PACKAGE/PLACEMENT COSTS,Third Party Payments,Revenue
Walsall Council,http://opendatacommunities.org/id/metropolitan-district-council/walsall,WC93-561,30/06/2018,Adult Social Care,BESCOT LODGE RESIDENTIAL CARE HOME,26/06/2018,"1,809.47",73373-RESIDENTIAL & NURSING CARE PLACEMENTS,OP PACKAGE/PLACEMENT COSTS,Third Party Payments,Revenue
Walsall Council,http://opendatacommunities.org/id/metropolitan-district-council/walsall,WC93-562,30/06/2018,Adult Social Care,BESCOT LODGE RESIDENTIAL CARE HOME,26/06/2018,"1,809.47",73373-RESIDENTIAL & NURSING CARE PLACEMENTS,LD PACKAGE/PLACEMENT COSTS,Third Party Payments,Revenue
Walsall Council,http://opendatacommunities.org/id/metropolitan-district-council/walsall,WC93-563,30/06/2018,Adult Social Care,BESCOT LODGE RESIDENTIAL CARE HOME,26/06/2018,"2,010.56",73373-RESIDENTIAL & NURSING CARE PLACEMENTS,OP PACKAGE/PLACEMENT COSTS,Third Party Payments,Revenue
Walsall Council,http://opendatacommunities.org/id/metropolitan-district-council/walsall,WC93-564,30/06/2018,Adult Social Care,BESCOT LODGE RESIDENTIAL CARE HOME,26/06/2018,"2,010.56",73373-RESIDENTIAL & NURSING CARE PLACEMENTS,OP PACKAGE/PLACEMENT COSTS,Third Party Payments,Revenue
Walsall Council,http://opendatacommunities.org/id/metropolitan-district-council/walsall,WC93-565,30/06/2018,Adult Social Care,BESCOT LODGE RESIDENTIAL CARE HOME,26/06/2018,"2,185.37",73373-RESIDENTIAL & NURSING CARE PLACEMENTS,OP PACKAGE/PLACEMENT COSTS,Third Party Payments,Revenue
Walsall Council,http://opendatacommunities.org/id/metropolitan-district-council/walsall,WC93-566,30/06/2018,Adult Social Care,BESCOT LODGE RESIDENTIAL CARE HOME,26/06/2018,"2,258.21",73373-RESIDENTIAL & NURSING CARE PLACEMENTS,OP PACKAGE/PLACEMENT COSTS,Third Party Payments,Revenue
Walsall Council,http://opendatacommunities.org/id/metropolitan-district-council/walsall,WC93-567,30/06/2018,Adult Social Care,BETHPHAGE.,26/06/2018,"1,026.00",73372-DOMICILIARY CARE,LD PACKAGE/PLACEMENT COSTS,Third Party Payments,Revenue
Walsall Council,http://opendatacommunities.org/id/metropolitan-district-council/walsall,WC93-568,30/06/2018,Adult Social Care,BETHPHAGE.,26/06/2018,"1,311.00",73372-DOMICILIARY CARE,LD PACKAGE/PLACEMENT COSTS,Third Party Payments,Revenue
Walsall Council,http://opendatacommunities.org/id/metropolitan-district-council/walsall,WC93-569,30/06/2018,Adult Social Care,BETHPHAGE.,26/06/2018,"1,339.52",73372-DOMICILIARY CARE,LD PACKAGE/PLACEMENT COSTS,Third Party Payments,Revenue
Walsall Council,http://opendatacommunities.org/id/metropolitan-district-council/walsall,WC93-570,30/06/2018,Adult Social Care,BETHPHAGE.,26/06/2018,"1,453.52",73372-DOMICILIARY CARE,LD PACKAGE/PLACEMENT COSTS,Third Party Payments,Revenue
Walsall Council,http://opendatacommunities.org/id/metropolitan-district-council/walsall,WC93-571,30/06/2018,Adult Social Care,BETHPHAGE.,26/06/2018,"2,693.24",73372-DOMICILIARY CARE,LD PACKAGE/PLACEMENT COSTS,Third Party Payments,Revenue
Walsall Council,http://opendatacommunities.org/id/metropolitan-district-council/walsall,WC93-572,30/06/2018,Adult Social Care,REDACTED,11/06/2018,"1,186.90",76422-DIRECT PAYMENTS TO SOCIAL SERVICES CLIENTS,MENTAL HEALTH PACKAGE/PLACEMENT COSTS,Transfer Payments,Revenue
Walsall Council,http://opendatacommunities.org/id/metropolitan-district-council/walsall,WC93-573,30/06/2018,Adult Social Care,REDACTED,11/06/2018,"3,459.80",76422-DIRECT PAYMENTS TO SOCIAL SERVICES CLIENTS,OP PACKAGE/PLACEMENT COSTS,Transfer Payments,Revenue
Walsall Council,http://opendatacommunities.org/id/metropolitan-district-council/walsall,WC93-574,30/06/2018,Economy & Environment,BIFFA WASTE SERVICES LTD,26/06/2018,228.00,73029-HAZARDOUS WASTE REMOVAL/DISPOSAL-PRIV CONTRACTOR FEES,WASTE DISPOSAL - RESIDUAL,Third Party Payments,Revenue
Walsall Council,http://opendatacommunities.org/id/metropolitan-district-council/walsall,WC93-575,30/06/2018,Economy & Environment,BIFFA WASTE SERVICES LTD,26/06/2018,361.14,73039-LANDFILL TAX-PRIV CONTRACTOR FEES,WASTE DISPOSAL - RESIDUAL,Third Party Payments,Revenue
Walsall Council,http://opendatacommunities.org/id/metropolitan-district-council/walsall,WC93-576,30/06/2018,Childrens,REDACTED,11/06/2018,647.40,76422-DIRECT PAYMENTS TO SOCIAL SERVICES CLIENTS,FAMILY SUPPORT - DIRECT PAYMENTS,Transfer Payments,Revenue
Walsall Council,http://opendatacommunities.org/id/metropolitan-district-council/walsall,WC93-577,30/06/2018,Childrens,REDACTED,11/06/2018,715.00,76422-DIRECT PAYMENTS TO SOCIAL SERVICES CLIENTS,FAMILY SUPPORT - DIRECT PAYMENTS,Transfer Payments,Revenue
Walsall Council,http://opendatacommunities.org/id/metropolitan-district-council/walsall,WC93-578,30/06/2018,Economy & Environment,BILLY ROSS WHOLESALE,22/06/2018,360.06,60500-GENERAL MATERIALS,LEATHER MUSEUM SHOP STOCK,Supplies & Services,Revenue
Walsall Council,http://opendatacommunities.org/id/metropolitan-district-council/walsall,WC93-579,30/06/2018,Childrens,BIRMINGHAM BOYS AND GIRLS UNION,04/06/2018,440.00,77000-TRANSFER PAYMENTS-MANDATORY AWARDS,CENTRAL & EAST LOCALITY - SCHOOL READY,Transfer Payments,Revenue
Walsall Council,http://opendatacommunities.org/id/metropolitan-district-council/walsall,WC93-580,30/06/2018,Childrens,BIRMINGHAM CITY COUNCIL,01/06/2018,290.46,66502-TOP UP FUNDING -GRANTS TO SCHOOLS,MAINTAINED PROVIDERS,Third Party Payments,Revenue
Walsall Council,http://opendatacommunities.org/id/metropolitan-district-council/walsall,WC93-581,30/06/2018,Childrens,BIRMINGHAM CITY COUNCIL,18/06/2018,"1,956.16",74037-INDEPENDENT FOSTER CARE-OTH AGENCY PROVISION,EXTERNAL FOSTER CARE PROVISION,Third Party Payments,Revenue
Walsall Council,http://opendatacommunities.org/id/metropolitan-district-council/walsall,WC93-582,30/06/2018,Resources and Transformation,BIRMINGHAM CITY UNIVERSITY,25/06/2018,580.00,30030-EXTERNAL TRAINING,FINANCE,Employees,Revenue
Walsall Council,http://opendatacommunities.org/id/metropolitan-district-council/walsall,WC93-583,30/06/2018,Economy & Environment,BIRMINGHAM WOMENS AND CHILDRENS NHS FOUNDATION TRUST,12/06/2018,257.20,63000-PROFESSIONAL FEES AND SERVICES,CORONERS SERVICE,Supplies & Services,Revenue
Walsall Council,http://opendatacommunities.org/id/metropolitan-district-council/walsall,WC93-584,30/06/2018,Economy & Environment,BIRMINGHAM WOMENS AND CHILDRENS NHS FOUNDATION TRUST,12/06/2018,"1,085.00",74000-OTHER AGENCY FEES,CORONERS SERVICE,Third Party Payments,Revenue
Walsall Council,http://opendatacommunities.org/id/metropolitan-district-council/walsall,WC93-585,30/06/2018,Economy & Environment,BIRMINGHAM WOMENS AND CHILDRENS NHS FOUNDATION TRUST,12/06/2018,"1,085.00",74000-OTHER AGENCY FEES,CORONERS SERVICE,Third Party Payments,Revenue
Walsall Council,http://opendatacommunities.org/id/metropolitan-district-council/walsall,WC93-586,30/06/2018,Childrens,BLAKENALL HEATH JMI SCHOOL,12/06/2018,"7,637.00",77200-TRANSFER PAYMENTS-OTHER SCHOOLCHILDREN/STUDENT RELATED ITEMS,BLAKENALL HEATH JUNIOR SCHOOL,Transfer Payments,Revenue
Walsall Council,http://opendatacommunities.org/id/metropolitan-district-council/walsall,WC93-587,30/06/2018,Childrens,BLUE GIRAFFE CHILDCARE,01/06/2018,"18,661.50",66505-OTHER-GRANTS TO OTHER ORGS,EARLY YEARS - 3 YR OLDS,Third Party Payments,Revenue
Walsall Council,http://opendatacommunities.org/id/metropolitan-district-council/walsall,WC93-588,30/06/2018,Economy & Environment,BME UNITED LTD,22/06/2018,"3,636.00",63253-PAYMENT TO CONTRACTOR,SMOKING CESSATION,Third Party Payments,Revenue
Walsall Council,http://opendatacommunities.org/id/metropolitan-district-council/walsall,WC93-589,30/06/2018,Economy & Environment,BOC LTD,11/06/2018,248.35,60514-MATERIALS TO STORES,FLEET PARTS STOCK ACCOUNT,Supplies & Services,Revenue
Walsall Council,http://opendatacommunities.org/id/metropolitan-district-council/walsall,WC93-590,30/06/2018,Economy & Environment,BONINGALE NURSERIES,04/06/2018,494.35,60500-GENERAL MATERIALS,GROUNDS,Supplies & Services,Revenue
Walsall Council,http://opendatacommunities.org/id/metropolitan-district-council/walsall,WC93-591,30/06/2018,Childrens,BOOKTRUST,18/06/2018,"1,291.79",63000-PROFESSIONAL FEES AND SERVICES,VIRTUAL SCHOOL CENTRAL PUPIL PREMIUM,Supplies & Services,Revenue
Walsall Council,http://opendatacommunities.org/id/metropolitan-district-council/walsall,WC93-592,30/06/2018,Resources and Transformation,BORSHCH LTD,07/06/2018,233.33,60000-FURNITURE & EQUIPMENT,WALSALL CRISIS SUPPORT SCHEME,Supplies & Services,Revenue
Walsall Council,http://opendatacommunities.org/id/metropolitan-district-council/walsall,WC93-593,30/06/2018,Resources and Transformation,BORSHCH LTD,19/06/2018,237.49,60000-FURNITURE & EQUIPMENT,WALSALL CRISIS SUPPORT SCHEME,Supplies & Services,Revenue
Walsall Council,http://opendatacommunities.org/id/metropolitan-district-council/walsall,WC93-594,30/06/2018,Resources and Transformation,BORSHCH LTD,21/06/2018,237.49,60000-FURNITURE & EQUIPMENT,WALSALL CRISIS SUPPORT SCHEME,Supplies & Services,Revenue
Walsall Council,http://opendatacommunities.org/id/metropolitan-district-council/walsall,WC93-595,30/06/2018,Resources and Transformation,BORSHCH LTD,19/06/2018,245.83,60000-FURNITURE & EQUIPMENT,WALSALL CRISIS SUPPORT SCHEME,Supplies & Services,Revenue
Walsall Council,http://opendatacommunities.org/id/metropolitan-district-council/walsall,WC93-596,30/06/2018,Resources and Transformation,BORSHCH LTD,18/06/2018,287.50,60000-FURNITURE & EQUIPMENT,WALSALL CRISIS SUPPORT SCHEME,Supplies & Services,Revenue
Walsall Council,http://opendatacommunities.org/id/metropolitan-district-council/walsall,WC93-597,30/06/2018,Resources and Transformation,BORSHCH LTD,19/06/2018,287.50,60000-FURNITURE & EQUIPMENT,WALSALL CRISIS SUPPORT SCHEME,Supplies & Services,Revenue
Walsall Council,http://opendatacommunities.org/id/metropolitan-district-council/walsall,WC93-598,30/06/2018,Resources and Transformation,BORSHCH LTD,20/06/2018,287.50,60000-FURNITURE & EQUIPMENT,WALSALL CRISIS SUPPORT SCHEME,Supplies & Services,Revenue
Walsall Council,http://opendatacommunities.org/id/metropolitan-district-council/walsall,WC93-599,30/06/2018,Resources and Transformation,BORSHCH LTD,18/06/2018,291.66,60000-FURNITURE & EQUIPMENT,WALSALL CRISIS SUPPORT SCHEME,Supplies & Services,Revenue
Walsall Council,http://opendatacommunities.org/id/metropolitan-district-council/walsall,WC93-600,30/06/2018,Resources and Transformation,BORSHCH LTD,18/06/2018,291.66,60000-FURNITURE & EQUIPMENT,WALSALL CRISIS SUPPORT SCHEME,Supplies & Services,Revenue
Walsall Council,http://opendatacommunities.org/id/metropolitan-district-council/walsall,WC93-601,30/06/2018,Resources and Transformation,BORSHCH LTD,18/06/2018,291.66,60000-FURNITURE & EQUIPMENT,WALSALL CRISIS SUPPORT SCHEME,Supplies & Services,Revenue
Walsall Council,http://opendatacommunities.org/id/metropolitan-district-council/walsall,WC93-602,30/06/2018,Resources and Transformation,BORSHCH LTD,18/06/2018,291.66,60000-FURNITURE & EQUIPMENT,WALSALL CRISIS SUPPORT SCHEME,Supplies & Services,Revenue
Walsall Council,http://opendatacommunities.org/id/metropolitan-district-council/walsall,WC93-603,30/06/2018,Resources and Transformation,BORSHCH LTD,18/06/2018,295.83,60000-FURNITURE & EQUIPMENT,WALSALL CRISIS SUPPORT SCHEME,Supplies & Services,Revenue
Walsall Council,http://opendatacommunities.org/id/metropolitan-district-council/walsall,WC93-604,30/06/2018,Resources and Transformation,BORSHCH LTD,18/06/2018,295.83,60000-FURNITURE & EQUIPMENT,WALSALL CRISIS SUPPORT SCHEME,Supplies & Services,Revenue
Walsall Council,http://opendatacommunities.org/id/metropolitan-district-council/walsall,WC93-605,30/06/2018,Resources and Transformation,BORSHCH LTD,19/06/2018,295.83,60000-FURNITURE & EQUIPMENT,WALSALL CRISIS SUPPORT SCHEME,Supplies & Services,Revenue
Walsall Council,http://opendatacommunities.org/id/metropolitan-district-council/walsall,WC93-606,30/06/2018,Resources and Transformation,BORSHCH LTD,19/06/2018,425.00,60000-FURNITURE & EQUIPMENT,WALSALL CRISIS SUPPORT SCHEME,Supplies & Services,Revenue
Walsall Council,http://opendatacommunities.org/id/metropolitan-district-council/walsall,WC93-607,30/06/2018,Resources and Transformation,BORSHCH LTD,25/06/2018,425.00,60000-FURNITURE & EQUIPMENT,WALSALL CRISIS SUPPORT SCHEME,Supplies & Services,Revenue
Walsall Council,http://opendatacommunities.org/id/metropolitan-district-council/walsall,WC93-608,30/06/2018,Resources and Transformation,BORSHCH LTD,25/06/2018,425.00,60000-FURNITURE & EQUIPMENT,WALSALL CRISIS SUPPORT SCHEME,Supplies & Services,Revenue
Walsall Council,http://opendatacommunities.org/id/metropolitan-district-council/walsall,WC93-609,30/06/2018,Resources and Transformation,BORSHCH LTD,26/06/2018,429.15,60000-FURNITURE & EQUIPMENT,WALSALL CRISIS SUPPORT SCHEME,Supplies & Services,Revenue
Walsall Council,http://opendatacommunities.org/id/metropolitan-district-council/walsall,WC93-610,30/06/2018,Resources and Transformation,BORSHCH LTD,01/06/2018,433.33,60000-FURNITURE & EQUIPMENT,WALSALL CRISIS SUPPORT SCHEME,Supplies & Services,Revenue
Walsall Council,http://opendatacommunities.org/id/metropolitan-district-council/walsall,WC93-611,30/06/2018,Resources and Transformation,BORSHCH LTD,01/06/2018,433.33,60000-FURNITURE & EQUIPMENT,WALSALL CRISIS SUPPORT SCHEME,Supplies & Services,Revenue
Walsall Council,http://opendatacommunities.org/id/metropolitan-district-council/walsall,WC93-612,30/06/2018,Resources and Transformation,BORSHCH LTD,18/06/2018,433.33,60000-FURNITURE & EQUIPMENT,WALSALL CRISIS SUPPORT SCHEME,Supplies & Services,Revenue
Walsall Council,http://opendatacommunities.org/id/metropolitan-district-council/walsall,WC93-613,30/06/2018,Resources and Transformation,BORSHCH LTD,19/06/2018,433.33,60000-FURNITURE & EQUIPMENT,WALSALL CRISIS SUPPORT SCHEME,Supplies & Services,Revenue
Walsall Council,http://opendatacommunities.org/id/metropolitan-district-council/walsall,WC93-614,30/06/2018,Resources and Transformation,BORSHCH LTD,19/06/2018,433.33,60000-FURNITURE & EQUIPMENT,WALSALL CRISIS SUPPORT SCHEME,Supplies & Services,Revenue
Walsall Council,http://opendatacommunities.org/id/metropolitan-district-council/walsall,WC93-615,30/06/2018,Resources and Transformation,BORSHCH LTD,19/06/2018,433.33,60000-FURNITURE & EQUIPMENT,WALSALL CRISIS SUPPORT SCHEME,Supplies & Services,Revenue
Walsall Council,http://opendatacommunities.org/id/metropolitan-district-council/walsall,WC93-616,30/06/2018,Resources and Transformation,BORSHCH LTD,19/06/2018,433.33,60000-FURNITURE & EQUIPMENT,WALSALL CRISIS SUPPORT SCHEME,Supplies & Services,Revenue
Walsall Council,http://opendatacommunities.org/id/metropolitan-district-council/walsall,WC93-617,30/06/2018,Resources and Transformation,BORSHCH LTD,19/06/2018,433.33,60000-FURNITURE & EQUIPMENT,WALSALL CRISIS SUPPORT SCHEME,Supplies & Services,Revenue
Walsall Council,http://opendatacommunities.org/id/metropolitan-district-council/walsall,WC93-618,30/06/2018,Resources and Transformation,BORSHCH LTD,19/06/2018,433.33,60000-FURNITURE & EQUIPMENT,WALSALL CRISIS SUPPORT SCHEME,Supplies & Services,Revenue
Walsall Council,http://opendatacommunities.org/id/metropolitan-district-council/walsall,WC93-619,30/06/2018,Resources and Transformation,BORSHCH LTD,19/06/2018,433.33,60000-FURNITURE & EQUIPMENT,WALSALL CRISIS SUPPORT SCHEME,Supplies & Services,Revenue
Walsall Council,http://opendatacommunities.org/id/metropolitan-district-council/walsall,WC93-620,30/06/2018,Resources and Transformation,BORSHCH LTD,21/06/2018,433.33,60000-FURNITURE & EQUIPMENT,WALSALL CRISIS SUPPORT SCHEME,Supplies & Services,Revenue
Walsall Council,http://opendatacommunities.org/id/metropolitan-district-council/walsall,WC93-621,30/06/2018,Resources and Transformation,BORSHCH LTD,25/06/2018,433.33,60000-FURNITURE & EQUIPMENT,WALSALL CRISIS SUPPORT SCHEME,Supplies & Services,Revenue
Walsall Council,http://opendatacommunities.org/id/metropolitan-district-council/walsall,WC93-622,30/06/2018,Resources and Transformation,BORSHCH LTD,25/06/2018,433.33,60000-FURNITURE & EQUIPMENT,WALSALL CRISIS SUPPORT SCHEME,Supplies & Services,Revenue
Walsall Council,http://opendatacommunities.org/id/metropolitan-district-council/walsall,WC93-623,30/06/2018,Resources and Transformation,BORSHCH LTD,26/06/2018,433.33,60000-FURNITURE & EQUIPMENT,WALSALL CRISIS SUPPORT SCHEME,Supplies & Services,Revenue
Walsall Council,http://opendatacommunities.org/id/metropolitan-district-council/walsall,WC93-624,30/06/2018,Resources and Transformation,BORSHCH LTD,26/06/2018,433.33,60000-FURNITURE & EQUIPMENT,WALSALL CRISIS SUPPORT SCHEME,Supplies & Services,Revenue
Walsall Council,http://opendatacommunities.org/id/metropolitan-district-council/walsall,WC93-625,30/06/2018,Resources and Transformation,BORSHCH LTD,25/06/2018,479.17,60000-FURNITURE & EQUIPMENT,WALSALL CRISIS SUPPORT SCHEME,Supplies & Services,Revenue
Walsall Council,http://opendatacommunities.org/id/metropolitan-district-council/walsall,WC93-626,30/06/2018,Adult Social Care,BOWDEN DERRA PARK,05/06/2018,"11,041.12",73373-RESIDENTIAL & NURSING CARE PLACEMENTS,LD PACKAGE/PLACEMENT COSTS,Third Party Payments,Revenue
Walsall Council,http://opendatacommunities.org/id/metropolitan-district-council/walsall,WC93-627,30/06/2018,Resources and Transformation,BPP PROFESSIONAL EDUCATION,20/06/2018,6.00,63500-POSTAGES AND COURIER SERVICES,FINANCE,Supplies & Services,Revenue
Walsall Council,http://opendatacommunities.org/id/metropolitan-district-council/walsall,WC93-628,30/06/2018,Resources and Transformation,BPP PROFESSIONAL EDUCATION,20/06/2018,858.32,30030-EXTERNAL TRAINING,FINANCE,Employees,Revenue
Walsall Council,http://opendatacommunities.org/id/metropolitan-district-council/walsall,WC93-629,30/06/2018,Economy & Environment,BRADVALE LTD T/A INSPIRE HEALTHCARE SERVICES,18/06/2018,612.25,60500-GENERAL MATERIALS,ARBORETUM VISITOR CENTRE,Supplies & Services,Revenue
Walsall Council,http://opendatacommunities.org/id/metropolitan-district-council/walsall,WC93-630,30/06/2018,Resources and Transformation,BRAP LTD,20/06/2018,"1,450.00",63102-CONSULTANTS FEES - CORPORATE,EQUALITIES,Supplies & Services,Revenue
Walsall Council,http://opendatacommunities.org/id/metropolitan-district-council/walsall,WC93-631,30/06/2018,Resources and Transformation,BRELMAYNE LTD,12/06/2018,221.04,60007-REPAIR OF EQUIPMENT-EQUIPMENT,CA LEIGHSWOOD PRIMARY SCHOOL,Supplies & Services,Revenue
Walsall Council,http://opendatacommunities.org/id/metropolitan-district-council/walsall,WC93-632,30/06/2018,Resources and Transformation,BRELMAYNE LTD,20/06/2018,225.00,60008-MAINTENANCE-FURNITURE & EQUIPMENT,CA RUSHALL JMI SCHOOL,Supplies & Services,Revenue
Walsall Council,http://opendatacommunities.org/id/metropolitan-district-council/walsall,WC93-633,30/06/2018,Resources and Transformation,BRELMAYNE LTD,20/06/2018,270.00,60008-MAINTENANCE-FURNITURE & EQUIPMENT,CA BROWNHILLS WEST PRIMARY SCHOOL,Supplies & Services,Revenue
Walsall Council,http://opendatacommunities.org/id/metropolitan-district-council/walsall,WC93-634,30/06/2018,Resources and Transformation,BRELMAYNE LTD,26/06/2018,302.79,60007-REPAIR OF EQUIPMENT-EQUIPMENT,CA LINDENS PRIMARY SCHOOL,Supplies & Services,Revenue
Walsall Council,http://opendatacommunities.org/id/metropolitan-district-council/walsall,WC93-635,30/06/2018,Resources and Transformation,BRELMAYNE LTD,20/06/2018,395.00,60008-MAINTENANCE-FURNITURE & EQUIPMENT,CA RADLEYS PRIMARY SCHOOL,Supplies & Services,Revenue
Walsall Council,http://opendatacommunities.org/id/metropolitan-district-council/walsall,WC93-636,30/06/2018,Resources and Transformation,BRELMAYNE LTD,04/06/2018,650.00,01044-PURCHASE OF FURNITURE & EQUIPMENT,CFR 1190 SCHOOLS PROJECT,Capital,Capital
Walsall Council,http://opendatacommunities.org/id/metropolitan-district-council/walsall,WC93-637,30/06/2018,Resources and Transformation,BRELMAYNE LTD,04/06/2018,650.00,01044-PURCHASE OF FURNITURE & EQUIPMENT,CFR 1190 SCHOOLS PROJECT,Capital,Capital
Walsall Council,http://opendatacommunities.org/id/metropolitan-district-council/walsall,WC93-638,30/06/2018,Resources and Transformation,BRELMAYNE LTD,04/06/2018,650.00,01044-PURCHASE OF FURNITURE & EQUIPMENT,CFR 1190 SCHOOLS PROJECT,Capital,Capital
Walsall Council,http://opendatacommunities.org/id/metropolitan-district-council/walsall,WC93-639,30/06/2018,Resources and Transformation,BRELMAYNE LTD,12/06/2018,745.82,60007-REPAIR OF EQUIPMENT-EQUIPMENT,CA ST JOHNS C.E. PRIMARY SCHOOL,Supplies & Services,Revenue
Walsall Council,http://opendatacommunities.org/id/metropolitan-district-council/walsall,WC93-640,30/06/2018,Resources and Transformation,BRELMAYNE LTD,08/06/2018,"2,964.35",01044-PURCHASE OF FURNITURE & EQUIPMENT,CFR 1190 SCHOOLS PROJECT,Capital,Capital
Walsall Council,http://opendatacommunities.org/id/metropolitan-district-council/walsall,WC93-641,30/06/2018,Adult Social Care,REDACTED,11/06/2018,550.00,76422-DIRECT PAYMENTS TO SOCIAL SERVICES CLIENTS,LD PACKAGE/PLACEMENT COSTS,Transfer Payments,Revenue
Walsall Council,http://opendatacommunities.org/id/metropolitan-district-council/walsall,WC93-642,30/06/2018,Childrens,REDACTED,18/06/2018,150.00,74503-BIRTHDAY ALLOWANCE-FOSTER CARERS,INTERNAL FOSTER CARE PROVISION,Transfer Payments,Revenue
Walsall Council,http://opendatacommunities.org/id/metropolitan-district-council/walsall,WC93-643,30/06/2018,Childrens,REDACTED,18/06/2018,150.00,74503-BIRTHDAY ALLOWANCE-FOSTER CARERS,INTERNAL FOSTER CARE PROVISION,Transfer Payments,Revenue
Walsall Council,http://opendatacommunities.org/id/metropolitan-district-council/walsall,WC93-644,30/06/2018,Childrens,REDACTED,18/06/2018,360.00,74504-HOLIDAY/CHRISTMAS ALLOWANCE-FOSTER CARERS,INTERNAL FOSTER CARE PROVISION,Transfer Payments,Revenue
Walsall Council,http://opendatacommunities.org/id/metropolitan-district-council/walsall,WC93-645,30/06/2018,Childrens,REDACTED,18/06/2018,406.63,74506-TRAVEL-FOSTER CARERS,INTERNAL FOSTER CARE PROVISION,Transfer Payments,Revenue
Walsall Council,http://opendatacommunities.org/id/metropolitan-district-council/walsall,WC93-646,30/06/2018,Childrens,REDACTED,18/06/2018,720.00,74501-MAINTENANCE ALLOWANCE-FOSTER CARERS,INTERNAL FOSTER CARE PROVISION,Transfer Payments,Revenue
Walsall Council,http://opendatacommunities.org/id/metropolitan-district-council/walsall,WC93-647,30/06/2018,Childrens,REDACTED,18/06/2018,720.00,74501-MAINTENANCE ALLOWANCE-FOSTER CARERS,INTERNAL FOSTER CARE PROVISION,Transfer Payments,Revenue
Walsall Council,http://opendatacommunities.org/id/metropolitan-district-council/walsall,WC93-648,30/06/2018,Childrens,REDACTED,18/06/2018,"1,600.00",74508-INTERNAL FOSTER CARERS-CARER FEES,INTERNAL FOSTER CARE PROVISION,Transfer Payments,Revenue
Walsall Council,http://opendatacommunities.org/id/metropolitan-district-council/walsall,WC93-649,30/06/2018,Economy & Environment,BRENNTAG UK LIMITED,20/06/2018,399.39,60503-CHEMICALS & SCIENTIFIC MATS-MATERIALS,OAK PARK,Supplies & Services,Revenue
Walsall Council,http://opendatacommunities.org/id/metropolitan-district-council/walsall,WC93-650,30/06/2018,Adult Social Care,REDACTED,01/06/2018,"1,070.11",73372-DOMICILIARY CARE,LD PACKAGE/PLACEMENT COSTS,Third Party Payments,Revenue
Walsall Council,http://opendatacommunities.org/id/metropolitan-district-council/walsall,WC93-651,30/06/2018,Adult Social Care,REDACTED,01/06/2018,"1,278.08",73372-DOMICILIARY CARE,LD PACKAGE/PLACEMENT COSTS,Third Party Payments,Revenue
Walsall Council,http://opendatacommunities.org/id/metropolitan-district-council/walsall,WC93-652,30/06/2018,Adult Social Care,REDACTED,11/06/2018,"1,785.00",76422-DIRECT PAYMENTS TO SOCIAL SERVICES CLIENTS,OP PACKAGE/PLACEMENT COSTS,Transfer Payments,Revenue
Walsall Council,http://opendatacommunities.org/id/metropolitan-district-council/walsall,WC93-653,30/06/2018,Adult Social Care,REDACTED,11/06/2018,"1,045.50",76422-DIRECT PAYMENTS TO SOCIAL SERVICES CLIENTS,OP PACKAGE/PLACEMENT COSTS,Transfer Payments,Revenue
Walsall Council,http://opendatacommunities.org/id/metropolitan-district-council/walsall,WC93-654,30/06/2018,Resources and Transformation,BRIAR ASSOCIATES,18/06/2018,450.00,"40000-REPAIRS,ALTERATIONS & MAINTENANCE-PREM",RECHARGEABLE - NON SCHOOLS MAINTENANCE,Premises,Revenue
Walsall Council,http://opendatacommunities.org/id/metropolitan-district-council/walsall,WC93-655,30/06/2018,Resources and Transformation,BRIAR ASSOCIATES,22/06/2018,450.00,"40000-REPAIRS,ALTERATIONS & MAINTENANCE-PREM",CENTRALISED MAINTENANCE,Premises,Revenue
Walsall Council,http://opendatacommunities.org/id/metropolitan-district-council/walsall,WC93-656,30/06/2018,Resources and Transformation,BRIAR ASSOCIATES,20/06/2018,"3,031.70","40000-REPAIRS,ALTERATIONS & MAINTENANCE-PREM",CENTRALISED MAINTENANCE,Premises,Revenue
Walsall Council,http://opendatacommunities.org/id/metropolitan-district-council/walsall,WC93-657,30/06/2018,Childrens,BRIGHT HORIZONS (BANSTEAD DAY NURSERY AND PRESCHOOL),21/06/2018,"1,026.95",32000-MISC FEES AND EXPENSES,SAFEGUARDING & FAMILY SUPPORT,Employees,Revenue
Walsall Council,http://opendatacommunities.org/id/metropolitan-district-council/walsall,WC93-658,30/06/2018,Resources and Transformation,BRISTOL OILSKIN & OVERALL CO,08/06/2018,699.50,60006-NEW-FURNITURE & EQUIPMENT,SCHOOL CROSSING PATROL ADMIN,Supplies & Services,Revenue
Walsall Council,http://opendatacommunities.org/id/metropolitan-district-council/walsall,WC93-659,30/06/2018,Resources and Transformation,BRISTOL OILSKIN & OVERALL CO,08/06/2018,"3,905.55",61502-PROTECTIVE CLOTHING & UNIFORM,SCHOOL CROSSING PATROL ADMIN,Supplies & Services,Revenue
Walsall Council,http://opendatacommunities.org/id/metropolitan-district-council/walsall,WC93-660,30/06/2018,Resources and Transformation,BRITANNIA HOTELS LTD T/A BRITANNIA HOTEL WOLVERHAMPTON,25/06/2018,224.16,75501-BED & BREAKFAST PAYMENTS,BED & BREAKFAST PAYMENTS,Third Party Payments,Revenue
Walsall Council,http://opendatacommunities.org/id/metropolitan-district-council/walsall,WC93-661,30/06/2018,Resources and Transformation,BRITANNIA HOTELS LTD T/A BRITANNIA HOTEL WOLVERHAMPTON,20/06/2018,235.83,75501-BED & BREAKFAST PAYMENTS,BED & BREAKFAST PAYMENTS,Third Party Payments,Revenue
Walsall Council,http://opendatacommunities.org/id/metropolitan-district-council/walsall,WC93-662,30/06/2018,Resources and Transformation,BRITANNIA HOTELS LTD T/A BRITANNIA HOTEL WOLVERHAMPTON,08/06/2018,247.93,75501-BED & BREAKFAST PAYMENTS,BED & BREAKFAST PAYMENTS,Third Party Payments,Revenue
Walsall Council,http://opendatacommunities.org/id/metropolitan-district-council/walsall,WC93-663,30/06/2018,Adult Social Care,BROADWAY HALLS CARE HOME,19/06/2018,"2,037.14",73373-RESIDENTIAL & NURSING CARE PLACEMENTS,OP PACKAGE/PLACEMENT COSTS,Third Party Payments,Revenue
Walsall Council,http://opendatacommunities.org/id/metropolitan-district-council/walsall,WC93-664,30/06/2018,Economy & Environment,BROWNHILLS ASPHALT & TARMAC LIMITED,08/06/2018,425.00,"40000-REPAIRS,ALTERATIONS & MAINTENANCE-PREM",INFRASTRUCTURE MAINTENANCE,Premises,Revenue
Walsall Council,http://opendatacommunities.org/id/metropolitan-district-council/walsall,WC93-665,30/06/2018,Economy & Environment,BROWNHILLS ASPHALT & TARMAC LIMITED,08/06/2018,600.00,60500-GENERAL MATERIALS,INFRASTRUCTURE MAINTENANCE,Supplies & Services,Revenue
Walsall Council,http://opendatacommunities.org/id/metropolitan-district-council/walsall,WC93-666,30/06/2018,Childrens,BROWNHILLS ASPHALT & TARMAC LIMITED,06/06/2018,"2,000.00",01006-SITE WORKS MAIN CONTRACTORS,CFR 1297 JANE LANE SPECIAL SCHOOL EXPANSION,Capital,Capital
Walsall Council,http://opendatacommunities.org/id/metropolitan-district-council/walsall,WC93-667,30/06/2018,Economy & Environment,BROWNHILLS ASPHALT & TARMAC LIMITED,20/06/2018,"2,076.00",60500-GENERAL MATERIALS,CEMETERIES CENTRAL ADMINISTRATION,Supplies & Services,Revenue
Walsall Council,http://opendatacommunities.org/id/metropolitan-district-council/walsall,WC93-668,30/06/2018,Economy & Environment,BROWNHILLS ASPHALT & TARMAC LIMITED,27/06/2018,"4,710.00",60500-GENERAL MATERIALS,ENVIRONMENTAL IMPROVEMENT SERVICE,Supplies & Services,Revenue
Walsall Council,http://opendatacommunities.org/id/metropolitan-district-council/walsall,WC93-669,30/06/2018,Resources and Transformation,BROWNHILLS COMMUNITY ASSOCIATION,01/06/2018,"1,515.00",62515-MISCELLANEOUS SUPPLIES,AREA PARTNERSHIPS,Supplies & Services,Revenue
Walsall Council,http://opendatacommunities.org/id/metropolitan-district-council/walsall,WC93-670,30/06/2018,Childrens,BROWNHILLS COMMUNITY ASSOCIATION,01/06/2018,"6,141.33",66505-OTHER-GRANTS TO OTHER ORGS,EARLY YEARS - 3 YR OLDS,Third Party Payments,Revenue
Walsall Council,http://opendatacommunities.org/id/metropolitan-district-council/walsall,WC93-671,30/06/2018,Resources and Transformation,BROWNHILLS COMMUNITY ASSOCIATION,18/06/2018,"9,300.00","40000-REPAIRS,ALTERATIONS & MAINTENANCE-PREM",AREA PARTNERSHIPS,Premises,Revenue
Walsall Council,http://opendatacommunities.org/id/metropolitan-district-council/walsall,WC93-672,30/06/2018,Adult Social Care,REDACTED,11/06/2018,"2,142.00",76422-DIRECT PAYMENTS TO SOCIAL SERVICES CLIENTS,LD PACKAGE/PLACEMENT COSTS,Transfer Payments,Revenue
Walsall Council,http://opendatacommunities.org/id/metropolitan-district-council/walsall,WC93-673,30/06/2018,Resources and Transformation,REDACTED,21/06/2018,500.00,"40000-REPAIRS,ALTERATIONS & MAINTENANCE-PREM",WALSALL TOWN HALL,Premises,Revenue
Walsall Council,http://opendatacommunities.org/id/metropolitan-district-council/walsall,WC93-674,30/06/2018,Economy & Environment,REDACTED,01/06/2018,800.00,"62521-INTERPRETATION,TRANSLATION & HUMAN AIDS TO TRANSCRIPTION",NAG - TEMPORARY EXHIBITIONS,Supplies & Services,Revenue
Walsall Council,http://opendatacommunities.org/id/metropolitan-district-council/walsall,WC93-675,30/06/2018,Resources and Transformation,BT,13/06/2018,712.00,63603-COST OF CALLS-TELEPHONES,PROCESSING,Supplies & Services,Revenue
Walsall Council,http://opendatacommunities.org/id/metropolitan-district-council/walsall,WC93-676,30/06/2018,Resources and Transformation,BT,20/06/2018,"4,629.82",63601-COSTS (NOT INTERNAL RECHARGES)-TELEPHONES,CENTRAL COMMUNICATIONS RECHARGES,Supplies & Services,Revenue
Walsall Council,http://opendatacommunities.org/id/metropolitan-district-council/walsall,WC93-677,30/06/2018,Resources and Transformation,BT,20/06/2018,"14,700.41",63601-COSTS (NOT INTERNAL RECHARGES)-TELEPHONES,CENTRAL COMMUNICATIONS RECHARGES,Supplies & Services,Revenue
Walsall Council,http://opendatacommunities.org/id/metropolitan-district-council/walsall,WC93-678,30/06/2018,Adult Social Care,BUNZIL HEALTHCARE T/A CARESHOP,22/06/2018,242.41,60539-CLEANING MATERIALS,HOLLYBANK,Supplies & Services,Revenue
Walsall Council,http://opendatacommunities.org/id/metropolitan-district-council/walsall,WC93-679,30/06/2018,Adult Social Care,BUNZIL HEALTHCARE T/A CARESHOP,11/06/2018,393.88,60539-CLEANING MATERIALS,HOLLYBANK,Supplies & Services,Revenue
Walsall Council,http://opendatacommunities.org/id/metropolitan-district-council/walsall,WC93-680,30/06/2018,Adult Social Care,BUPA CARE HOMES (CFHCARE) LTD,05/06/2018,"1,028.58",73373-RESIDENTIAL & NURSING CARE PLACEMENTS,OP PACKAGE/PLACEMENT COSTS,Third Party Payments,Revenue
Walsall Council,http://opendatacommunities.org/id/metropolitan-district-council/walsall,WC93-681,30/06/2018,Adult Social Care,BUPA CARE HOMES (CFHCARE) LTD,05/06/2018,"1,371.42",73373-RESIDENTIAL & NURSING CARE PLACEMENTS,OP PACKAGE/PLACEMENT COSTS,Third Party Payments,Revenue
Walsall Council,http://opendatacommunities.org/id/metropolitan-district-council/walsall,WC93-682,30/06/2018,Adult Social Care,BUPA CARE HOMES (CFHCARE) LTD,05/06/2018,"2,243.64",73373-RESIDENTIAL & NURSING CARE PLACEMENTS,OP PACKAGE/PLACEMENT COSTS,Third Party Payments,Revenue
Walsall Council,http://opendatacommunities.org/id/metropolitan-district-council/walsall,WC93-683,30/06/2018,Adult Social Care,BUPA CARE HOMES (CFHCARE) LTD,05/06/2018,"2,443.64",73373-RESIDENTIAL & NURSING CARE PLACEMENTS,OP PACKAGE/PLACEMENT COSTS,Third Party Payments,Revenue
Walsall Council,http://opendatacommunities.org/id/metropolitan-district-council/walsall,WC93-684,30/06/2018,Adult Social Care,BUSH HOME LTD,12/06/2018,394.28,73373-RESIDENTIAL & NURSING CARE PLACEMENTS,OP PACKAGE/PLACEMENT COSTS,Third Party Payments,Revenue
Walsall Council,http://opendatacommunities.org/id/metropolitan-district-council/walsall,WC93-685,30/06/2018,Adult Social Care,BUSH HOME LTD,12/06/2018,482.53,73373-RESIDENTIAL & NURSING CARE PLACEMENTS,MENTAL HEALTH PACKAGE/PLACEMENT COSTS,Third Party Payments,Revenue
Walsall Council,http://opendatacommunities.org/id/metropolitan-district-council/walsall,WC93-686,30/06/2018,Adult Social Care,BUSH HOME LTD,05/06/2018,663.15,73373-RESIDENTIAL & NURSING CARE PLACEMENTS,OP PACKAGE/PLACEMENT COSTS,Third Party Payments,Revenue
Walsall Council,http://opendatacommunities.org/id/metropolitan-district-council/walsall,WC93-687,30/06/2018,Adult Social Care,BUSH HOME LTD,12/06/2018,844.42,73373-RESIDENTIAL & NURSING CARE PLACEMENTS,OP PACKAGE/PLACEMENT COSTS,Third Party Payments,Revenue
Walsall Council,http://opendatacommunities.org/id/metropolitan-district-council/walsall,WC93-688,30/06/2018,Adult Social Care,BUSH HOME LTD,12/06/2018,"1,025.37",73373-RESIDENTIAL & NURSING CARE PLACEMENTS,OP PACKAGE/PLACEMENT COSTS,Third Party Payments,Revenue
Walsall Council,http://opendatacommunities.org/id/metropolitan-district-council/walsall,WC93-689,30/06/2018,Adult Social Care,BUSH HOME LTD,12/06/2018,"1,474.41",73373-RESIDENTIAL & NURSING CARE PLACEMENTS,OP PACKAGE/PLACEMENT COSTS,Third Party Payments,Revenue
Walsall Council,http://opendatacommunities.org/id/metropolitan-district-council/walsall,WC93-690,30/06/2018,Adult Social Care,BUSH HOME LTD,05/06/2018,"1,478.57",73373-RESIDENTIAL & NURSING CARE PLACEMENTS,OP PACKAGE/PLACEMENT COSTS,Third Party Payments,Revenue
Walsall Council,http://opendatacommunities.org/id/metropolitan-district-council/walsall,WC93-691,30/06/2018,Adult Social Care,BUSH HOME LTD,12/06/2018,"1,628.52",73373-RESIDENTIAL & NURSING CARE PLACEMENTS,OP PACKAGE/PLACEMENT COSTS,Third Party Payments,Revenue
Walsall Council,http://opendatacommunities.org/id/metropolitan-district-council/walsall,WC93-692,30/06/2018,Adult Social Care,BUSH HOME LTD,05/06/2018,"1,688.03",73373-RESIDENTIAL & NURSING CARE PLACEMENTS,OP PACKAGE/PLACEMENT COSTS,Third Party Payments,Revenue
Walsall Council,http://opendatacommunities.org/id/metropolitan-district-council/walsall,WC93-693,30/06/2018,Adult Social Care,BUSH HOME LTD,12/06/2018,"1,691.19",73373-RESIDENTIAL & NURSING CARE PLACEMENTS,OP PACKAGE/PLACEMENT COSTS,Third Party Payments,Revenue
Walsall Council,http://opendatacommunities.org/id/metropolitan-district-council/walsall,WC93-694,30/06/2018,Adult Social Care,BUSH HOME LTD,19/06/2018,"1,808.61",73373-RESIDENTIAL & NURSING CARE PLACEMENTS,OP PACKAGE/PLACEMENT COSTS,Third Party Payments,Revenue
Walsall Council,http://opendatacommunities.org/id/metropolitan-district-council/walsall,WC93-695,30/06/2018,Adult Social Care,BUSH HOME LTD,05/06/2018,"1,809.47",73373-RESIDENTIAL & NURSING CARE PLACEMENTS,OP PACKAGE/PLACEMENT COSTS,Third Party Payments,Revenue
Walsall Council,http://opendatacommunities.org/id/metropolitan-district-council/walsall,WC93-696,30/06/2018,Adult Social Care,BUSH HOME LTD,19/06/2018,"1,809.47",73373-RESIDENTIAL & NURSING CARE PLACEMENTS,OP PACKAGE/PLACEMENT COSTS,Third Party Payments,Revenue
Walsall Council,http://opendatacommunities.org/id/metropolitan-district-council/walsall,WC93-697,30/06/2018,Adult Social Care,BUSH HOME LTD,19/06/2018,"1,809.47",73373-RESIDENTIAL & NURSING CARE PLACEMENTS,OP PACKAGE/PLACEMENT COSTS,Third Party Payments,Revenue
Walsall Council,http://opendatacommunities.org/id/metropolitan-district-council/walsall,WC93-698,30/06/2018,Adult Social Care,BUSH HOME LTD,19/06/2018,"1,809.47",73373-RESIDENTIAL & NURSING CARE PLACEMENTS,OP PACKAGE/PLACEMENT COSTS,Third Party Payments,Revenue
Walsall Council,http://opendatacommunities.org/id/metropolitan-district-council/walsall,WC93-699,30/06/2018,Adult Social Care,BUSH HOME LTD,12/06/2018,"1,869.79",73373-RESIDENTIAL & NURSING CARE PLACEMENTS,OP PACKAGE/PLACEMENT COSTS,Third Party Payments,Revenue
Walsall Council,http://opendatacommunities.org/id/metropolitan-district-council/walsall,WC93-700,30/06/2018,Adult Social Care,BUSH HOME LTD,12/06/2018,"1,869.79",73373-RESIDENTIAL & NURSING CARE PLACEMENTS,OP PACKAGE/PLACEMENT COSTS,Third Party Payments,Revenue
Walsall Council,http://opendatacommunities.org/id/metropolitan-district-council/walsall,WC93-701,30/06/2018,Adult Social Care,BUSH HOME LTD,05/06/2018,"1,876.51",73373-RESIDENTIAL & NURSING CARE PLACEMENTS,OP PACKAGE/PLACEMENT COSTS,Third Party Payments,Revenue
Walsall Council,http://opendatacommunities.org/id/metropolitan-district-council/walsall,WC93-702,30/06/2018,Adult Social Care,BUSH HOME LTD,05/06/2018,"1,876.51",73373-RESIDENTIAL & NURSING CARE PLACEMENTS,OP PACKAGE/PLACEMENT COSTS,Third Party Payments,Revenue
Walsall Council,http://opendatacommunities.org/id/metropolitan-district-council/walsall,WC93-703,30/06/2018,Adult Social Care,BUSH HOME LTD,19/06/2018,"2,010.00",73373-RESIDENTIAL & NURSING CARE PLACEMENTS,OP PACKAGE/PLACEMENT COSTS,Third Party Payments,Revenue
Walsall Council,http://opendatacommunities.org/id/metropolitan-district-council/walsall,WC93-704,30/06/2018,Adult Social Care,BUSH HOME LTD,12/06/2018,"2,077.58",73373-RESIDENTIAL & NURSING CARE PLACEMENTS,OP PACKAGE/PLACEMENT COSTS,Third Party Payments,Revenue
Walsall Council,http://opendatacommunities.org/id/metropolitan-district-council/walsall,WC93-705,30/06/2018,Adult Social Care,BUSH HOME LTD,12/06/2018,"2,171.34",73373-RESIDENTIAL & NURSING CARE PLACEMENTS,OP PACKAGE/PLACEMENT COSTS,Third Party Payments,Revenue
Walsall Council,http://opendatacommunities.org/id/metropolitan-district-council/walsall,WC93-706,30/06/2018,Adult Social Care,BUSH HOME LTD,05/06/2018,"2,231.68",73373-RESIDENTIAL & NURSING CARE PLACEMENTS,OP PACKAGE/PLACEMENT COSTS,Third Party Payments,Revenue
Walsall Council,http://opendatacommunities.org/id/metropolitan-district-council/walsall,WC93-707,30/06/2018,Adult Social Care,BUSH HOME LTD,05/06/2018,"2,412.66",73373-RESIDENTIAL & NURSING CARE PLACEMENTS,OP PACKAGE/PLACEMENT COSTS,Third Party Payments,Revenue
Walsall Council,http://opendatacommunities.org/id/metropolitan-district-council/walsall,WC93-708,30/06/2018,Adult Social Care,BUSH HOME LTD,05/06/2018,"2,613.72",73373-RESIDENTIAL & NURSING CARE PLACEMENTS,OP PACKAGE/PLACEMENT COSTS,Third Party Payments,Revenue
Walsall Council,http://opendatacommunities.org/id/metropolitan-district-council/walsall,WC93-709,30/06/2018,Adult Social Care,BUSH HOME LTD,19/06/2018,"2,613.72",73373-RESIDENTIAL & NURSING CARE PLACEMENTS,OP PACKAGE/PLACEMENT COSTS,Third Party Payments,Revenue
Walsall Council,http://opendatacommunities.org/id/metropolitan-district-council/walsall,WC93-710,30/06/2018,Adult Social Care,BUSH HOME LTD,12/06/2018,"2,628.57",73373-RESIDENTIAL & NURSING CARE PLACEMENTS,OP PACKAGE/PLACEMENT COSTS,Third Party Payments,Revenue
Walsall Council,http://opendatacommunities.org/id/metropolitan-district-council/walsall,WC93-711,30/06/2018,Adult Social Care,BUSH HOME LTD,12/06/2018,"3,196.74",73373-RESIDENTIAL & NURSING CARE PLACEMENTS,MENTAL HEALTH PACKAGE/PLACEMENT COSTS,Third Party Payments,Revenue
Walsall Council,http://opendatacommunities.org/id/metropolitan-district-council/walsall,WC93-712,30/06/2018,Adult Social Care,BUSH HOME LTD,12/06/2018,"7,688.57",73373-RESIDENTIAL & NURSING CARE PLACEMENTS,OP PACKAGE/PLACEMENT COSTS,Third Party Payments,Revenue
Walsall Council,http://opendatacommunities.org/id/metropolitan-district-council/walsall,WC93-713,30/06/2018,Childrens,BUSY BEES CHILDCARE LTD,01/06/2018,"8,878.35",66505-OTHER-GRANTS TO OTHER ORGS,EARLY YEARS - 3 YR OLDS,Third Party Payments,Revenue
Walsall Council,http://opendatacommunities.org/id/metropolitan-district-council/walsall,WC93-714,30/06/2018,Childrens,BY THE BRIDGE,18/06/2018,"3,996.00",74037-INDEPENDENT FOSTER CARE-OTH AGENCY PROVISION,EXTERNAL FOSTER CARE PROVISION,Third Party Payments,Revenue
Walsall Council,http://opendatacommunities.org/id/metropolitan-district-council/walsall,WC93-715,30/06/2018,Economy & Environment,C ART ART TRANSPORT LTD,07/06/2018,333.00,73032-TRANSPORTATION-PRIV CONTRACTOR FEES,NAG - TEMPORARY EXHIBITIONS,Third Party Payments,Revenue
Walsall Council,http://opendatacommunities.org/id/metropolitan-district-council/walsall,WC93-716,30/06/2018,Economy & Environment,C ART ART TRANSPORT LTD,22/06/2018,"1,500.00",73032-TRANSPORTATION-PRIV CONTRACTOR FEES,NAG - TEMPORARY EXHIBITIONS,Third Party Payments,Revenue
Walsall Council,http://opendatacommunities.org/id/metropolitan-district-council/walsall,WC93-717,30/06/2018,Economy & Environment,C ART ART TRANSPORT LTD,07/06/2018,"1,598.00",73032-TRANSPORTATION-PRIV CONTRACTOR FEES,NAG - TEMPORARY EXHIBITIONS,Third Party Payments,Revenue
Walsall Council,http://opendatacommunities.org/id/metropolitan-district-council/walsall,WC93-718,30/06/2018,Childrens,REDACTED,18/06/2018,121.03,74506-TRAVEL-FOSTER CARERS,INTERNAL FOSTER CARE PROVISION,Transfer Payments,Revenue
Walsall Council,http://opendatacommunities.org/id/metropolitan-district-council/walsall,WC93-719,30/06/2018,Childrens,REDACTED,18/06/2018,720.00,74501-MAINTENANCE ALLOWANCE-FOSTER CARERS,INTERNAL FOSTER CARE PROVISION,Transfer Payments,Revenue
Walsall Council,http://opendatacommunities.org/id/metropolitan-district-council/walsall,WC93-720,30/06/2018,Childrens,REDACTED,18/06/2018,720.00,74501-MAINTENANCE ALLOWANCE-FOSTER CARERS,INTERNAL FOSTER CARE PROVISION,Transfer Payments,Revenue
Walsall Council,http://opendatacommunities.org/id/metropolitan-district-council/walsall,WC93-721,30/06/2018,Childrens,REDACTED,18/06/2018,720.00,74501-MAINTENANCE ALLOWANCE-FOSTER CARERS,INTERNAL FOSTER CARE PROVISION,Transfer Payments,Revenue
Walsall Council,http://opendatacommunities.org/id/metropolitan-district-council/walsall,WC93-722,30/06/2018,Childrens,REDACTED,18/06/2018,860.00,74501-MAINTENANCE ALLOWANCE-FOSTER CARERS,INTERNAL FOSTER CARE PROVISION,Transfer Payments,Revenue
Walsall Council,http://opendatacommunities.org/id/metropolitan-district-council/walsall,WC93-723,30/06/2018,Childrens,REDACTED,18/06/2018,"2,078.57",74508-INTERNAL FOSTER CARERS-CARER FEES,INTERNAL FOSTER CARE PROVISION,Transfer Payments,Revenue
Walsall Council,http://opendatacommunities.org/id/metropolitan-district-council/walsall,WC93-724,30/06/2018,Childrens,REDACTED,18/06/2018,720.00,74501-MAINTENANCE ALLOWANCE-FOSTER CARERS,INTERNAL FOSTER CARE PROVISION,Transfer Payments,Revenue
Walsall Council,http://opendatacommunities.org/id/metropolitan-district-council/walsall,WC93-725,30/06/2018,Childrens,REDACTED,18/06/2018,860.00,74501-MAINTENANCE ALLOWANCE-FOSTER CARERS,INTERNAL FOSTER CARE PROVISION,Transfer Payments,Revenue
Walsall Council,http://opendatacommunities.org/id/metropolitan-district-council/walsall,WC93-726,30/06/2018,Childrens,REDACTED,18/06/2018,"1,600.00",74508-INTERNAL FOSTER CARERS-CARER FEES,INTERNAL FOSTER CARE PROVISION,Transfer Payments,Revenue
Walsall Council,http://opendatacommunities.org/id/metropolitan-district-council/walsall,WC93-727,30/06/2018,Childrens,C M H T SOLICITORS LLP,13/06/2018,"1,013.45",73014-LEGAL FEES-PRIV CONTRACTOR FEES,GENERAL MANAGEMENT SUPPORT (INC LEGAL),Third Party Payments,Revenue
Walsall Council,http://opendatacommunities.org/id/metropolitan-district-council/walsall,WC93-728,30/06/2018,Economy & Environment,C P DAVIDSON & SONS LTD,26/06/2018,292.50,73025-PROFESSIONAL SERVICES-PRIV CONTRACTOR & OTHER AGENCIES,FLEET,Third Party Payments,Revenue
Walsall Council,http://opendatacommunities.org/id/metropolitan-district-council/walsall,WC93-729,30/06/2018,Economy & Environment,C P DAVIDSON & SONS LTD,05/06/2018,443.44,60500-GENERAL MATERIALS,FLEET,Supplies & Services,Revenue
Walsall Council,http://opendatacommunities.org/id/metropolitan-district-council/walsall,WC93-730,30/06/2018,Economy & Environment,C P DAVIDSON & SONS LTD,11/06/2018,"3,621.94",73025-PROFESSIONAL SERVICES-PRIV CONTRACTOR & OTHER AGENCIES,FLEET,Third Party Payments,Revenue
Walsall Council,http://opendatacommunities.org/id/metropolitan-district-council/walsall,WC93-731,30/06/2018,Childrens,REDACTED,04/06/2018,510.00,74508-INTERNAL FOSTER CARERS-CARER FEES,FAMILY & FRIENDS FOSTER CARE PROVISION,Transfer Payments,Revenue
Walsall Council,http://opendatacommunities.org/id/metropolitan-district-council/walsall,WC93-732,30/06/2018,Childrens,REDACTED,04/06/2018,600.00,74501-MAINTENANCE ALLOWANCE-FOSTER CARERS,FAMILY & FRIENDS FOSTER CARE PROVISION,Transfer Payments,Revenue
Walsall Council,http://opendatacommunities.org/id/metropolitan-district-council/walsall,WC93-733,30/06/2018,Childrens,REDACTED,04/06/2018,600.00,74501-MAINTENANCE ALLOWANCE-FOSTER CARERS,FAMILY & FRIENDS FOSTER CARE PROVISION,Transfer Payments,Revenue
Walsall Council,http://opendatacommunities.org/id/metropolitan-district-council/walsall,WC93-734,30/06/2018,Adult Social Care,CALDMORE AREA HOUSING ASS LTD,26/06/2018,707.81,73373-RESIDENTIAL & NURSING CARE PLACEMENTS,MENTAL HEALTH PACKAGE/PLACEMENT COSTS,Third Party Payments,Revenue
Walsall Council,http://opendatacommunities.org/id/metropolitan-district-council/walsall,WC93-735,30/06/2018,Adult Social Care,CALDMORE AREA HOUSING ASS LTD,19/06/2018,"3,328.60",73373-RESIDENTIAL & NURSING CARE PLACEMENTS,MENTAL HEALTH PACKAGE/PLACEMENT COSTS,Third Party Payments,Revenue
Walsall Council,http://opendatacommunities.org/id/metropolitan-district-council/walsall,WC93-736,30/06/2018,Adult Social Care,CALDMORE AREA HOUSING ASS LTD,19/06/2018,"3,328.60",73373-RESIDENTIAL & NURSING CARE PLACEMENTS,MENTAL HEALTH PACKAGE/PLACEMENT COSTS,Third Party Payments,Revenue
Walsall Council,http://opendatacommunities.org/id/metropolitan-district-council/walsall,WC93-737,30/06/2018,Adult Social Care,CALDMORE AREA HOUSING ASS LTD,19/06/2018,"3,328.60",73373-RESIDENTIAL & NURSING CARE PLACEMENTS,MENTAL HEALTH PACKAGE/PLACEMENT COSTS,Third Party Payments,Revenue
Walsall Council,http://opendatacommunities.org/id/metropolitan-district-council/walsall,WC93-738,30/06/2018,Adult Social Care,CALDMORE AREA HOUSING ASS LTD,19/06/2018,"3,328.60",73373-RESIDENTIAL & NURSING CARE PLACEMENTS,MENTAL HEALTH PACKAGE/PLACEMENT COSTS,Third Party Payments,Revenue
Walsall Council,http://opendatacommunities.org/id/metropolitan-district-council/walsall,WC93-739,30/06/2018,Adult Social Care,CALDMORE AREA HOUSING ASS LTD,19/06/2018,"3,328.60",73373-RESIDENTIAL & NURSING CARE PLACEMENTS,MENTAL HEALTH PACKAGE/PLACEMENT COSTS,Third Party Payments,Revenue
Walsall Council,http://opendatacommunities.org/id/metropolitan-district-council/walsall,WC93-740,30/06/2018,Adult Social Care,CALDMORE AREA HOUSING ASS LTD,19/06/2018,"3,328.60",73373-RESIDENTIAL & NURSING CARE PLACEMENTS,MENTAL HEALTH PACKAGE/PLACEMENT COSTS,Third Party Payments,Revenue
Walsall Council,http://opendatacommunities.org/id/metropolitan-district-council/walsall,WC93-741,30/06/2018,Adult Social Care,CALDMORE AREA HOUSING ASS LTD,19/06/2018,"3,328.60",73373-RESIDENTIAL & NURSING CARE PLACEMENTS,MENTAL HEALTH PACKAGE/PLACEMENT COSTS,Third Party Payments,Revenue
Walsall Council,http://opendatacommunities.org/id/metropolitan-district-council/walsall,WC93-742,30/06/2018,Childrens,REDACTED,04/06/2018,375.88,74510-RESIDENTS ORDERS,ADOPTION ALLOWANCES,Third Party Payments,Revenue
Walsall Council,http://opendatacommunities.org/id/metropolitan-district-council/walsall,WC93-743,30/06/2018,Adult Social Care,REDACTED,11/06/2018,"1,462.75",76422-DIRECT PAYMENTS TO SOCIAL SERVICES CLIENTS,LD PACKAGE/PLACEMENT COSTS,Transfer Payments,Revenue
Walsall Council,http://opendatacommunities.org/id/metropolitan-district-council/walsall,WC93-744,30/06/2018,Childrens,CAMBIAN WHINFELL SCHOOLS LTD,20/06/2018,"-14,850.57",66502-TOP UP FUNDING -GRANTS TO SCHOOLS,INDEPENDENT PROVIDERS - SPECIAL & AP,Third Party Payments,Revenue
Walsall Council,http://opendatacommunities.org/id/metropolitan-district-council/walsall,WC93-745,30/06/2018,Childrens,CAMBIAN WHINFELL SCHOOLS LTD,20/06/2018,"-2,420.52",66502-TOP UP FUNDING -GRANTS TO SCHOOLS,INDEPENDENT PROVIDERS - SPECIAL & AP,Third Party Payments,Revenue
Walsall Council,http://opendatacommunities.org/id/metropolitan-district-council/walsall,WC93-746,30/06/2018,Economy & Environment,CAMERA ONE LIMITED,08/06/2018,820.00,73025-PROFESSIONAL SERVICES-PRIV CONTRACTOR & OTHER AGENCIES,DEPOT,Third Party Payments,Revenue
Walsall Council,http://opendatacommunities.org/id/metropolitan-district-council/walsall,WC93-747,30/06/2018,Economy & Environment,CAMERA ONE LIMITED,20/06/2018,985.00,73025-PROFESSIONAL SERVICES-PRIV CONTRACTOR & OTHER AGENCIES,DEPOT,Third Party Payments,Revenue
Walsall Council,http://opendatacommunities.org/id/metropolitan-district-council/walsall,WC93-748,30/06/2018,Economy & Environment,CAMERA ONE LIMITED,27/06/2018,"1,450.00",60500-GENERAL MATERIALS,GREEN SPACE MANAGEMENT,Supplies & Services,Revenue
